OrganisationNameLabel,OrganisationURI,EffectiveDate,Directorate/ServiceWhereExpenditureIncurred,ServiceCategoryLabel,ServiceCategoryURI,Supplier,SupplierRegisteredCompany Number,PaymentDate,TransactionNumber,NetAmount,IrrecoverableVAT,PurposeOfSpend,ProcurementClassification:ProclassLabel,ProcrementClassification:ProClassCode
South Lakeland District Council,http://opendatacommunities.org/id/district-council/south-lakeland,31/07/2017,Business Support Community Services,Internal Trading Accounts,,A & W COMMERCIALS LTD,2630625,03/07/2017,69382,217.38,0,Hose,381400,Vehicle Mgt Maintenance
South Lakeland District Council,http://opendatacommunities.org/id/district-council/south-lakeland,31/07/2017,Environment and Housing,Housing,http://opendatacommunities.org/def/concept/finance/sercop/objective/108,Accessible Bathrooms,,12/07/2017,69650,11068.17,0,"Lower Clawthorpe, Burton-in-Kendal,",101000,Building Bathrooms
South Lakeland District Council,http://opendatacommunities.org/id/district-council/south-lakeland,31/07/2017,Environment and Housing,Housing,http://opendatacommunities.org/def/concept/finance/sercop/objective/108,Accessible Bathrooms,,19/07/2017,69779,2854.48,0,"Kirkfield, Ambleside",101000,Building Bathrooms
South Lakeland District Council,http://opendatacommunities.org/id/district-council/south-lakeland,31/07/2017,Social Enterprise Admin,Highways & Transport Services,http://opendatacommunities.org/def/concept/finance/sercop/objective/107,ACS BPS LTD,,24/07/2017,69816,5032.44,0,Quarterly maintenance charge 1 April,111200,Catering Food & Beverages
South Lakeland District Council,http://opendatacommunities.org/id/district-council/south-lakeland,31/07/2017,Human Resources,Cultural Environmental Regulatory & Planning Services,http://opendatacommunities.org/def/concept/finance/sercop/objective/104,ADC Environment Ltd,6212667,24/07/2017,69923,199,0,Parks and Open Spaces Apprentice,261300,HR Recruitment & Assessment
South Lakeland District Council,http://opendatacommunities.org/id/district-council/south-lakeland,31/07/2017,Kendal Town Hall,Highways & Transport Services,http://opendatacommunities.org/def/concept/finance/sercop/objective/107,ADECCO UK LIMITED,593232,19/07/2017,68725,560.56,0,Agency cover for WMMSCP,261400,HR Temporary & Agency Staff
South Lakeland District Council,http://opendatacommunities.org/id/district-council/south-lakeland,31/07/2017,Kendal Town Hall,Highways & Transport Services,http://opendatacommunities.org/def/concept/finance/sercop/objective/107,ADECCO UK LIMITED,593232,10/07/2017,68953,406.56,0,Agency cover for WMMSCP,261400,HR Temporary & Agency Staff
South Lakeland District Council,http://opendatacommunities.org/id/district-council/south-lakeland,31/07/2017,Development Implementation,Central Services,http://opendatacommunities.org/def/concept/finance/sercop/objective/102,ADECCO UK LIMITED,593232,05/07/2017,69194,73.92,0,Cleaner for SLDC - (6 hours per,261400,HR Temporary & Agency Staff
South Lakeland District Council,http://opendatacommunities.org/id/district-council/south-lakeland,31/07/2017,Kendal Town Hall,Highways & Transport Services,http://opendatacommunities.org/def/concept/finance/sercop/objective/107,ADECCO UK LIMITED,593232,12/07/2017,69195,98.56,0,To provide parking marshals for,261400,HR Temporary & Agency Staff
South Lakeland District Council,http://opendatacommunities.org/id/district-council/south-lakeland,31/07/2017,Kendal Town Hall,Highways & Transport Services,http://opendatacommunities.org/def/concept/finance/sercop/objective/107,ADECCO UK LIMITED,593232,12/07/2017,69196,95.48,0,To provide parking marshals for,261400,HR Temporary & Agency Staff
South Lakeland District Council,http://opendatacommunities.org/id/district-council/south-lakeland,31/07/2017,Development Implementation,Central Services,http://opendatacommunities.org/def/concept/finance/sercop/objective/102,ADECCO UK LIMITED,593232,05/07/2017,69197,134.86,0,Cleaner for SLDC - ( April,261400,HR Temporary & Agency Staff
South Lakeland District Council,http://opendatacommunities.org/id/district-council/south-lakeland,31/07/2017,Environment and Housing,Housing Services,http://opendatacommunities.org/def/concept/finance/sercop/objective/108,ADECCO UK LIMITED,593232,10/07/2017,69377,498.02,0,Agency worker - ,261400,HR Temporary & Agency Staff
South Lakeland District Council,http://opendatacommunities.org/id/district-council/south-lakeland,31/07/2017,Development Implementation,Central Services,http://opendatacommunities.org/def/concept/finance/sercop/objective/102,ADECCO UK LIMITED,593232,10/07/2017,69378,73.92,0,Cleaner for SLDC - (6 hours per,261400,HR Temporary & Agency Staff
South Lakeland District Council,http://opendatacommunities.org/id/district-council/south-lakeland,31/07/2017,Development Implementation,Central Services,http://opendatacommunities.org/def/concept/finance/sercop/objective/102,ADECCO UK LIMITED,593232,10/07/2017,69379,150.19,0,Cleaner for SLDC - ( April,261400,HR Temporary & Agency Staff
South Lakeland District Council,http://opendatacommunities.org/id/district-council/south-lakeland,31/07/2017,Business Support Community Services,Internal Trading Accounts,,ADECCO UK LIMITED,593232,10/07/2017,69388,78.84,0,Agency staff 2017/18,261400,HR Temporary & Agency Staff
South Lakeland District Council,http://opendatacommunities.org/id/district-council/south-lakeland,31/07/2017,Business Support Community Services,Internal Trading Accounts,,ADECCO UK LIMITED,593232,10/07/2017,69453,387.63,0,Agency staff 2017/18,261400,HR Temporary & Agency Staff
South Lakeland District Council,http://opendatacommunities.org/id/district-council/south-lakeland,31/07/2017,Business Support Community Services,Central Services,http://opendatacommunities.org/def/concept/finance/sercop/objective/102,ADECCO UK LIMITED,593232,10/07/2017,69454,94.22,0,Agency staff 2017/18,261400,HR Temporary & Agency Staff
South Lakeland District Council,http://opendatacommunities.org/id/district-council/south-lakeland,31/07/2017,Environment and Housing,Housing Services,http://opendatacommunities.org/def/concept/finance/sercop/objective/108,ADECCO UK LIMITED,593232,12/07/2017,69543,494.66,0,Agency worker - ,261400,HR Temporary & Agency Staff
South Lakeland District Council,http://opendatacommunities.org/id/district-council/south-lakeland,31/07/2017,Development Implementation,Central Services,http://opendatacommunities.org/def/concept/finance/sercop/objective/102,ADECCO UK LIMITED,593232,12/07/2017,69544,73.92,0,Cleaner for SLDC - (6 hours per,261400,HR Temporary & Agency Staff
South Lakeland District Council,http://opendatacommunities.org/id/district-council/south-lakeland,31/07/2017,Development Implementation,Central Services,http://opendatacommunities.org/def/concept/finance/sercop/objective/102,ADECCO UK LIMITED,593232,12/07/2017,69545,24.52,0,Cleaner for SLDC - ( April,261400,HR Temporary & Agency Staff
South Lakeland District Council,http://opendatacommunities.org/id/district-council/south-lakeland,31/07/2017,Business Support Community Services,Internal Trading Accounts,,ADECCO UK LIMITED,593232,12/07/2017,69620,476.33,0,Agency staff 2017/18,261400,HR Temporary & Agency Staff
South Lakeland District Council,http://opendatacommunities.org/id/district-council/south-lakeland,31/07/2017,Environment and Housing,Housing Services,http://opendatacommunities.org/def/concept/finance/sercop/objective/108,ADECCO UK LIMITED,593232,19/07/2017,69821,464.37,0,Agency worker - ,261400,HR Temporary & Agency Staff
South Lakeland District Council,http://opendatacommunities.org/id/district-council/south-lakeland,31/07/2017,Business Support Community Services,Internal Trading Accounts,,ADECCO UK LIMITED,593232,24/07/2017,69854,486.18,0,Agency staff 2017/18,261400,HR Temporary & Agency Staff
South Lakeland District Council,http://opendatacommunities.org/id/district-council/south-lakeland,31/07/2017,Business Support Community Services,Internal Trading Accounts,,AINSWORTH'S GARAGE,,26/07/2017,69978,74.98,0,Call out,381400,Vehicle Mgt Maintenance
South Lakeland District Council,http://opendatacommunities.org/id/district-council/south-lakeland,31/07/2017,Revenues and Benefits,Central Services,http://opendatacommunities.org/def/concept/finance/sercop/objective/102,Airey Consultancy Services Ltd,3518844,24/07/2017,69864,650,0,LSCT Update Service 2018 - 19 Scheme,151000,Consultancy Business
South Lakeland District Council,http://opendatacommunities.org/id/district-council/south-lakeland,31/07/2017,Revenues and Benefits,Central Services,http://opendatacommunities.org/def/concept/finance/sercop/objective/102,ALLPAY.NET LTD (NCR),6871069,01/07/2017,69546,373.11,0,2017 - 18 Internet Payment,209999,Financial Services Not Elsewhere Classif
South Lakeland District Council,http://opendatacommunities.org/id/district-council/south-lakeland,31/07/2017,Revenues and Benefits,Central Services,http://opendatacommunities.org/def/concept/finance/sercop/objective/102,ALLPAY.NET LTD (NCR),6871069,01/07/2017,69547,23.49,0,2017 - 18 Internet Payment,209999,Financial Services Not Elsewhere Classif
South Lakeland District Council,http://opendatacommunities.org/id/district-council/south-lakeland,31/07/2017,Revenues and Benefits,Central Services,http://opendatacommunities.org/def/concept/finance/sercop/objective/102,ALLPAY.NET LTD (NCR),6871069,01/07/2017,69548,940.6,0,2017 - 18 Internet Payment,209999,Financial Services Not Elsewhere Classif
South Lakeland District Council,http://opendatacommunities.org/id/district-council/south-lakeland,31/07/2017,Revenues and Benefits,Central Services,http://opendatacommunities.org/def/concept/finance/sercop/objective/102,ALLPAY.NET LTD (NCR),6871069,01/07/2017,69549,35.91,0,2017 - 18 Internet Payment,209999,Financial Services Not Elsewhere Classif
South Lakeland District Council,http://opendatacommunities.org/id/district-council/south-lakeland,31/07/2017,Revenues and Benefits,Central Services,http://opendatacommunities.org/def/concept/finance/sercop/objective/102,ALLPAY.NET LTD (NCR),6871069,01/07/2017,69550,18.77,0,2017 - 18 Internet Payment,209999,Financial Services Not Elsewhere Classif
South Lakeland District Council,http://opendatacommunities.org/id/district-council/south-lakeland,31/07/2017,Revenues and Benefits,Central Services,http://opendatacommunities.org/def/concept/finance/sercop/objective/102,ALLPAY.NET LTD (NCR),6871069,01/07/2017,69551,17.83,0,2017 - 18 Internet Payment,209999,Financial Services Not Elsewhere Classif
South Lakeland District Council,http://opendatacommunities.org/id/district-council/south-lakeland,31/07/2017,Revenues and Benefits,Central Services,http://opendatacommunities.org/def/concept/finance/sercop/objective/102,ALLPAY.NET LTD (NCR),6871069,01/07/2017,69552,12.52,0,2017 - 18 Internet Payment,209999,Financial Services Not Elsewhere Classif
South Lakeland District Council,http://opendatacommunities.org/id/district-council/south-lakeland,31/07/2017,Revenues and Benefits,Central Services,http://opendatacommunities.org/def/concept/finance/sercop/objective/102,ALLPAY.NET LTD (NCR),6871069,01/07/2017,69553,21.88,0,2017 - 18 Internet Payment,209999,Financial Services Not Elsewhere Classif
South Lakeland District Council,http://opendatacommunities.org/id/district-council/south-lakeland,31/07/2017,Business Support Community Services,Cultural Environmental Regulatory & Planning Services,http://opendatacommunities.org/def/concept/finance/sercop/objective/104,ALLSTAR BUSINESS SOLUTIONS LTD (NCR),2631112,01/07/2017,69279,66.4,0,Fuel - Private Water Van - 31 May 2017,381600,Vehicle Mgt Leasing
South Lakeland District Council,http://opendatacommunities.org/id/district-council/south-lakeland,31/07/2017,Social Enterprise Admin,Highways & Transport Services,http://opendatacommunities.org/def/concept/finance/sercop/objective/107,ALLSTAR BUSINESS SOLUTIONS LTD (NCR),2631112,01/07/2017,69307,133.81,0,Fuel for CEO enforcement vehicles,381600,Vehicle Mgt Leasing
South Lakeland District Council,http://opendatacommunities.org/id/district-council/south-lakeland,31/07/2017,Social Enterprise Admin,Highways & Transport Services,http://opendatacommunities.org/def/concept/finance/sercop/objective/107,ALLSTAR BUSINESS SOLUTIONS LTD (NCR),2631112,01/07/2017,69307,199.77,0,Fuel for CEO enforcement vehicles,381600,Vehicle Mgt Leasing
South Lakeland District Council,http://opendatacommunities.org/id/district-council/south-lakeland,31/07/2017,Business Support Community Services,Internal Trading Accounts,,ALLSTAR BUSINESS SOLUTIONS LTD (NCR),2631112,01/07/2017,69472,5071.16,0,Fuel to 30/06/17,381600,Vehicle Mgt Leasing
South Lakeland District Council,http://opendatacommunities.org/id/district-council/south-lakeland,31/07/2017,Business Support Community Services,Internal Trading Accounts,,ALLSTAR BUSINESS SOLUTIONS LTD (NCR),2631112,01/07/2017,69472,12837.34,0,Fuel to 30/06/17,381600,Vehicle Mgt Leasing
South Lakeland District Council,http://opendatacommunities.org/id/district-council/south-lakeland,31/07/2017,Social Enterprise Admin,Highways & Transport Services,http://opendatacommunities.org/def/concept/finance/sercop/objective/107,ALLSTAR BUSINESS SOLUTIONS LTD (NCR),2631112,01/07/2017,69473,96.06,0,Fuel for CEO enforcement vehicles,381600,Vehicle Mgt Leasing
South Lakeland District Council,http://opendatacommunities.org/id/district-council/south-lakeland,31/07/2017,Social Enterprise Admin,Highways & Transport Services,http://opendatacommunities.org/def/concept/finance/sercop/objective/107,ALLSTAR BUSINESS SOLUTIONS LTD (NCR),2631112,01/07/2017,69473,136.46,0,Fuel for CEO enforcement vehicles,381600,Vehicle Mgt Leasing
South Lakeland District Council,http://opendatacommunities.org/id/district-council/south-lakeland,31/07/2017,Business Support Community Services,Cultural Environmental Regulatory & Planning Services,http://opendatacommunities.org/def/concept/finance/sercop/objective/104,ALLSTAR BUSINESS SOLUTIONS LTD (NCR),2631112,01/07/2017,69483,41.67,0,Fuel - Private Water Van - 21 June 2017,381600,Vehicle Mgt Leasing
South Lakeland District Council,http://opendatacommunities.org/id/district-council/south-lakeland,31/07/2017,Business Support Community Services,Cultural Environmental Regulatory & Planning Services,http://opendatacommunities.org/def/concept/finance/sercop/objective/104,ANTHONY COLLINS SOLICITORS,OC313432,03/07/2017,69281,729,0,Bulky Waste Collection Contract - Advice,281300,Legal Services Legal Opinion
South Lakeland District Council,http://opendatacommunities.org/id/district-council/south-lakeland,31/07/2017,Financial Services,Housing Services,http://opendatacommunities.org/def/concept/finance/sercop/objective/108,ANTHONY COLLINS SOLICITORS,OC313432,24/07/2017,69842,1914.5,0,Ark/landpro - housing related work ,281300,Legal Services Legal Opinion
South Lakeland District Council,http://opendatacommunities.org/id/district-council/south-lakeland,31/07/2017,Business Support Community Services,Central Services,http://opendatacommunities.org/def/concept/finance/sercop/objective/102,ARCO LIMITED,133804,03/07/2017,69342,145.35,0,Cleaning materials,141100,Clothing Protective
South Lakeland District Council,http://opendatacommunities.org/id/district-council/south-lakeland,31/07/2017,Business Support Community Services,Internal Trading Accounts,,ARCO LIMITED,133804,03/07/2017,69343,-96.9,0,Cleaning materials,141100,Clothing Protective
South Lakeland District Council,http://opendatacommunities.org/id/district-council/south-lakeland,31/07/2017,Business Support Community Services,Internal Trading Accounts,,ARCO LIMITED,133804,03/07/2017,69344,31.85,0,Cleaning materials,141100,Clothing Protective
South Lakeland District Council,http://opendatacommunities.org/id/district-council/south-lakeland,31/07/2017,Business Support Community Services,Internal Trading Accounts,,ARCO LIMITED,133804,03/07/2017,69345,6.37,0,Cleaning materials,141100,Clothing Protective
South Lakeland District Council,http://opendatacommunities.org/id/district-council/south-lakeland,31/07/2017,Business Support Community Services,Internal Trading Accounts,,ARCO LIMITED,133804,03/07/2017,69346,12.74,0,Cleaning materials,141100,Clothing Protective
South Lakeland District Council,http://opendatacommunities.org/id/district-council/south-lakeland,31/07/2017,Business Support Community Services,Internal Trading Accounts,,ARCO LIMITED,133804,03/07/2017,69349,6.37,0,Cleaning materials,141100,Clothing Protective
South Lakeland District Council,http://opendatacommunities.org/id/district-council/south-lakeland,31/07/2017,Business Support Community Services,Internal Trading Accounts,,ARCO LIMITED,133804,03/07/2017,69350,7.76,0,Cleaning materials,141100,Clothing Protective
South Lakeland District Council,http://opendatacommunities.org/id/district-council/south-lakeland,31/07/2017,Social Enterprise Admin,Cultural Environmental Regulatory & Planning Services,http://opendatacommunities.org/def/concept/finance/sercop/objective/104,ARCO LIMITED,133804,03/07/2017,69365,486.55,0,10BD614 Berghaus W Calisto Alpha 3 in 1,141100,Clothing Protective
South Lakeland District Council,http://opendatacommunities.org/id/district-council/south-lakeland,31/07/2017,Business Support Community Services,Internal Trading Accounts,,ARCO LIMITED,133804,10/07/2017,69450,-26.99,0,Cleaning materials,141100,Clothing Protective
South Lakeland District Council,http://opendatacommunities.org/id/district-council/south-lakeland,31/07/2017,Business Support Community Services,Internal Trading Accounts,,ARCO LIMITED,133804,10/07/2017,69451,-15.82,0,Cleaning materials,141100,Clothing Protective
South Lakeland District Council,http://opendatacommunities.org/id/district-council/south-lakeland,31/07/2017,Business Support Community Services,Internal Trading Accounts,,ARCO LIMITED,133804,10/07/2017,69452,-17.78,0,Cleaning materials,141100,Clothing Protective
South Lakeland District Council,http://opendatacommunities.org/id/district-council/south-lakeland,31/07/2017,Business Support Community Services,Transport Planning Policy,http://opendatacommunities.org/def/concept/finance/sercop/objective/107,ARCO LIMITED,133804,10/07/2017,69501,28.13,0,Cleaning materials,141100,Clothing Protective
South Lakeland District Council,http://opendatacommunities.org/id/district-council/south-lakeland,31/07/2017,Business Support Community Services,Internal Trading Accounts,,ARCO LIMITED,133804,10/07/2017,69501,12.55,0,Cleaning materials,141100,Clothing Protective
South Lakeland District Council,http://opendatacommunities.org/id/district-council/south-lakeland,31/07/2017,Business Support Community Services,Internal Trading Accounts,,ARCO LIMITED,133804,10/07/2017,69501,296.89,0,Cleaning materials,141100,Clothing Protective
South Lakeland District Council,http://opendatacommunities.org/id/district-council/south-lakeland,31/07/2017,Business Support Community Services,Internal Trading Accounts,,ARCO LIMITED,133804,10/07/2017,69501,950.74,0,Cleaning materials,141100,Clothing Protective
South Lakeland District Council,http://opendatacommunities.org/id/district-council/south-lakeland,31/07/2017,Social Enterprise Admin,Cultural Environmental Regulatory & Planning Services,http://opendatacommunities.org/def/concept/finance/sercop/objective/104,ARCO LIMITED,133804,12/07/2017,69533,35.31,0,10BD614 Berghaus W Calisto Alpha 3 in 1,141100,Clothing Protective
South Lakeland District Council,http://opendatacommunities.org/id/district-council/south-lakeland,31/07/2017,Social Enterprise Admin,Highways & Transport Services,http://opendatacommunities.org/def/concept/finance/sercop/objective/107,ARCO LIMITED,133804,12/07/2017,69534,45.7,0,1 Pair Size 10 Lemaitre Stockton,141100,Clothing Protective
South Lakeland District Council,http://opendatacommunities.org/id/district-council/south-lakeland,31/07/2017,Business Support Community Services,Internal Trading Accounts,,ARCO LIMITED,133804,12/07/2017,69597,-35,0,Cleaning materials,141100,Clothing Protective
South Lakeland District Council,http://opendatacommunities.org/id/district-council/south-lakeland,31/07/2017,Business Support Community Services,Transport Planning Policy,http://opendatacommunities.org/def/concept/finance/sercop/objective/107,ARCO LIMITED,133804,12/07/2017,69619,23.71,0,Cleaning materials,141100,Clothing Protective
South Lakeland District Council,http://opendatacommunities.org/id/district-council/south-lakeland,31/07/2017,Business Support Community Services,Internal Trading Accounts,,ARCO LIMITED,133804,12/07/2017,69619,29.1,0,Cleaning materials,141100,Clothing Protective
South Lakeland District Council,http://opendatacommunities.org/id/district-council/south-lakeland,31/07/2017,Business Support Community Services,Internal Trading Accounts,,ARCO LIMITED,133804,17/07/2017,69669,387.88,0,Cleaning materials,141100,Clothing Protective
South Lakeland District Council,http://opendatacommunities.org/id/district-council/south-lakeland,31/07/2017,Business Support Community Services,Internal Trading Accounts,,ARCO LIMITED,133804,24/07/2017,69883,103.14,0,Cleaning materials,141100,Clothing Protective
South Lakeland District Council,http://opendatacommunities.org/id/district-council/south-lakeland,31/07/2017,Business Support Community Services,Internal Trading Accounts,,ARCO LIMITED,133804,24/07/2017,69886,34.83,0,Cleaning materials,141100,Clothing Protective
South Lakeland District Council,http://opendatacommunities.org/id/district-council/south-lakeland,31/07/2017,Business Support Community Services,Internal Trading Accounts,,ARCO LIMITED,133804,24/07/2017,69894,19.11,0,Cleaning materials,141100,Clothing Protective
South Lakeland District Council,http://opendatacommunities.org/id/district-council/south-lakeland,31/07/2017,Business Support Community Services,Internal Trading Accounts,,ARCO LIMITED,133804,24/07/2017,69895,31.85,0,Cleaning materials,141100,Clothing Protective
South Lakeland District Council,http://opendatacommunities.org/id/district-council/south-lakeland,31/07/2017,Business Support Community Services,Internal Trading Accounts,,ARCO LIMITED,133804,24/07/2017,69899,49.95,0,Cleaning materials,141100,Clothing Protective
South Lakeland District Council,http://opendatacommunities.org/id/district-council/south-lakeland,31/07/2017,Business Support Community Services,Internal Trading Accounts,,ARCO LIMITED,133804,24/07/2017,69902,158.2,0,Cleaning materials,141100,Clothing Protective
South Lakeland District Council,http://opendatacommunities.org/id/district-council/south-lakeland,31/07/2017,Business Support Community Services,Transport Planning Policy,http://opendatacommunities.org/def/concept/finance/sercop/objective/107,ARCO LIMITED,133804,24/07/2017,69927,21.99,0,Cleaning materials,141100,Clothing Protective
South Lakeland District Council,http://opendatacommunities.org/id/district-council/south-lakeland,31/07/2017,Business Support Community Services,Internal Trading Accounts,,ARCO LIMITED,133804,24/07/2017,69927,28.91,0,Cleaning materials,141100,Clothing Protective
South Lakeland District Council,http://opendatacommunities.org/id/district-council/south-lakeland,31/07/2017,Lake Wardens,Cultural Environmental Regulatory & Planning Services,http://opendatacommunities.org/def/concept/finance/sercop/objective/104,ARNOLD DIGGLE & CO LTD,8650931,24/07/2017,69924,180,0,Annual Electrical Safety Inspection,102200,Building Plumbing
South Lakeland District Council,http://opendatacommunities.org/id/district-council/south-lakeland,31/07/2017,Business Support Community Services,Housing Services,http://opendatacommunities.org/def/concept/finance/sercop/objective/108,Ashberry Recruitment,7202591,03/07/2017,68587,297,0,Agency temp at Town View Fields Hostel,261300,HR Recruitment & Assessment
South Lakeland District Council,http://opendatacommunities.org/id/district-council/south-lakeland,31/07/2017,Business Support Community Services,Housing Services,http://opendatacommunities.org/def/concept/finance/sercop/objective/108,Ashberry Recruitment,7202591,12/07/2017,68730,108,0,"Agency temp, supprort worker at TVF",261300,HR Recruitment & Assessment
South Lakeland District Council,http://opendatacommunities.org/id/district-council/south-lakeland,31/07/2017,Business Support Community Services,Housing Services,http://opendatacommunities.org/def/concept/finance/sercop/objective/108,Ashberry Recruitment,7202591,03/07/2017,68991,270,0,"Agency temp, supprort worker at TVF",261300,HR Recruitment & Assessment
South Lakeland District Council,http://opendatacommunities.org/id/district-council/south-lakeland,31/07/2017,Business Support Community Services,Housing Services,http://opendatacommunities.org/def/concept/finance/sercop/objective/108,Ashberry Recruitment,7202591,10/07/2017,69192,101.25,0,"Agency temp, supprort worker at TVF",261300,HR Recruitment & Assessment
South Lakeland District Council,http://opendatacommunities.org/id/district-council/south-lakeland,31/07/2017,Business Support Community Services,Housing Services,http://opendatacommunities.org/def/concept/finance/sercop/objective/108,Ashberry Recruitment,7202591,10/07/2017,69508,202.5,0,"Agency temp, supprort worker at TVF",261300,HR Recruitment & Assessment
South Lakeland District Council,http://opendatacommunities.org/id/district-council/south-lakeland,31/07/2017,Business Support Community Services,Housing Services,http://opendatacommunities.org/def/concept/finance/sercop/objective/108,Ashberry Recruitment,7202591,31/07/2017,69945,89,0,"Agency temp, supprort worker at TVF",261300,HR Recruitment & Assessment
South Lakeland District Council,http://opendatacommunities.org/id/district-council/south-lakeland,31/07/2017,Electoral Services,Central Services,http://opendatacommunities.org/def/concept/finance/sercop/objective/102,ASSOCIATION OF ELECTORAL ADMINISTRATORS,2406897,03/07/2017,69405,23.75,0,AEA Membership for ,202100,Financial Services Subscriptions
South Lakeland District Council,http://opendatacommunities.org/id/district-council/south-lakeland,31/07/2017,Electoral Services,Central Services,http://opendatacommunities.org/def/concept/finance/sercop/objective/102,ASSOCIATION OF ELECTORAL ADMINISTRATORS,2406897,03/07/2017,69405,23.75,0,AEA Membership for ,202100,Financial Services Subscriptions
South Lakeland District Council,http://opendatacommunities.org/id/district-council/south-lakeland,31/07/2017,Business Support Community Services,Internal Trading Accounts,,AUTOMOTIVE GLAZING SOLUTIONS,5922870,03/07/2017,69364,45,0,Repair SL006,381400,Vehicle Mgt Maintenance
South Lakeland District Council,http://opendatacommunities.org/id/district-council/south-lakeland,31/07/2017,Social Enterprise Admin,Cultural Environmental Regulatory & Planning Services,http://opendatacommunities.org/def/concept/finance/sercop/objective/104,AUTOPARTS (CUMBRIA) LTD,2579204,03/07/2017,69296,39,0,5ltr Brake cleaner,381500,Vehicle Mgt Parts
South Lakeland District Council,http://opendatacommunities.org/id/district-council/south-lakeland,31/07/2017,Business Support Community Services,Housing Services,http://opendatacommunities.org/def/concept/finance/sercop/objective/108,Beech Tree Garage,,05/07/2017,69447,500,0,Campervan repair,250010,Housing Letting Agents
South Lakeland District Council,http://opendatacommunities.org/id/district-council/south-lakeland,31/07/2017,Kendal Town Hall,Central Services,http://opendatacommunities.org/def/concept/finance/sercop/objective/102,BERENDSEN UK LTD,228604,12/07/2017,69412,94.96,0,Weekly exchange and cleaning of the non,161000,Domestic Goods Commercial
South Lakeland District Council,http://opendatacommunities.org/id/district-council/south-lakeland,31/07/2017,Kendal Town Hall,Cultural Environmental Regulatory & Planning Services,http://opendatacommunities.org/def/concept/finance/sercop/objective/104,BERENDSEN UK LTD,228604,12/07/2017,69412,22.64,0,Weekly exchange and cleaning of the non,161000,Domestic Goods Commercial
South Lakeland District Council,http://opendatacommunities.org/id/district-council/south-lakeland,31/07/2017,Business Support Community Services,Internal Trading Accounts,,BERENDSEN UK LTD,228604,05/07/2017,69419,265.6,0,Workwear hire 02/04/17 - 31/03/18,161000,Domestic Goods Commercial
South Lakeland District Council,http://opendatacommunities.org/id/district-council/south-lakeland,31/07/2017,Development Management,Cultural Environmental Regulatory & Planning Services,http://opendatacommunities.org/def/concept/finance/sercop/objective/104,BLEASDALE WAND LTD,4982503,12/07/2017,69653,330,0,Checking of Building Regulation,391200,Construction Engineering
South Lakeland District Council,http://opendatacommunities.org/id/district-council/south-lakeland,31/07/2017,Development Implementation,Cultural Environmental Regulatory & Planning Services,http://opendatacommunities.org/def/concept/finance/sercop/objective/104,Bloom Procurement Services Ltd,,17/07/2017,68707,25519,0,SLDC - Morecambe Bay Economic Study,151900,Consultancy Management
South Lakeland District Council,http://opendatacommunities.org/id/district-council/south-lakeland,31/07/2017,Development Implementation,Culture and Related Serv,http://opendatacommunities.org/def/concept/finance/sercop/objective/104,Bloom Procurement Services Ltd,,12/07/2017,69498,16732,0,SLDC - Castle Dairy - Flood Remedial,151900,Consultancy Management
South Lakeland District Council,http://opendatacommunities.org/id/district-council/south-lakeland,31/07/2017,Business Support Community Services,Internal Trading Accounts,,BOC GASES,337663,05/07/2017,69422,115.5,0,Gas supplies 2017/18,371100,Utilities Gas
South Lakeland District Council,http://opendatacommunities.org/id/district-council/south-lakeland,31/07/2017,Business Support Community Services,Housing Services,http://opendatacommunities.org/def/concept/finance/sercop/objective/108,BOROUGH OF BARROW IN FURNESS,,24/07/2017,69934,375,0,Homeless Reduction Act training,908999,Public Bodies Not Elsewhere Classified
South Lakeland District Council,http://opendatacommunities.org/id/district-council/south-lakeland,31/07/2017,Business Support Community Services,Internal Trading Accounts,,BRIAN ARMISTEAD LTD T/A SINKFALL RECYCLI,4133280,10/07/2017,69461,2576.03,0,Green waste tipping - 2017/18,391110,Construction Buildings Construction
South Lakeland District Council,http://opendatacommunities.org/id/district-council/south-lakeland,31/07/2017,Business Support Community Services,Internal Trading Accounts,,BRIAN ARMISTEAD LTD T/A SINKFALL RECYCLI,4133280,12/07/2017,69623,1427.21,0,Green waste tipping - 2017/18,391110,Construction Buildings Construction
South Lakeland District Council,http://opendatacommunities.org/id/district-council/south-lakeland,31/07/2017,Business Support Community Services,Internal Trading Accounts,,BRIAN ARMISTEAD LTD T/A SINKFALL RECYCLI,4133280,17/07/2017,69732,2212.77,0,Green waste tipping - 2017/18,391110,Construction Buildings Construction
South Lakeland District Council,http://opendatacommunities.org/id/district-council/south-lakeland,31/07/2017,Business Support Community Services,Internal Trading Accounts,,BRIAN ARMISTEAD LTD T/A SINKFALL RECYCLI,4133280,17/07/2017,69733,30,0,Green waste tipping - 2017/18,391110,Construction Buildings Construction
South Lakeland District Council,http://opendatacommunities.org/id/district-council/south-lakeland,31/07/2017,ICT Group,Central Services,http://opendatacommunities.org/def/concept/finance/sercop/objective/102,BRITISH TELECOMMUNICATIONS PLC (DD),,01/07/2017,68825,63.15,0,"Town View Fields broadband, covers",279999,ICT Not Elsewhere Classified
South Lakeland District Council,http://opendatacommunities.org/id/district-council/south-lakeland,31/07/2017,ICT Group,Central Services,http://opendatacommunities.org/def/concept/finance/sercop/objective/102,BRITISH TELECOMMUNICATIONS PLC (DD),,01/07/2017,69507,63.13,0,"Town View Fields broadband, covers",279999,ICT Not Elsewhere Classified
South Lakeland District Council,http://opendatacommunities.org/id/district-council/south-lakeland,31/07/2017,Business Support Community Services,Housing Services,http://opendatacommunities.org/def/concept/finance/sercop/objective/108,BUNZL CLEANING & HYGIENE SUPPLIES,2902454,17/07/2017,69662,291.44,0,030000 Cleanline Washing Up Liquid (5L),131011,Cleaning & Janitorial Cleaning Materials
South Lakeland District Council,http://opendatacommunities.org/id/district-council/south-lakeland,31/07/2017,Financial Services,Central Services,http://opendatacommunities.org/def/concept/finance/sercop/objective/102,BUSY BEES BENEFITS LTD,6758298,19/07/2017,69502,31.36,0,Busy Bees child care voucher service,202100,Financial Services Subscriptions
South Lakeland District Council,http://opendatacommunities.org/id/district-council/south-lakeland,31/07/2017,Financial Services,Non-Service Payments,,BUSY BEES BENEFITS LTD,6758298,19/07/2017,69503,896,0,Busy Bees child care vouchers. based on,202100,Financial Services Subscriptions
South Lakeland District Council,http://opendatacommunities.org/id/district-council/south-lakeland,31/07/2017,Business Support Community Services,Transport Planning Policy,http://opendatacommunities.org/def/concept/finance/sercop/objective/107,C T HAYTON LTD,1212766,03/07/2017,69353,14.32,0,Hoes,391200,Construction Engineering
South Lakeland District Council,http://opendatacommunities.org/id/district-council/south-lakeland,31/07/2017,Business Support Community Services,Internal Trading Accounts,,C T HAYTON LTD,1212766,12/07/2017,69586,16.44,0,Shackles,391200,Construction Engineering
South Lakeland District Council,http://opendatacommunities.org/id/district-council/south-lakeland,31/07/2017,ICT Group,Central Services,http://opendatacommunities.org/def/concept/finance/sercop/objective/102,CABLE & WIRELESS UK (VODAFONE),,10/07/2017,69522,3373.35,0,"GSI Convergence Framework, covers 1/4/17",271700,ICT Telecommunications Fixed
South Lakeland District Council,http://opendatacommunities.org/id/district-council/south-lakeland,31/07/2017,Business Support Community Services,Housing Services,http://opendatacommunities.org/def/concept/finance/sercop/objective/108,Landlord,,10/07/2017,69563,400,0,"Monthly rent for 23C Kirkland, Kendal",250010,Housing Letting Agents
South Lakeland District Council,http://opendatacommunities.org/id/district-council/south-lakeland,31/07/2017,Financial Services,Central Services,http://opendatacommunities.org/def/concept/finance/sercop/objective/102,CAPITA BUSINESS SERVICES LTD,2299747,24/07/2017,69408,80695,0,Revs & Benefits System Implementation,261500,HR Training & Conferences
South Lakeland District Council,http://opendatacommunities.org/id/district-council/south-lakeland,31/07/2017,Revenues and Benefits,Central Services,http://opendatacommunities.org/def/concept/finance/sercop/objective/102,CAPITA BUSINESS SERVICES LTD (NCR),,01/07/2017,69862,2605.61,0,2017-18 Internet Payment,261500,HR Training & Conferences
South Lakeland District Council,http://opendatacommunities.org/id/district-council/south-lakeland,31/07/2017,Financial Services,Central Services,http://opendatacommunities.org/def/concept/finance/sercop/objective/102,Capita Secure Information Solutions Ltd,1593831,12/07/2017,69432,2138.9,0,Purchase Ordering software maintenance,271600,ICT Software Customised & Bespoke
South Lakeland District Council,http://opendatacommunities.org/id/district-council/south-lakeland,31/07/2017,Financial Services,Central Services,http://opendatacommunities.org/def/concept/finance/sercop/objective/102,Capita Secure Information Solutions Ltd,1593831,31/07/2017,70032,980,0,Integra 2 test upgrade consultancy,271600,ICT Software Customised & Bespoke
South Lakeland District Council,http://opendatacommunities.org/id/district-council/south-lakeland,31/07/2017,Business Support Community Services,Internal Trading Accounts,,CENTRAL DIESEL,,17/07/2017,69717,788.45,0,Repair SL062,381100,Vehicle Mgt Fuel
South Lakeland District Council,http://opendatacommunities.org/id/district-council/south-lakeland,31/07/2017,Human Resources,Central Services,http://opendatacommunities.org/def/concept/finance/sercop/objective/102,Choose Occupational Health,7365943,12/07/2017,69600,213.5,0,Ill Health Retirement Assessment,191800,Facilities Public Relations & Image
South Lakeland District Council,http://opendatacommunities.org/id/district-council/south-lakeland,31/07/2017,Human Resources,Central Services,http://opendatacommunities.org/def/concept/finance/sercop/objective/102,Choose Occupational Health,7365943,12/07/2017,69602,790,0,Pre-employment medical,191800,Facilities Public Relations & Image
South Lakeland District Council,http://opendatacommunities.org/id/district-council/south-lakeland,31/07/2017,Development Management,Cultural Environmental Regulatory & Planning Services,http://opendatacommunities.org/def/concept/finance/sercop/objective/104,CHRIS BOWKER LTD,1642561,24/07/2017,69839,30,0,Checking of electrical,101100,Building Electrical
South Lakeland District Council,http://opendatacommunities.org/id/district-council/south-lakeland,31/07/2017,Development Management,Cultural Environmental Regulatory & Planning Services,http://opendatacommunities.org/def/concept/finance/sercop/objective/104,CHRIS BOWKER LTD,1642561,31/07/2017,70022,30,0,Checking of electrical,101100,Building Electrical
South Lakeland District Council,http://opendatacommunities.org/id/district-council/south-lakeland,31/07/2017,Development Management,Cultural Environmental Regulatory & Planning Services,http://opendatacommunities.org/def/concept/finance/sercop/objective/104,CHRIS BOWKER LTD,1642561,31/07/2017,70023,30,0,Checking of electrical,101100,Building Electrical
South Lakeland District Council,http://opendatacommunities.org/id/district-council/south-lakeland,31/07/2017,Revenues and Benefits,Central Services,http://opendatacommunities.org/def/concept/finance/sercop/objective/102,CIVICA UK LTD,1628868,17/07/2017,69701,4878.6,0,Data Sharing - IT Costs  (October 2016 -,271600,ICT Software Customised & Bespoke
South Lakeland District Council,http://opendatacommunities.org/id/district-council/south-lakeland,31/07/2017,Business Support Community Services,Internal Trading Accounts,,COMPASS COMPONENTS,,12/07/2017,69605,191.25,0,Consumables 01/04/17 - 31/03/18,101400,Building General Materials
South Lakeland District Council,http://opendatacommunities.org/id/district-council/south-lakeland,31/07/2017,Financial Services,Non-Service Payments,,COMPUTERSHARE VOUCHER SERVICES LTD,4968447,10/07/2017,69526,1430.93,0,Computershare child care vouchers. New,202100,Financial Services Subscriptions
South Lakeland District Council,http://opendatacommunities.org/id/district-council/south-lakeland,31/07/2017,Leisure and Wellbeing,Highways & Transport Services,http://opendatacommunities.org/def/concept/finance/sercop/objective/107,CONTINENTAL LANDSCAPES LTD,2108452,12/07/2017,69528,12.15,0,Parks routine maintenance,391310,Construction Open Spaces Construction
South Lakeland District Council,http://opendatacommunities.org/id/district-council/south-lakeland,31/07/2017,Leisure and Wellbeing,Highways & Transport Services,http://opendatacommunities.org/def/concept/finance/sercop/objective/107,CONTINENTAL LANDSCAPES LTD,2108452,12/07/2017,69528,12.15,0,Parks routine maintenance,391310,Construction Open Spaces Construction
South Lakeland District Council,http://opendatacommunities.org/id/district-council/south-lakeland,31/07/2017,Leisure and Wellbeing,Highways & Transport Services,http://opendatacommunities.org/def/concept/finance/sercop/objective/107,CONTINENTAL LANDSCAPES LTD,2108452,12/07/2017,69528,1.22,0,Parks routine maintenance,391310,Construction Open Spaces Construction
South Lakeland District Council,http://opendatacommunities.org/id/district-council/south-lakeland,31/07/2017,Leisure and Wellbeing,Highways & Transport Services,http://opendatacommunities.org/def/concept/finance/sercop/objective/107,CONTINENTAL LANDSCAPES LTD,2108452,12/07/2017,69528,12.15,0,Parks routine maintenance,391310,Construction Open Spaces Construction
South Lakeland District Council,http://opendatacommunities.org/id/district-council/south-lakeland,31/07/2017,Leisure and Wellbeing,Highways & Transport Services,http://opendatacommunities.org/def/concept/finance/sercop/objective/107,CONTINENTAL LANDSCAPES LTD,2108452,12/07/2017,69528,12.15,0,Parks routine maintenance,391310,Construction Open Spaces Construction
South Lakeland District Council,http://opendatacommunities.org/id/district-council/south-lakeland,31/07/2017,Leisure and Wellbeing,Highways & Transport Services,http://opendatacommunities.org/def/concept/finance/sercop/objective/107,CONTINENTAL LANDSCAPES LTD,2108452,12/07/2017,69528,12.15,0,Parks routine maintenance,391310,Construction Open Spaces Construction
South Lakeland District Council,http://opendatacommunities.org/id/district-council/south-lakeland,31/07/2017,Leisure and Wellbeing,Highways & Transport Services,http://opendatacommunities.org/def/concept/finance/sercop/objective/107,CONTINENTAL LANDSCAPES LTD,2108452,12/07/2017,69528,36.46,0,Parks routine maintenance,391310,Construction Open Spaces Construction
South Lakeland District Council,http://opendatacommunities.org/id/district-council/south-lakeland,31/07/2017,Leisure and Wellbeing,Highways & Transport Services,http://opendatacommunities.org/def/concept/finance/sercop/objective/107,CONTINENTAL LANDSCAPES LTD,2108452,12/07/2017,69528,243.05,0,Parks routine maintenance,391310,Construction Open Spaces Construction
South Lakeland District Council,http://opendatacommunities.org/id/district-council/south-lakeland,31/07/2017,Leisure and Wellbeing,Highways & Transport Services,http://opendatacommunities.org/def/concept/finance/sercop/objective/107,CONTINENTAL LANDSCAPES LTD,2108452,12/07/2017,69528,151.91,0,Parks routine maintenance,391310,Construction Open Spaces Construction
South Lakeland District Council,http://opendatacommunities.org/id/district-council/south-lakeland,31/07/2017,Leisure and Wellbeing,Highways & Transport Services,http://opendatacommunities.org/def/concept/finance/sercop/objective/107,CONTINENTAL LANDSCAPES LTD,2108452,12/07/2017,69528,6.08,0,Parks routine maintenance,391310,Construction Open Spaces Construction
South Lakeland District Council,http://opendatacommunities.org/id/district-council/south-lakeland,31/07/2017,Leisure and Wellbeing,Highways & Transport Services,http://opendatacommunities.org/def/concept/finance/sercop/objective/107,CONTINENTAL LANDSCAPES LTD,2108452,12/07/2017,69528,60.76,0,Parks routine maintenance,391310,Construction Open Spaces Construction
South Lakeland District Council,http://opendatacommunities.org/id/district-council/south-lakeland,31/07/2017,Leisure and Wellbeing,Highways & Transport Services,http://opendatacommunities.org/def/concept/finance/sercop/objective/107,CONTINENTAL LANDSCAPES LTD,2108452,12/07/2017,69528,60.76,0,Parks routine maintenance,391310,Construction Open Spaces Construction
South Lakeland District Council,http://opendatacommunities.org/id/district-council/south-lakeland,31/07/2017,Leisure and Wellbeing,Highways & Transport Services,http://opendatacommunities.org/def/concept/finance/sercop/objective/107,CONTINENTAL LANDSCAPES LTD,2108452,12/07/2017,69528,121.53,0,Parks routine maintenance,391310,Construction Open Spaces Construction
South Lakeland District Council,http://opendatacommunities.org/id/district-council/south-lakeland,31/07/2017,Leisure and Wellbeing,Highways & Transport Services,http://opendatacommunities.org/def/concept/finance/sercop/objective/107,CONTINENTAL LANDSCAPES LTD,2108452,12/07/2017,69528,48.61,0,Parks routine maintenance,391310,Construction Open Spaces Construction
South Lakeland District Council,http://opendatacommunities.org/id/district-council/south-lakeland,31/07/2017,Leisure and Wellbeing,Highways & Transport Services,http://opendatacommunities.org/def/concept/finance/sercop/objective/107,CONTINENTAL LANDSCAPES LTD,2108452,12/07/2017,69528,6.08,0,Parks routine maintenance,391310,Construction Open Spaces Construction
South Lakeland District Council,http://opendatacommunities.org/id/district-council/south-lakeland,31/07/2017,Leisure and Wellbeing,Highways & Transport Services,http://opendatacommunities.org/def/concept/finance/sercop/objective/107,CONTINENTAL LANDSCAPES LTD,2108452,12/07/2017,69528,6.08,0,Parks routine maintenance,391310,Construction Open Spaces Construction
South Lakeland District Council,http://opendatacommunities.org/id/district-council/south-lakeland,31/07/2017,Leisure and Wellbeing,Highways & Transport Services,http://opendatacommunities.org/def/concept/finance/sercop/objective/107,CONTINENTAL LANDSCAPES LTD,2108452,12/07/2017,69528,3.04,0,Parks routine maintenance,391310,Construction Open Spaces Construction
South Lakeland District Council,http://opendatacommunities.org/id/district-council/south-lakeland,31/07/2017,Leisure and Wellbeing,Highways & Transport Services,http://opendatacommunities.org/def/concept/finance/sercop/objective/107,CONTINENTAL LANDSCAPES LTD,2108452,12/07/2017,69528,60.76,0,Parks routine maintenance,391310,Construction Open Spaces Construction
South Lakeland District Council,http://opendatacommunities.org/id/district-council/south-lakeland,31/07/2017,Leisure and Wellbeing,Highways & Transport Services,http://opendatacommunities.org/def/concept/finance/sercop/objective/107,CONTINENTAL LANDSCAPES LTD,2108452,12/07/2017,69528,54.69,0,Parks routine maintenance,391310,Construction Open Spaces Construction
South Lakeland District Council,http://opendatacommunities.org/id/district-council/south-lakeland,31/07/2017,Leisure and Wellbeing,Highways & Transport Services,http://opendatacommunities.org/def/concept/finance/sercop/objective/107,CONTINENTAL LANDSCAPES LTD,2108452,12/07/2017,69528,66.84,0,Parks routine maintenance,391310,Construction Open Spaces Construction
South Lakeland District Council,http://opendatacommunities.org/id/district-council/south-lakeland,31/07/2017,Leisure and Wellbeing,Highways & Transport Services,http://opendatacommunities.org/def/concept/finance/sercop/objective/107,CONTINENTAL LANDSCAPES LTD,2108452,12/07/2017,69528,127.6,0,Parks routine maintenance,391310,Construction Open Spaces Construction
South Lakeland District Council,http://opendatacommunities.org/id/district-council/south-lakeland,31/07/2017,Leisure and Wellbeing,Highways & Transport Services,http://opendatacommunities.org/def/concept/finance/sercop/objective/107,CONTINENTAL LANDSCAPES LTD,2108452,12/07/2017,69528,121.53,0,Parks routine maintenance,391310,Construction Open Spaces Construction
South Lakeland District Council,http://opendatacommunities.org/id/district-council/south-lakeland,31/07/2017,Leisure and Wellbeing,Highways & Transport Services,http://opendatacommunities.org/def/concept/finance/sercop/objective/107,CONTINENTAL LANDSCAPES LTD,2108452,12/07/2017,69528,12.15,0,Parks routine maintenance,391310,Construction Open Spaces Construction
South Lakeland District Council,http://opendatacommunities.org/id/district-council/south-lakeland,31/07/2017,Leisure and Wellbeing,Highways & Transport Services,http://opendatacommunities.org/def/concept/finance/sercop/objective/107,CONTINENTAL LANDSCAPES LTD,2108452,12/07/2017,69528,12.15,0,Parks routine maintenance,391310,Construction Open Spaces Construction
South Lakeland District Council,http://opendatacommunities.org/id/district-council/south-lakeland,31/07/2017,Leisure and Wellbeing,Highways & Transport Services,http://opendatacommunities.org/def/concept/finance/sercop/objective/107,CONTINENTAL LANDSCAPES LTD,2108452,12/07/2017,69528,36.46,0,Parks routine maintenance,391310,Construction Open Spaces Construction
South Lakeland District Council,http://opendatacommunities.org/id/district-council/south-lakeland,31/07/2017,Leisure and Wellbeing,Highways & Transport Services,http://opendatacommunities.org/def/concept/finance/sercop/objective/107,CONTINENTAL LANDSCAPES LTD,2108452,12/07/2017,69528,60.76,0,Parks routine maintenance,391310,Construction Open Spaces Construction
South Lakeland District Council,http://opendatacommunities.org/id/district-council/south-lakeland,31/07/2017,Leisure and Wellbeing,Highways & Transport Services,http://opendatacommunities.org/def/concept/finance/sercop/objective/107,CONTINENTAL LANDSCAPES LTD,2108452,12/07/2017,69528,108.1,0,Parks routine maintenance,391310,Construction Open Spaces Construction
South Lakeland District Council,http://opendatacommunities.org/id/district-council/south-lakeland,31/07/2017,Leisure and Wellbeing,Highways & Transport Services,http://opendatacommunities.org/def/concept/finance/sercop/objective/107,CONTINENTAL LANDSCAPES LTD,2108452,12/07/2017,69528,121.53,0,Parks routine maintenance,391310,Construction Open Spaces Construction
South Lakeland District Council,http://opendatacommunities.org/id/district-council/south-lakeland,31/07/2017,Leisure and Wellbeing,Highways & Transport Services,http://opendatacommunities.org/def/concept/finance/sercop/objective/107,CONTINENTAL LANDSCAPES LTD,2108452,12/07/2017,69528,224.83,0,Parks routine maintenance,391310,Construction Open Spaces Construction
South Lakeland District Council,http://opendatacommunities.org/id/district-council/south-lakeland,31/07/2017,Leisure and Wellbeing,Highways & Transport Services,http://opendatacommunities.org/def/concept/finance/sercop/objective/107,CONTINENTAL LANDSCAPES LTD,2108452,12/07/2017,69528,121.53,0,Parks routine maintenance,391310,Construction Open Spaces Construction
South Lakeland District Council,http://opendatacommunities.org/id/district-council/south-lakeland,31/07/2017,Leisure and Wellbeing,Highways & Transport Services,http://opendatacommunities.org/def/concept/finance/sercop/objective/107,CONTINENTAL LANDSCAPES LTD,2108452,12/07/2017,69528,182.29,0,Parks routine maintenance,391310,Construction Open Spaces Construction
South Lakeland District Council,http://opendatacommunities.org/id/district-council/south-lakeland,31/07/2017,Leisure and Wellbeing,Cultural Environmental Regulatory & Planning Services,http://opendatacommunities.org/def/concept/finance/sercop/objective/104,CONTINENTAL LANDSCAPES LTD,2108452,12/07/2017,69528,9722.17,0,Parks routine maintenance,391310,Construction Open Spaces Construction
South Lakeland District Council,http://opendatacommunities.org/id/district-council/south-lakeland,31/07/2017,Leisure and Wellbeing,Cultural Environmental Regulatory & Planning Services,http://opendatacommunities.org/def/concept/finance/sercop/objective/104,CONTINENTAL LANDSCAPES LTD,2108452,12/07/2017,69528,46537.78,0,Parks routine maintenance,391310,Construction Open Spaces Construction
South Lakeland District Council,http://opendatacommunities.org/id/district-council/south-lakeland,31/07/2017,Leisure and Wellbeing,Cultural Environmental Regulatory & Planning Services,http://opendatacommunities.org/def/concept/finance/sercop/objective/104,CONTINENTAL LANDSCAPES LTD,2108452,12/07/2017,69528,364.58,0,Parks routine maintenance,391310,Construction Open Spaces Construction
South Lakeland District Council,http://opendatacommunities.org/id/district-council/south-lakeland,31/07/2017,Leisure and Wellbeing,Cultural Environmental Regulatory & Planning Services,http://opendatacommunities.org/def/concept/finance/sercop/objective/104,CONTINENTAL LANDSCAPES LTD,2108452,12/07/2017,69528,2309.02,0,Parks routine maintenance,391310,Construction Open Spaces Construction
South Lakeland District Council,http://opendatacommunities.org/id/district-council/south-lakeland,31/07/2017,Leisure and Wellbeing,External Trading Accounts,,CONTINENTAL LANDSCAPES LTD,2108452,12/07/2017,69528,106.34,0,Parks routine maintenance,391310,Construction Open Spaces Construction
South Lakeland District Council,http://opendatacommunities.org/id/district-council/south-lakeland,31/07/2017,Social Enterprise Admin,Cultural Environmental Regulatory & Planning Services,http://opendatacommunities.org/def/concept/finance/sercop/objective/104,CONTINENTAL LANDSCAPES LTD,2108452,10/07/2017,69529,2000,0,For disposal of waste to Kendal Fell,391310,Construction Open Spaces Construction
South Lakeland District Council,http://opendatacommunities.org/id/district-council/south-lakeland,31/07/2017,Leisure and Wellbeing,Cultural Environmental Regulatory & Planning Services,http://opendatacommunities.org/def/concept/finance/sercop/objective/104,CONTINENTAL LANDSCAPES LTD,2108452,10/07/2017,69530,3647.15,0,Gravedigging for June 2017,391310,Construction Open Spaces Construction
South Lakeland District Council,http://opendatacommunities.org/id/district-council/south-lakeland,31/07/2017,Cemeteries Office,Cultural Environmental Regulatory & Planning Services,http://opendatacommunities.org/def/concept/finance/sercop/objective/104,COOPER ENGRAVING,,10/07/2017,69512,35,0,"1 off 4"" by 2"" approx (or best fit)",102400,Building Signage
South Lakeland District Council,http://opendatacommunities.org/id/district-council/south-lakeland,31/07/2017,Human Resources,Cultural Environmental Regulatory & Planning Services,http://opendatacommunities.org/def/concept/finance/sercop/objective/104,Countryside Jobs Search,,19/07/2017,69772,85,0,Parks and Open Spaces Apprentice,261300,HR Recruitment & Assessment
South Lakeland District Council,http://opendatacommunities.org/id/district-council/south-lakeland,31/07/2017,Development Implementation,Culture and Related Serv,http://opendatacommunities.org/def/concept/finance/sercop/objective/104,COX & ALLEN (KENDAL) LTD,1611371,10/07/2017,69494,40275.45,0,Castle Dairy Flood Works,391110,Construction Buildings Construction
South Lakeland District Council,http://opendatacommunities.org/id/district-council/south-lakeland,31/07/2017,Development Implementation,Central Services,http://opendatacommunities.org/def/concept/finance/sercop/objective/102,COX & ALLEN (KENDAL) LTD,1611371,31/07/2017,69957,12748.47,0,"Age Concern Building Refurbishment,",391110,Construction Buildings Construction
South Lakeland District Council,http://opendatacommunities.org/id/district-council/south-lakeland,31/07/2017,Social Enterprise Admin,Highways & Transport Services,http://opendatacommunities.org/def/concept/finance/sercop/objective/107,CREDIT CALL LTD (NCR),,01/07/2017,69747,1246.96,0,Credit call commission 2017/18,209999,Financial Services Not Elsewhere Classif
South Lakeland District Council,http://opendatacommunities.org/id/district-council/south-lakeland,31/07/2017,Social Enterprise Admin,Culture and Related Serv,http://opendatacommunities.org/def/concept/finance/sercop/objective/104,CRUDEN PROPERTY SERVICES LTD,3851237,17/07/2017,69726,13242.17,0,For the first floor extension to,391111,Construction Buildings Repair & Mtce
South Lakeland District Council,http://opendatacommunities.org/id/district-council/south-lakeland,31/07/2017,Business Support Community Services,SLDC as Agent,,CUMBRIA COUNTY COUNCIL,,05/07/2017,68482,108,0,DBS Checks for Taxi Drivers,908000,Public Bodies Council support services
South Lakeland District Council,http://opendatacommunities.org/id/district-council/south-lakeland,31/07/2017,Business Support Community Services,SLDC as Agent,,CUMBRIA COUNTY COUNCIL,,03/07/2017,69278,108,0,DBS Checks for Taxi Drivers,908000,Public Bodies Council support services
South Lakeland District Council,http://opendatacommunities.org/id/district-council/south-lakeland,31/07/2017,Development Implementation,Cultural Environmental Regulatory & Planning Services,http://opendatacommunities.org/def/concept/finance/sercop/objective/104,CUMBRIA COUNTY COUNCIL,,05/07/2017,69433,250,0,Contribution to Furness Line Community,908000,Public Bodies Council support services
South Lakeland District Council,http://opendatacommunities.org/id/district-council/south-lakeland,31/07/2017,Development Implementation,Cultural Environmental Regulatory & Planning Services,http://opendatacommunities.org/def/concept/finance/sercop/objective/104,CUMBRIA COUNTY COUNCIL,,05/07/2017,69434,250,0,Contribution to Lakes Line Community,908000,Public Bodies Council support services
South Lakeland District Council,http://opendatacommunities.org/id/district-council/south-lakeland,31/07/2017,Leisure and Wellbeing,Cultural Environmental Regulatory & Planning Services,http://opendatacommunities.org/def/concept/finance/sercop/objective/104,CUMBRIA COUNTY COUNCIL,,10/07/2017,69510,50,0,"Rent for playground at Castlefield,",908000,Public Bodies Council support services
South Lakeland District Council,http://opendatacommunities.org/id/district-council/south-lakeland,31/07/2017,Business Support Community Services,SLDC as Agent,,CUMBRIA COUNTY COUNCIL,,12/07/2017,69615,54,0,DBS Checks for Taxi Drivers,908000,Public Bodies Council support services
South Lakeland District Council,http://opendatacommunities.org/id/district-council/south-lakeland,31/07/2017,Human Resources,Central Services,http://opendatacommunities.org/def/concept/finance/sercop/objective/102,CUMBRIA COUNTY COUNCIL,,17/07/2017,69703,1075.2,0,XPERT HR LICENCE 09.06.2017,908000,Public Bodies Council support services
South Lakeland District Council,http://opendatacommunities.org/id/district-council/south-lakeland,31/07/2017,Business Support Community Services,SLDC as Agent,,CUMBRIA COUNTY COUNCIL,,24/07/2017,69866,54,0,DBS Checks for Taxi Drivers,908000,Public Bodies Council support services
South Lakeland District Council,http://opendatacommunities.org/id/district-council/south-lakeland,31/07/2017,Business Support Community Services,SLDC as Agent,,CUMBRIA COUNTY COUNCIL,,31/07/2017,70020,54,0,DBS Checks for Taxi Drivers,908000,Public Bodies Council support services
South Lakeland District Council,http://opendatacommunities.org/id/district-council/south-lakeland,31/07/2017,Business Support Community Services,Internal Trading Accounts,,CUMBRIA TRUCK CENTRE LTD,4298488,03/07/2017,69362,892.62,0,Seal kits,381300,Vehicle Mgt Industrial
South Lakeland District Council,http://opendatacommunities.org/id/district-council/south-lakeland,31/07/2017,Business Support Community Services,Internal Trading Accounts,,CUMBRIA TRUCK CENTRE LTD,4298488,05/07/2017,69421,533.76,0,Spring,381300,Vehicle Mgt Industrial
South Lakeland District Council,http://opendatacommunities.org/id/district-council/south-lakeland,31/07/2017,Business Support Community Services,Internal Trading Accounts,,CUMBRIA TRUCK CENTRE LTD,4298488,10/07/2017,69463,337.58,0,Bumper,381300,Vehicle Mgt Industrial
South Lakeland District Council,http://opendatacommunities.org/id/district-council/south-lakeland,31/07/2017,Business Support Community Services,Internal Trading Accounts,,CUMBRIA TRUCK CENTRE LTD,4298488,24/07/2017,69858,35.02,0,Pipe,381300,Vehicle Mgt Industrial
South Lakeland District Council,http://opendatacommunities.org/id/district-council/south-lakeland,31/07/2017,Development Implementation,Cultural Environmental Regulatory & Planning Services,http://opendatacommunities.org/def/concept/finance/sercop/objective/104,CUMBRIA WASTE RECYCLING LTD,3162439,17/07/2017,69633,112.4,0,"Waste Collection at 124 Highgate, Kendal",182012,Environment Waste Management Recycling
South Lakeland District Council,http://opendatacommunities.org/id/district-council/south-lakeland,31/07/2017,Lake Wardens,Cultural Environmental Regulatory & Planning Services,http://opendatacommunities.org/def/concept/finance/sercop/objective/104,CUMBRIA WASTE RECYCLING LTD,3162439,17/07/2017,69640,246.08,0,Monthly collection of Refuse Wheelie,182012,Environment Waste Management Recycling
South Lakeland District Council,http://opendatacommunities.org/id/district-council/south-lakeland,31/07/2017,Social Enterprise Admin,Highways & Transport Services,http://opendatacommunities.org/def/concept/finance/sercop/objective/107,CUMBRIA WASTE RECYCLING LTD,3162439,17/07/2017,69641,62.32,0,Westmorland Multistorey 60 ltr bin April,182012,Environment Waste Management Recycling
South Lakeland District Council,http://opendatacommunities.org/id/district-council/south-lakeland,31/07/2017,Development Implementation,Central Services,http://opendatacommunities.org/def/concept/finance/sercop/objective/102,CUMBRIA WASTE RECYCLING LTD,3162439,17/07/2017,69642,60.4,0,Ulverston Town Hall Queen Street 1,182012,Environment Waste Management Recycling
South Lakeland District Council,http://opendatacommunities.org/id/district-council/south-lakeland,31/07/2017,Kendal Town Hall,Cultural Environmental Regulatory & Planning Services,http://opendatacommunities.org/def/concept/finance/sercop/objective/104,CUMBRIA WASTE RECYCLING LTD,3162439,12/07/2017,69643,170,0,Weekly collection of mixed waste bins,182012,Environment Waste Management Recycling
South Lakeland District Council,http://opendatacommunities.org/id/district-council/south-lakeland,31/07/2017,Development Implementation,Central Services,http://opendatacommunities.org/def/concept/finance/sercop/objective/102,CUMBRIA WASTE RECYCLING LTD,3162439,17/07/2017,69644,238.5,0,South Lakeland House bin & skip emptying,182012,Environment Waste Management Recycling
South Lakeland District Council,http://opendatacommunities.org/id/district-council/south-lakeland,31/07/2017,Lake Wardens,Cultural Environmental Regulatory & Planning Services,http://opendatacommunities.org/def/concept/finance/sercop/objective/104,CUMBRIA WASTE RECYCLING LTD,3162439,17/07/2017,69645,271.6,0,Monthly collection of Refuse Wheelie,182012,Environment Waste Management Recycling
South Lakeland District Council,http://opendatacommunities.org/id/district-council/south-lakeland,31/07/2017,Development Implementation,Central Services,http://opendatacommunities.org/def/concept/finance/sercop/objective/102,CUMBRIA WASTE RECYCLING LTD,3162439,17/07/2017,69646,41.75,0,Langstone House 360ltr Wheelie Bin,182012,Environment Waste Management Recycling
South Lakeland District Council,http://opendatacommunities.org/id/district-council/south-lakeland,31/07/2017,Cemeteries Office,Cultural Environmental Regulatory & Planning Services,http://opendatacommunities.org/def/concept/finance/sercop/objective/104,CUMBRIA WASTE RECYCLING LTD,3162439,17/07/2017,69684,41.75,0,Cemetery Waste Bin Emptying 2017-18,182012,Environment Waste Management Recycling
South Lakeland District Council,http://opendatacommunities.org/id/district-council/south-lakeland,31/07/2017,Cemeteries Office,Cultural Environmental Regulatory & Planning Services,http://opendatacommunities.org/def/concept/finance/sercop/objective/104,CUMBRIA WASTE RECYCLING LTD,3162439,17/07/2017,69685,36.25,0,Cemetery Waste Bin Emptying 2017-18,182012,Environment Waste Management Recycling
South Lakeland District Council,http://opendatacommunities.org/id/district-council/south-lakeland,31/07/2017,Cemeteries Office,Cultural Environmental Regulatory & Planning Services,http://opendatacommunities.org/def/concept/finance/sercop/objective/104,CUMBRIA WASTE RECYCLING LTD,3162439,17/07/2017,69686,86.84,0,Cemetery Waste Bin Emptying 2017-18,182012,Environment Waste Management Recycling
South Lakeland District Council,http://opendatacommunities.org/id/district-council/south-lakeland,31/07/2017,Cemeteries Office,Cultural Environmental Regulatory & Planning Services,http://opendatacommunities.org/def/concept/finance/sercop/objective/104,CUMBRIA WASTE RECYCLING LTD,3162439,17/07/2017,69687,83.5,0,Cemetery Waste Bin Emptying 2017-18,182012,Environment Waste Management Recycling
South Lakeland District Council,http://opendatacommunities.org/id/district-council/south-lakeland,31/07/2017,Cemeteries Office,Cultural Environmental Regulatory & Planning Services,http://opendatacommunities.org/def/concept/finance/sercop/objective/104,CUMBRIA WASTE RECYCLING LTD,3162439,17/07/2017,69688,64.25,0,Cemetery Waste Bin Emptying 2017-18,182012,Environment Waste Management Recycling
South Lakeland District Council,http://opendatacommunities.org/id/district-council/south-lakeland,31/07/2017,Cemeteries Office,Cultural Environmental Regulatory & Planning Services,http://opendatacommunities.org/def/concept/finance/sercop/objective/104,CUMBRIA WASTE RECYCLING LTD,3162439,17/07/2017,69689,54.45,0,Cemetery Waste Bin Emptying 2017-18,182012,Environment Waste Management Recycling
South Lakeland District Council,http://opendatacommunities.org/id/district-council/south-lakeland,31/07/2017,Cemeteries Office,Cultural Environmental Regulatory & Planning Services,http://opendatacommunities.org/def/concept/finance/sercop/objective/104,CUMBRIA WASTE RECYCLING LTD,3162439,17/07/2017,69690,108.4,0,Cemetery Waste Bin Emptying 2017-18,182012,Environment Waste Management Recycling
South Lakeland District Council,http://opendatacommunities.org/id/district-council/south-lakeland,31/07/2017,Business Support Community Services,Cultural Environmental Regulatory & Planning Services,http://opendatacommunities.org/def/concept/finance/sercop/objective/104,CUMBRIA WASTE RECYCLING LTD,3162439,19/07/2017,69806,15017.3,0,Empty recycling banks in April to,182012,Environment Waste Management Recycling
South Lakeland District Council,http://opendatacommunities.org/id/district-council/south-lakeland,31/07/2017,Business Support Community Services,Cultural Environmental Regulatory & Planning Services,http://opendatacommunities.org/def/concept/finance/sercop/objective/104,CUMBRIA WASTE RECYCLING LTD,3162439,24/07/2017,69848,260.39,0,Provision of waste skips at 4 sites for,182012,Environment Waste Management Recycling
South Lakeland District Council,http://opendatacommunities.org/id/district-council/south-lakeland,31/07/2017,Business Support Community Services,Cultural Environmental Regulatory & Planning Services,http://opendatacommunities.org/def/concept/finance/sercop/objective/104,CUMBRIA WASTE RECYCLING LTD,3162439,24/07/2017,69849,248.78,0,Provision of waste skips at 4 sites for,182012,Environment Waste Management Recycling
South Lakeland District Council,http://opendatacommunities.org/id/district-council/south-lakeland,31/07/2017,Business Support Community Services,Cultural Environmental Regulatory & Planning Services,http://opendatacommunities.org/def/concept/finance/sercop/objective/104,CUMBRIA WASTE RECYCLING LTD,3162439,24/07/2017,69850,367.2,0,Provision of waste skips at 4 sites for,182012,Environment Waste Management Recycling
South Lakeland District Council,http://opendatacommunities.org/id/district-council/south-lakeland,31/07/2017,Business Support Community Services,Cultural Environmental Regulatory & Planning Services,http://opendatacommunities.org/def/concept/finance/sercop/objective/104,CUMBRIA WASTE RECYCLING LTD,3162439,24/07/2017,69851,244.13,0,Provision of waste skips at 4 sites for,182012,Environment Waste Management Recycling
South Lakeland District Council,http://opendatacommunities.org/id/district-council/south-lakeland,31/07/2017,Business Support Community Services,Internal Trading Accounts,,CUMBRIA WASTE RECYCLING LTD,3162439,24/07/2017,69897,354,0,Skip emptying at Ecclerigg & Ulverston,182012,Environment Waste Management Recycling
South Lakeland District Council,http://opendatacommunities.org/id/district-council/south-lakeland,31/07/2017,Business Support Community Services,Internal Trading Accounts,,CUMBRIA WASTE RECYCLING LTD,3162439,24/07/2017,69898,1870.24,0,Skip emptying at Ecclerigg & Ulverston,182012,Environment Waste Management Recycling
South Lakeland District Council,http://opendatacommunities.org/id/district-council/south-lakeland,31/07/2017,ICT Group,Central Services,http://opendatacommunities.org/def/concept/finance/sercop/objective/102,DAISY COMMUNICATIONS LTD,4145329,26/07/2017,69651,367.56,0,"Daisy Line Rental, various numbers,",271700,ICT Telecommunications Fixed
South Lakeland District Council,http://opendatacommunities.org/id/district-council/south-lakeland,31/07/2017,ICT Group,Central Services,http://opendatacommunities.org/def/concept/finance/sercop/objective/102,DAISY COMMUNICATIONS LTD,4145329,26/07/2017,69651,116.74,0,"Daisy Line Rental, various numbers,",271700,ICT Telecommunications Fixed
South Lakeland District Council,http://opendatacommunities.org/id/district-council/south-lakeland,31/07/2017,ICT Group,Central Services,http://opendatacommunities.org/def/concept/finance/sercop/objective/102,DAISY COMMUNICATIONS LTD,4145329,26/07/2017,69691,-27.66,0,"Daisy Line Rental, various numbers,",271700,ICT Telecommunications Fixed
South Lakeland District Council,http://opendatacommunities.org/id/district-council/south-lakeland,31/07/2017,Business Support Community Services,Internal Trading Accounts,,DAVID HAYTON LTD,2312632,24/07/2017,69859,48.98,0,Clutch,381500,Vehicle Mgt Parts
South Lakeland District Council,http://opendatacommunities.org/id/district-council/south-lakeland,31/07/2017,Business Support Community Services,Internal Trading Accounts,,DENNIS EAGLE LTD,3794455,05/07/2017,69416,20.64,0,Panel,381300,Vehicle Mgt Industrial
South Lakeland District Council,http://opendatacommunities.org/id/district-council/south-lakeland,31/07/2017,Business Support Community Services,Internal Trading Accounts,,DENNIS EAGLE LTD,3794455,12/07/2017,69571,50.81,0,Panel,381300,Vehicle Mgt Industrial
South Lakeland District Council,http://opendatacommunities.org/id/district-council/south-lakeland,31/07/2017,Business Support Community Services,Internal Trading Accounts,,DENNIS EAGLE LTD,3794455,12/07/2017,69592,71.64,0,Panel,381300,Vehicle Mgt Industrial
South Lakeland District Council,http://opendatacommunities.org/id/district-council/south-lakeland,31/07/2017,Business Support Community Services,Internal Trading Accounts,,DENNIS EAGLE LTD,3794455,12/07/2017,69593,152.94,0,Panel,381300,Vehicle Mgt Industrial
South Lakeland District Council,http://opendatacommunities.org/id/district-council/south-lakeland,31/07/2017,Business Support Community Services,Internal Trading Accounts,,DENNIS EAGLE LTD,3794455,17/07/2017,69707,49.71,0,Bottle,381300,Vehicle Mgt Industrial
South Lakeland District Council,http://opendatacommunities.org/id/district-council/south-lakeland,31/07/2017,Business Support Community Services,Internal Trading Accounts,,DENNIS EAGLE LTD,3794455,17/07/2017,69708,123.44,0,Part,381300,Vehicle Mgt Industrial
South Lakeland District Council,http://opendatacommunities.org/id/district-council/south-lakeland,31/07/2017,Business Support Community Services,Internal Trading Accounts,,DENNIS EAGLE LTD,3794455,17/07/2017,69709,220.79,0,Part,381300,Vehicle Mgt Industrial
South Lakeland District Council,http://opendatacommunities.org/id/district-council/south-lakeland,31/07/2017,Business Support Community Services,Internal Trading Accounts,,DRIVELINE & HYDRAULIC ENGINEERING LTD,5527968,26/07/2017,69964,325,0,Repair SL073,391200,Construction Engineering
South Lakeland District Council,http://opendatacommunities.org/id/district-council/south-lakeland,31/07/2017,Business Support Community Services,Internal Trading Accounts,,Dundee Tyres Ltd T/A Tyrebin,6949335,24/07/2017,69885,108,0,Disposals,182012,Environment Waste Management Recycling
South Lakeland District Council,http://opendatacommunities.org/id/district-council/south-lakeland,31/07/2017,Business Support Community Services,Housing Services,http://opendatacommunities.org/def/concept/finance/sercop/objective/108,Eden Property Lettings - Deposits,,24/07/2017,69966,550,0, Deposit,250010,Housing Letting Agents
South Lakeland District Council,http://opendatacommunities.org/id/district-council/south-lakeland,31/07/2017,Business Support Community Services,Housing Services,http://opendatacommunities.org/def/concept/finance/sercop/objective/108,Eden Property Lettings - Rent,,24/07/2017,69967,550,0, Rent in Advance,250010,Housing Letting Agents
South Lakeland District Council,http://opendatacommunities.org/id/district-council/south-lakeland,31/07/2017,Business Support Community Services,Internal Trading Accounts,,EK MOTOR FACTORS LTD,838524,03/07/2017,69352,78.78,0,Part,381400,Vehicle Mgt Maintenance
South Lakeland District Council,http://opendatacommunities.org/id/district-council/south-lakeland,31/07/2017,Business Support Community Services,Internal Trading Accounts,,EK MOTOR FACTORS LTD,838524,03/07/2017,69357,71,0,Blades,381400,Vehicle Mgt Maintenance
South Lakeland District Council,http://opendatacommunities.org/id/district-council/south-lakeland,31/07/2017,Business Support Community Services,Internal Trading Accounts,,EK MOTOR FACTORS LTD,838524,05/07/2017,69417,36.39,0,Part,381400,Vehicle Mgt Maintenance
South Lakeland District Council,http://opendatacommunities.org/id/district-council/south-lakeland,31/07/2017,Business Support Community Services,Internal Trading Accounts,,EK MOTOR FACTORS LTD,838524,10/07/2017,69464,38.86,0,Part,381400,Vehicle Mgt Maintenance
South Lakeland District Council,http://opendatacommunities.org/id/district-council/south-lakeland,31/07/2017,Business Support Community Services,Internal Trading Accounts,,EK MOTOR FACTORS LTD,838524,10/07/2017,69465,-5.74,0,Part,381400,Vehicle Mgt Maintenance
South Lakeland District Council,http://opendatacommunities.org/id/district-council/south-lakeland,31/07/2017,Business Support Community Services,Internal Trading Accounts,,EK MOTOR FACTORS LTD,838524,10/07/2017,69466,11.49,0,Part,381400,Vehicle Mgt Maintenance
South Lakeland District Council,http://opendatacommunities.org/id/district-council/south-lakeland,31/07/2017,Business Support Community Services,Internal Trading Accounts,,EK MOTOR FACTORS LTD,838524,10/07/2017,69468,35.25,0,Spring,381400,Vehicle Mgt Maintenance
South Lakeland District Council,http://opendatacommunities.org/id/district-council/south-lakeland,31/07/2017,Business Support Community Services,Internal Trading Accounts,,EK MOTOR FACTORS LTD,838524,12/07/2017,69587,9.3,0,Part,381400,Vehicle Mgt Maintenance
South Lakeland District Council,http://opendatacommunities.org/id/district-council/south-lakeland,31/07/2017,Business Support Community Services,Internal Trading Accounts,,EK MOTOR FACTORS LTD,838524,24/07/2017,69665,-82.52,0,Blades,381400,Vehicle Mgt Maintenance
South Lakeland District Council,http://opendatacommunities.org/id/district-council/south-lakeland,31/07/2017,Business Support Community Services,Internal Trading Accounts,,EK MOTOR FACTORS LTD,838524,24/07/2017,69799,50.87,0,Oil filter,381400,Vehicle Mgt Maintenance
South Lakeland District Council,http://opendatacommunities.org/id/district-council/south-lakeland,31/07/2017,Business Support Community Services,Internal Trading Accounts,,EK MOTOR FACTORS LTD,838524,24/07/2017,69890,77.02,0,Oil filter,381400,Vehicle Mgt Maintenance
South Lakeland District Council,http://opendatacommunities.org/id/district-council/south-lakeland,31/07/2017,Business Support Community Services,Internal Trading Accounts,,EK MOTOR FACTORS LTD,838524,24/07/2017,69891,20.13,0,Oil filter,381400,Vehicle Mgt Maintenance
South Lakeland District Council,http://opendatacommunities.org/id/district-council/south-lakeland,31/07/2017,Business Support Community Services,Internal Trading Accounts,,EK MOTOR FACTORS LTD,838524,24/07/2017,69892,-2.14,0,Oil filter,381400,Vehicle Mgt Maintenance
South Lakeland District Council,http://opendatacommunities.org/id/district-council/south-lakeland,31/07/2017,Business Support Community Services,Internal Trading Accounts,,EK MOTOR FACTORS LTD,838524,24/07/2017,69893,-15.43,0,Oil filter,381400,Vehicle Mgt Maintenance
South Lakeland District Council,http://opendatacommunities.org/id/district-council/south-lakeland,31/07/2017,Business Support Community Services,Internal Trading Accounts,,EK MOTOR FACTORS LTD,838524,26/07/2017,69961,76.47,0,Oil filter,381400,Vehicle Mgt Maintenance
South Lakeland District Council,http://opendatacommunities.org/id/district-council/south-lakeland,31/07/2017,Business Support Community Services,Internal Trading Accounts,,EK MOTOR FACTORS LTD,838524,26/07/2017,69962,57.5,0,Oil filter,381400,Vehicle Mgt Maintenance
South Lakeland District Council,http://opendatacommunities.org/id/district-council/south-lakeland,31/07/2017,Business Support Community Services,Internal Trading Accounts,,EK MOTOR FACTORS LTD,838524,26/07/2017,69965,26.27,0,Pads,381400,Vehicle Mgt Maintenance
South Lakeland District Council,http://opendatacommunities.org/id/district-council/south-lakeland,31/07/2017,Business Support Community Services,Internal Trading Accounts,,EK MOTOR FACTORS LTD,838524,26/07/2017,69969,22.24,0,Pads,381400,Vehicle Mgt Maintenance
South Lakeland District Council,http://opendatacommunities.org/id/district-council/south-lakeland,31/07/2017,Business Support Community Services,Internal Trading Accounts,,EK MOTOR FACTORS LTD,838524,26/07/2017,69973,176,0,Oil filter,381400,Vehicle Mgt Maintenance
South Lakeland District Council,http://opendatacommunities.org/id/district-council/south-lakeland,31/07/2017,Business Support Community Services,Internal Trading Accounts,,EK MOTOR FACTORS LTD,838524,26/07/2017,69977,29.96,0,Pads,381400,Vehicle Mgt Maintenance
South Lakeland District Council,http://opendatacommunities.org/id/district-council/south-lakeland,31/07/2017,Business Support Community Services,Housing Services,http://opendatacommunities.org/def/concept/finance/sercop/objective/108,Landlord,,10/07/2017,69564,500,0,Monthly rent ,202000,Financial Services Rents
South Lakeland District Council,http://opendatacommunities.org/id/district-council/south-lakeland,31/07/2017,Human Resources,Central Services,http://opendatacommunities.org/def/concept/finance/sercop/objective/102,EMPLOYMENT PAGES LTD,7363099,19/07/2017,69768,153,0,Employment pages advert:,261400,HR Temporary & Agency Staff
South Lakeland District Council,http://opendatacommunities.org/id/district-council/south-lakeland,31/07/2017,Human Resources,Cultural Environmental Regulatory & Planning Services,http://opendatacommunities.org/def/concept/finance/sercop/objective/104,EMPLOYMENT PAGES LTD,7363099,19/07/2017,69768,367.2,0,Employment pages advert:,261400,HR Temporary & Agency Staff
South Lakeland District Council,http://opendatacommunities.org/id/district-council/south-lakeland,31/07/2017,Lake Wardens,Cultural Environmental Regulatory & Planning Services,http://opendatacommunities.org/def/concept/finance/sercop/objective/104,ENVIROFIRST LTD,5999123,17/07/2017,68634,73.6,0,Rental & Emptying of Re-cycling Bins,182012,Environment Waste Management Recycling
South Lakeland District Council,http://opendatacommunities.org/id/district-council/south-lakeland,31/07/2017,Development Implementation,Central Services,http://opendatacommunities.org/def/concept/finance/sercop/objective/102,ENVIROFIRST LTD,5999123,19/07/2017,69749,99.24,0,Lowther Street Wheelie bin mixed,182012,Environment Waste Management Recycling
South Lakeland District Council,http://opendatacommunities.org/id/district-council/south-lakeland,31/07/2017,Lake Wardens,Cultural Environmental Regulatory & Planning Services,http://opendatacommunities.org/def/concept/finance/sercop/objective/104,ENVIROFIRST LTD,5999123,17/07/2017,69750,58.88,0,Rental & Emptying of Re-cycling Bins,182012,Environment Waste Management Recycling
South Lakeland District Council,http://opendatacommunities.org/id/district-council/south-lakeland,31/07/2017,Environment and Housing,Housing,http://opendatacommunities.org/def/concept/finance/sercop/objective/108,ENVIRONMENT & HOUSING GRANTS,,12/07/2017,69682,4027,0,"Bellingham Road, Kendal",201700,Financial Services Grants
South Lakeland District Council,http://opendatacommunities.org/id/district-council/south-lakeland,31/07/2017,Environment and Housing,Housing,http://opendatacommunities.org/def/concept/finance/sercop/objective/108,ENVIRONMENT & HOUSING GRANTS,,12/07/2017,69683,4476.5,0,"Long Lane, Sedbergh",201700,Financial Services Grants
South Lakeland District Council,http://opendatacommunities.org/id/district-council/south-lakeland,31/07/2017,Environment and Housing,Housing,http://opendatacommunities.org/def/concept/finance/sercop/objective/108,ENVIRONMENT & HOUSING GRANTS,,24/07/2017,69926,1000,0,5 Vicars Hill,201700,Financial Services Grants
South Lakeland District Council,http://opendatacommunities.org/id/district-council/south-lakeland,31/07/2017,Kendal Town Hall,Cultural Environmental Regulatory & Planning Services,http://opendatacommunities.org/def/concept/finance/sercop/objective/104,EVAC CHAIR INTERNATIONAL LTD,3593826,31/07/2017,70010,330,0,2017 annual service of evac chairs at,321311,Social Care Supplies Equipment
South Lakeland District Council,http://opendatacommunities.org/id/district-council/south-lakeland,31/07/2017,Legal Services,Central Services,http://opendatacommunities.org/def/concept/finance/sercop/objective/102,Eventus Legal Recruitment,,10/07/2017,69469,300,0,Fees re:  w/k/ end,261300,HR Recruitment & Assessment
South Lakeland District Council,http://opendatacommunities.org/id/district-council/south-lakeland,31/07/2017,Legal Services,Central Services,http://opendatacommunities.org/def/concept/finance/sercop/objective/102,Eventus Legal Recruitment,,12/07/2017,69680,300,0,Fees re:  from w/k/ end,261300,HR Recruitment & Assessment
South Lakeland District Council,http://opendatacommunities.org/id/district-council/south-lakeland,31/07/2017,Legal Services,Central Services,http://opendatacommunities.org/def/concept/finance/sercop/objective/102,Eventus Legal Recruitment,,19/07/2017,69820,300,0,Fees re:  from w/k/ end,261300,HR Recruitment & Assessment
South Lakeland District Council,http://opendatacommunities.org/id/district-council/south-lakeland,31/07/2017,Legal Services,Central Services,http://opendatacommunities.org/def/concept/finance/sercop/objective/102,Eventus Legal Recruitment,,26/07/2017,69993,300,0,Fees re:  from w/k/ end,261300,HR Recruitment & Assessment
South Lakeland District Council,http://opendatacommunities.org/id/district-council/south-lakeland,31/07/2017,Revenues and Benefits,Central Services,http://opendatacommunities.org/def/concept/finance/sercop/objective/102,F P Mailing T/A The Mailing Room,8708033,17/07/2017,69435,3143.22,0,Letter Opener & Machine Service Plan,309999,Mail Services� Not Elsewhere Classified
South Lakeland District Council,http://opendatacommunities.org/id/district-council/south-lakeland,31/07/2017,Business Support Community Services,Housing Services,http://opendatacommunities.org/def/concept/finance/sercop/objective/108,Landlord,,17/07/2017,69718,890,0,"Monthly rent for Flats 1 & 2, 13 New",250000,Housing
South Lakeland District Council,http://opendatacommunities.org/id/district-council/south-lakeland,31/07/2017,Business Support Community Services,Internal Trading Accounts,,FLEET PARTS LTD,1252714,17/07/2017,69734,99.95,0,Cable,381500,Vehicle Mgt Parts
South Lakeland District Council,http://opendatacommunities.org/id/district-council/south-lakeland,31/07/2017,Business Support Community Services,Internal Trading Accounts,,Fleetmatics (UK) Ltd,5265904,03/07/2017,69381,110,0,Key fobs,361000,Public Transport Fleet Management
South Lakeland District Council,http://opendatacommunities.org/id/district-council/south-lakeland,31/07/2017,Human Resources,Central Services,http://opendatacommunities.org/def/concept/finance/sercop/objective/102,FLORENCE MADDEN ASSOCIATES,,17/07/2017,69598,438.7,0,Review day 3rd July,261500,HR Training & Conferences
South Lakeland District Council,http://opendatacommunities.org/id/district-council/south-lakeland,31/07/2017,Human Resources,Central Services,http://opendatacommunities.org/def/concept/finance/sercop/objective/102,Flourish Learning Ltd,9039910,12/07/2017,69414,1500,0,consultation and preparation for,171010,Education Adult & Further Ed
South Lakeland District Council,http://opendatacommunities.org/id/district-council/south-lakeland,31/07/2017,Business Support Community Services,Internal Trading Accounts,,FREIGHT TRANSPORT ASSOCIATION,,24/07/2017,69881,65.98,0,Record books,361100,Public Transport Haulage
South Lakeland District Council,http://opendatacommunities.org/id/district-council/south-lakeland,31/07/2017,Business Support Community Services,Internal Trading Accounts,,FREIGHT TRANSPORT ASSOCIATION,,24/07/2017,69881,200,0,Record books,361100,Public Transport Haulage
South Lakeland District Council,http://opendatacommunities.org/id/district-council/south-lakeland,31/07/2017,Business Support Community Services,Internal Trading Accounts,,FST CONSUMABLES LTD,1342012,31/07/2017,69647,186.02,0,Consumables 01/04/17- 31/03/18,101600,Building Hand Tools
South Lakeland District Council,http://opendatacommunities.org/id/district-council/south-lakeland,31/07/2017,Business Support Community Services,Internal Trading Accounts,,FUCHS LUBRICANTS (UK) PLC,2412689,17/07/2017,69666,120,0,Grease,381100,Vehicle Mgt Fuel
South Lakeland District Council,http://opendatacommunities.org/id/district-council/south-lakeland,31/07/2017,Business Support Community Services,Internal Trading Accounts,,FUCHS LUBRICANTS (UK) PLC,2412689,17/07/2017,69667,30.02,0,Grease,381100,Vehicle Mgt Fuel
South Lakeland District Council,http://opendatacommunities.org/id/district-council/south-lakeland,31/07/2017,Business Support Community Services,Internal Trading Accounts,,FUCHS LUBRICANTS (UK) PLC,2412689,17/07/2017,69668,863.26,0,Grease,381100,Vehicle Mgt Fuel
South Lakeland District Council,http://opendatacommunities.org/id/district-council/south-lakeland,31/07/2017,Social Enterprise Admin,Cultural Environmental Regulatory & Planning Services,http://opendatacommunities.org/def/concept/finance/sercop/objective/104,FURNESS NEWSPAPERS LTD,1155841,05/07/2017,69427,62.16,0,PUBLIC NOTICES FOR PLANNING 1 APRIL 2015,191000,Facilities Advertising
South Lakeland District Council,http://opendatacommunities.org/id/district-council/south-lakeland,31/07/2017,Social Enterprise Admin,Cultural Environmental Regulatory & Planning Services,http://opendatacommunities.org/def/concept/finance/sercop/objective/104,FURNESS NEWSPAPERS LTD,1155841,17/07/2017,69664,51.8,0,PUBLIC NOTICES FOR PLANNING 1 APRIL 2015,191000,Facilities Advertising
South Lakeland District Council,http://opendatacommunities.org/id/district-council/south-lakeland,31/07/2017,Social Enterprise Admin,Cultural Environmental Regulatory & Planning Services,http://opendatacommunities.org/def/concept/finance/sercop/objective/104,FURNESS NEWSPAPERS LTD,1155841,31/07/2017,70017,51.8,0,PUBLIC NOTICES FOR PLANNING 1 APRIL 2015,191000,Facilities Advertising
South Lakeland District Council,http://opendatacommunities.org/id/district-council/south-lakeland,31/07/2017,Business Support Community Services,Housing Services,http://opendatacommunities.org/def/concept/finance/sercop/objective/108,G B BURROW & SON,,26/07/2017,69995,156,0,Storgae costs,192300,Facilities Storage
South Lakeland District Council,http://opendatacommunities.org/id/district-council/south-lakeland,31/07/2017,Business Support Community Services,Housing Services,http://opendatacommunities.org/def/concept/finance/sercop/objective/108,G B BURROW & SON,,26/07/2017,69996,208,0,Storgae costs,192300,Facilities Storage
South Lakeland District Council,http://opendatacommunities.org/id/district-council/south-lakeland,31/07/2017,Business Support Community Services,Housing Services,http://opendatacommunities.org/def/concept/finance/sercop/objective/108,G B BURROW & SON,,26/07/2017,69997,198,0,Storage costs for,192300,Facilities Storage
South Lakeland District Council,http://opendatacommunities.org/id/district-council/south-lakeland,31/07/2017,Business Support Community Services,Housing Services,http://opendatacommunities.org/def/concept/finance/sercop/objective/108,G B BURROW & SON,,26/07/2017,69998,264,0,Storage costs for,192300,Facilities Storage
South Lakeland District Council,http://opendatacommunities.org/id/district-council/south-lakeland,31/07/2017,Printing Section,Central Services,http://opendatacommunities.org/def/concept/finance/sercop/objective/102,GANDLAKE TECHNOLOGY LTD,,12/07/2017,68582,2330.61,0,LaserServe New rental from 1st June 2017,271440,ICT Software
South Lakeland District Council,http://opendatacommunities.org/id/district-council/south-lakeland,31/07/2017,Electoral Services,Central Services,http://opendatacommunities.org/def/concept/finance/sercop/objective/102,GATES TRAVEL SERVICE,,03/07/2017,69209,65.75,0,Train Ticket Oxenholme - Birmingham,261600,HR Travel & Subsistence
South Lakeland District Council,http://opendatacommunities.org/id/district-council/south-lakeland,31/07/2017,Electoral Services,Central Services,http://opendatacommunities.org/def/concept/finance/sercop/objective/102,GATES TRAVEL SERVICE,,03/07/2017,69209,65.75,0,Train Ticket Oxenholme - Birmingham,261600,HR Travel & Subsistence
South Lakeland District Council,http://opendatacommunities.org/id/district-council/south-lakeland,31/07/2017,Business Support Community Services,Housing Services,http://opendatacommunities.org/def/concept/finance/sercop/objective/108,GATES TRAVEL SERVICE,,03/07/2017,69257,20,0,Trave; warrant,261600,HR Travel & Subsistence
South Lakeland District Council,http://opendatacommunities.org/id/district-council/south-lakeland,31/07/2017,Business Support Community Services,Central Services,http://opendatacommunities.org/def/concept/finance/sercop/objective/102,GATES TRAVEL SERVICE,,03/07/2017,69291,11.8,0,TRAVEL TO PENRITH 30 JUNE 2017,261600,HR Travel & Subsistence
South Lakeland District Council,http://opendatacommunities.org/id/district-council/south-lakeland,31/07/2017,Business Support Community Services,Housing Services,http://opendatacommunities.org/def/concept/finance/sercop/objective/108,GATES TRAVEL SERVICE,,26/07/2017,69980,25,0,Travel Warrant - Kendal to Lancaster,261600,HR Travel & Subsistence
South Lakeland District Council,http://opendatacommunities.org/id/district-council/south-lakeland,31/07/2017,Business Support Community Services,Cultural Environmental Regulatory & Planning Services,http://opendatacommunities.org/def/concept/finance/sercop/objective/104,GB Sign Solutions Ltd,9609330,24/07/2017,69900,65,0,Street Nameplates 2016/17,102400,Building Signage
South Lakeland District Council,http://opendatacommunities.org/id/district-council/south-lakeland,31/07/2017,Human Resources,Central Services,http://opendatacommunities.org/def/concept/finance/sercop/objective/102,GBS Corporate Training,6452080,03/07/2017,69301,2100,0,Becoming a Customer Ambassador 1050.00,261500,HR Training & Conferences
South Lakeland District Council,http://opendatacommunities.org/id/district-council/south-lakeland,31/07/2017,Human Resources,Central Services,http://opendatacommunities.org/def/concept/finance/sercop/objective/102,GBS Corporate Training,6452080,31/07/2017,70012,2100,0,Project Management Part 1 13 &,261500,HR Training & Conferences
South Lakeland District Council,http://opendatacommunities.org/id/district-council/south-lakeland,31/07/2017,Human Resources,Central Services,http://opendatacommunities.org/def/concept/finance/sercop/objective/102,GBS Corporate Training,6452080,31/07/2017,70013,1050,0,Becoming a Customer Ambassador 1050.00,261500,HR Training & Conferences
South Lakeland District Council,http://opendatacommunities.org/id/district-council/south-lakeland,31/07/2017,Business Support Community Services,Internal Trading Accounts,,Gemco Service Limited,3514486,26/07/2017,69971,995,0,Service contract for brake tester,381400,Vehicle Mgt Maintenance
South Lakeland District Council,http://opendatacommunities.org/id/district-council/south-lakeland,31/07/2017,Social Enterprise Admin,Environment Regulatory,,GEORGE BARKER & SONS (TIMBER MERCH) LTD,,31/07/2017,70026,2280,0,Specials bench 1800mm internal   to be,102500,Building Timber
South Lakeland District Council,http://opendatacommunities.org/id/district-council/south-lakeland,31/07/2017,Social Enterprise Admin,Cultural Environmental Regulatory & Planning Services,http://opendatacommunities.org/def/concept/finance/sercop/objective/104,GEORGE BARKER & SONS (TIMBER MERCH) LTD,,31/07/2017,70027,1130,0,laminated picnic table 2.1m as previous,102500,Building Timber
South Lakeland District Council,http://opendatacommunities.org/id/district-council/south-lakeland,31/07/2017,ICT Group,Central Services,http://opendatacommunities.org/def/concept/finance/sercop/objective/102,GGP Systems Limited,2685491,03/07/2017,68536,9000,0,Setup and training costs for new,270000,Information Communications Technology
South Lakeland District Council,http://opendatacommunities.org/id/district-council/south-lakeland,31/07/2017,Business Support Community Services,Central Services,http://opendatacommunities.org/def/concept/finance/sercop/objective/102,GLASDON UK LTD,2160576,24/07/2017,69882,3294.8,0,Glasdon Jubilee 110 Litter Bin,109999,Building Not Elsewhere Classified
South Lakeland District Council,http://opendatacommunities.org/id/district-council/south-lakeland,31/07/2017,Policy & Partnerships,Cultural Environmental Regulatory & Planning Services,http://opendatacommunities.org/def/concept/finance/sercop/objective/104,GRANGE OVER SANDS TOWN COUNCIL,,05/07/2017,69415,28000,0,16/17 - Grant contribution for the,908000,Public Bodies Council support services
South Lakeland District Council,http://opendatacommunities.org/id/district-council/south-lakeland,31/07/2017,Financial Services,Housing Benefit Payments,,GRANT THORNTON UK LLP,OC307742,10/07/2017,69305,2470,0,Grant Certification re HB CT Benefit,201000,Financial Services Accountancy
South Lakeland District Council,http://opendatacommunities.org/id/district-council/south-lakeland,31/07/2017,Democratic and Member Services,Cultural Environmental Regulatory & Planning Services,http://opendatacommunities.org/def/concept/finance/sercop/objective/104,GRANTS- MISCELLANEOUS,,24/07/2017,69797,1000,0,DONATION TOWARDS ROOF REPAIRS AT HEAD,201700,Financial Services Grants
South Lakeland District Council,http://opendatacommunities.org/id/district-council/south-lakeland,31/07/2017,Democratic and Member Services,Cultural Environmental Regulatory & Planning Services,http://opendatacommunities.org/def/concept/finance/sercop/objective/104,GRANTS- MISCELLANEOUS,,19/07/2017,69803,157.5,0,Donation toward funding of Anti Child,201700,Financial Services Grants
South Lakeland District Council,http://opendatacommunities.org/id/district-council/south-lakeland,31/07/2017,Democratic and Member Services,Cultural Environmental Regulatory & Planning Services,http://opendatacommunities.org/def/concept/finance/sercop/objective/104,GRANTS- MISCELLANEOUS,,24/07/2017,69861,150,0,DONATION TO FUND THE RINKFIELD ARE,201700,Financial Services Grants
South Lakeland District Council,http://opendatacommunities.org/id/district-council/south-lakeland,31/07/2017,Environment and Housing,Housing Services,http://opendatacommunities.org/def/concept/finance/sercop/objective/108,GROWING CONCERNS LTD,,19/07/2017,69778,1592.6,0,Payment for Handy Person Scheme,391200,Construction Engineering
South Lakeland District Council,http://opendatacommunities.org/id/district-council/south-lakeland,31/07/2017,Leisure and Wellbeing,Cultural Environmental Regulatory & Planning Services,http://opendatacommunities.org/def/concept/finance/sercop/objective/104,H & H REEDS PRINTERS LTD,139166,19/07/2017,69771,90,0,Replacement Graphic Banner system -,191100,Facilities Design & Photography
South Lakeland District Council,http://opendatacommunities.org/id/district-council/south-lakeland,31/07/2017,Business Support Community Services,Internal Trading Accounts,,H WICKS (LINDAL) LTD,754590,03/07/2017,69359,300,0,"Gate fees, handling, transport & baling",182012,Environment Waste Management Recycling
South Lakeland District Council,http://opendatacommunities.org/id/district-council/south-lakeland,31/07/2017,Business Support Community Services,Internal Trading Accounts,,H WICKS (LINDAL) LTD,754590,03/07/2017,69360,300,0,"Gate fees, handling, transport & baling",182012,Environment Waste Management Recycling
South Lakeland District Council,http://opendatacommunities.org/id/district-council/south-lakeland,31/07/2017,Business Support Community Services,Internal Trading Accounts,,H WICKS (LINDAL) LTD,754590,03/07/2017,69361,300,0,"Gate fees, handling, transport & baling",182012,Environment Waste Management Recycling
South Lakeland District Council,http://opendatacommunities.org/id/district-council/south-lakeland,31/07/2017,Business Support Community Services,Internal Trading Accounts,,H WICKS (LINDAL) LTD,754590,05/07/2017,69423,300,0,"Gate fees, handling, transport & baling",182012,Environment Waste Management Recycling
South Lakeland District Council,http://opendatacommunities.org/id/district-council/south-lakeland,31/07/2017,Business Support Community Services,Internal Trading Accounts,,H WICKS (LINDAL) LTD,754590,10/07/2017,69462,600,0,"Gate fees, handling, transport & baling",182012,Environment Waste Management Recycling
South Lakeland District Council,http://opendatacommunities.org/id/district-council/south-lakeland,31/07/2017,Business Support Community Services,Internal Trading Accounts,,H WICKS (LINDAL) LTD,754590,17/07/2017,69670,2226.76,0,"Gate fees, handling, transport & baling",182012,Environment Waste Management Recycling
South Lakeland District Council,http://opendatacommunities.org/id/district-council/south-lakeland,31/07/2017,Business Support Community Services,Internal Trading Accounts,,H WICKS (LINDAL) LTD,754590,17/07/2017,69731,600,0,"Gate fees, handling, transport & baling",182012,Environment Waste Management Recycling
South Lakeland District Council,http://opendatacommunities.org/id/district-council/south-lakeland,31/07/2017,Business Support Community Services,Internal Trading Accounts,,H WICKS (LINDAL) LTD,754590,26/07/2017,69970,300,0,"Gate fees, handling, transport & baling",182012,Environment Waste Management Recycling
South Lakeland District Council,http://opendatacommunities.org/id/district-council/south-lakeland,31/07/2017,Business Support Community Services,Internal Trading Accounts,,HAKO MACHINES LIMITED,1414225,17/07/2017,69713,76.34,0,Tails,131000,Cleaning & Janitorial Cleaning Materials
South Lakeland District Council,http://opendatacommunities.org/id/district-council/south-lakeland,31/07/2017,Business Support Community Services,Internal Trading Accounts,,HAKO MACHINES LIMITED,1414225,17/07/2017,69729,39.66,0,Tails,131000,Cleaning & Janitorial Cleaning Materials
South Lakeland District Council,http://opendatacommunities.org/id/district-council/south-lakeland,31/07/2017,Business Support Community Services,Internal Trading Accounts,,HAKO MACHINES LIMITED,1414225,24/07/2017,69856,164.32,0,Ram,131000,Cleaning & Janitorial Cleaning Materials
South Lakeland District Council,http://opendatacommunities.org/id/district-council/south-lakeland,31/07/2017,Business Support Community Services,Internal Trading Accounts,,Harry Park Tyres Ltd,8131208,12/07/2017,69567,30,0,Tyres - 17,381500,Vehicle Mgt Parts
South Lakeland District Council,http://opendatacommunities.org/id/district-council/south-lakeland,31/07/2017,Business Support Community Services,Internal Trading Accounts,,Harry Park Tyres Ltd,8131208,12/07/2017,69568,258,0,Tyres - 17,381500,Vehicle Mgt Parts
South Lakeland District Council,http://opendatacommunities.org/id/district-council/south-lakeland,31/07/2017,Business Support Community Services,Internal Trading Accounts,,Harry Park Tyres Ltd,8131208,12/07/2017,69569,250,0,Tyres - 17,381500,Vehicle Mgt Parts
South Lakeland District Council,http://opendatacommunities.org/id/district-council/south-lakeland,31/07/2017,Business Support Community Services,Internal Trading Accounts,,Harry Park Tyres Ltd,8131208,12/07/2017,69570,1250,0,Tyres - 17,381500,Vehicle Mgt Parts
South Lakeland District Council,http://opendatacommunities.org/id/district-council/south-lakeland,31/07/2017,Business Support Community Services,Internal Trading Accounts,,Harry Park Tyres Ltd,8131208,12/07/2017,69572,285,0,Tyres - 17,381500,Vehicle Mgt Parts
South Lakeland District Council,http://opendatacommunities.org/id/district-council/south-lakeland,31/07/2017,Business Support Community Services,Internal Trading Accounts,,Haztec International Ltd,4157886,26/07/2017,69976,331.4,0,Beacons,380000,Vehicle Management
South Lakeland District Council,http://opendatacommunities.org/id/district-council/south-lakeland,31/07/2017,Revenues and Benefits,Central Services,http://opendatacommunities.org/def/concept/finance/sercop/objective/102,HER MAJESTY'S COURTS & TRIBUNAL SERVICE,,24/07/2017,69863,189,0,2017/18  C Tax  Liability Orders,908001,Public Bodies Other Public Bodies
South Lakeland District Council,http://opendatacommunities.org/id/district-council/south-lakeland,31/07/2017,Revenues and Benefits,Central Services,http://opendatacommunities.org/def/concept/finance/sercop/objective/102,HER MAJESTY'S COURTS & TRIBUNAL SERVICE,,24/07/2017,69863,312,0,2017/18  C Tax  Liability Orders,908001,Public Bodies Other Public Bodies
South Lakeland District Council,http://opendatacommunities.org/id/district-council/south-lakeland,31/07/2017,Revenues and Benefits,Central Services,http://opendatacommunities.org/def/concept/finance/sercop/objective/102,HER MAJESTY'S COURTS & TRIBUNAL SERVICE,,24/07/2017,69863,1761,0,2017/18  C Tax  Liability Orders,908001,Public Bodies Other Public Bodies
South Lakeland District Council,http://opendatacommunities.org/id/district-council/south-lakeland,31/07/2017,Business Support Community Services,Internal Trading Accounts,,HYDRAIR TRUCK & TRAILER PARTS LTD,,17/07/2017,69705,156.88,0,Fuel filters,381500,Vehicle Mgt Parts
South Lakeland District Council,http://opendatacommunities.org/id/district-council/south-lakeland,31/07/2017,Business Support Community Services,Internal Trading Accounts,,HYDRAIR TRUCK & TRAILER PARTS LTD,,17/07/2017,69706,320,0,Fuel filters,381500,Vehicle Mgt Parts
South Lakeland District Council,http://opendatacommunities.org/id/district-council/south-lakeland,31/07/2017,Business Support Community Services,Internal Trading Accounts,,HYDRAIR TRUCK & TRAILER PARTS LTD,,24/07/2017,69887,105.1,0,Licence holders,381500,Vehicle Mgt Parts
South Lakeland District Council,http://opendatacommunities.org/id/district-council/south-lakeland,31/07/2017,Business Support Community Services,Internal Trading Accounts,,HYDRAIR TRUCK & TRAILER PARTS LTD,,24/07/2017,69888,146,0,Licence holders,381500,Vehicle Mgt Parts
South Lakeland District Council,http://opendatacommunities.org/id/district-council/south-lakeland,31/07/2017,Business Support Community Services,Internal Trading Accounts,,HYDRAIR TRUCK & TRAILER PARTS LTD,,24/07/2017,69889,9.72,0,Licence holders,381500,Vehicle Mgt Parts
South Lakeland District Council,http://opendatacommunities.org/id/district-council/south-lakeland,31/07/2017,Leisure and Wellbeing,Central Services,http://opendatacommunities.org/def/concept/finance/sercop/objective/102,INST OF CEMETERY & CREMATORIUM MANGMT,,26/07/2017,69981,130,0,Booking fee to attend,202100,Financial Services Subscriptions
South Lakeland District Council,http://opendatacommunities.org/id/district-council/south-lakeland,31/07/2017,Business Support Community Services,Central Services,http://opendatacommunities.org/def/concept/finance/sercop/objective/102,INSTITUTE OF LICENSING (EVENTS) LTD,5710898,24/07/2017,69847,925,0,Licensing Caravan Course 3 October 2017,202100,Financial Services Subscriptions
South Lakeland District Council,http://opendatacommunities.org/id/district-council/south-lakeland,31/07/2017,Business Support Community Services,Cultural Environmental Regulatory & Planning Services,http://opendatacommunities.org/def/concept/finance/sercop/objective/104,INTELLIGENT DATA SYSTEMS (UK) LTD,5148878,17/07/2017,69673,103.5,0,IDS Checks for Taxi Drivers,271510,ICT Application Service Provision
South Lakeland District Council,http://opendatacommunities.org/id/district-council/south-lakeland,31/07/2017,ICT Group,Central Services,http://opendatacommunities.org/def/concept/finance/sercop/objective/102,ITPS Professional Services Ltd (DD),,01/07/2017,69807,16.5,0,1229588665,271700,ICT Telecommunications Fixed
South Lakeland District Council,http://opendatacommunities.org/id/district-council/south-lakeland,31/07/2017,ICT Group,Central Services,http://opendatacommunities.org/def/concept/finance/sercop/objective/102,ITPS Professional Services Ltd (DD),,01/07/2017,69808,12,0,"Line Rental & CLIP for Canal Head Depot,",271700,ICT Telecommunications Fixed
South Lakeland District Council,http://opendatacommunities.org/id/district-council/south-lakeland,31/07/2017,ICT Group,Central Services,http://opendatacommunities.org/def/concept/finance/sercop/objective/102,ITPS Professional Services Ltd (DD),,01/07/2017,69808,53.6,0,"Line Rental & CLIP for Canal Head Depot,",271700,ICT Telecommunications Fixed
South Lakeland District Council,http://opendatacommunities.org/id/district-council/south-lakeland,31/07/2017,ICT Group,Central Services,http://opendatacommunities.org/def/concept/finance/sercop/objective/102,ITPS Professional Services Ltd (DD),,01/07/2017,69809,857.14,0,"Lync rental costs, ISDN lines etc,",271700,ICT Telecommunications Fixed
South Lakeland District Council,http://opendatacommunities.org/id/district-council/south-lakeland,31/07/2017,ICT Group,Central Services,http://opendatacommunities.org/def/concept/finance/sercop/objective/102,ITPS Professional Services Ltd (DD),,01/07/2017,69809,507.41,0,"Lync rental costs, ISDN lines etc,",271700,ICT Telecommunications Fixed
South Lakeland District Council,http://opendatacommunities.org/id/district-council/south-lakeland,31/07/2017,Environmental Protection,Cultural Environmental Regulatory & Planning Services,http://opendatacommunities.org/def/concept/finance/sercop/objective/104,J & J Maintenance Services,8491227,12/07/2017,69657,269.7,0,Collect Bier from Parkside Rd Cem.,121200,Cemetery & Crematorium- Maintenance
South Lakeland District Council,http://opendatacommunities.org/id/district-council/south-lakeland,31/07/2017,Business Support Community Services,Internal Trading Accounts,,J R RICHARDSON LTD,2225792,03/07/2017,69356,181.28,0,Vehicle washing consumables,381500,Vehicle Mgt Parts
South Lakeland District Council,http://opendatacommunities.org/id/district-council/south-lakeland,31/07/2017,Social Enterprise Admin,Cultural Environmental Regulatory & Planning Services,http://opendatacommunities.org/def/concept/finance/sercop/objective/104,J S Cleaning Services,,03/07/2017,69320,80,0,For the weekly cleaning of the Chapel of,131010,Cleaning & Janitorial Cleaning Materials
South Lakeland District Council,http://opendatacommunities.org/id/district-council/south-lakeland,31/07/2017,Social Enterprise Admin,Cultural Environmental Regulatory & Planning Services,http://opendatacommunities.org/def/concept/finance/sercop/objective/104,J S Cleaning Services,,10/07/2017,69485,60,0,For the weekly cleaning of the Chapel of,131010,Cleaning & Janitorial Cleaning Materials
South Lakeland District Council,http://opendatacommunities.org/id/district-council/south-lakeland,31/07/2017,Democratic and Member Services,Central Services,http://opendatacommunities.org/def/concept/finance/sercop/objective/102,JAMES BUTTON & CO,,03/07/2017,69289,900,0,Licensing training for Members on 6,281300,Legal Services Legal Opinion
South Lakeland District Council,http://opendatacommunities.org/id/district-council/south-lakeland,31/07/2017,Social Enterprise Admin,Cultural Environmental Regulatory & Planning Services,http://opendatacommunities.org/def/concept/finance/sercop/objective/104,JETTIES & MOORINGS,,10/07/2017,69304,740,0,Add fascia boards in Irocco timber to,291400,Arts & Leisure Services Sport & Fitness
South Lakeland District Council,http://opendatacommunities.org/id/district-council/south-lakeland,31/07/2017,Social Enterprise Admin,Cultural Environmental Regulatory & Planning Services,http://opendatacommunities.org/def/concept/finance/sercop/objective/104,JETTIES & MOORINGS,,17/07/2017,69702,238,0,Timber planks for Waterhead jetty,291400,Arts & Leisure Services Sport & Fitness
South Lakeland District Council,http://opendatacommunities.org/id/district-council/south-lakeland,31/07/2017,Human Resources,Central Services,http://opendatacommunities.org/def/concept/finance/sercop/objective/102,JGP RESOURCING LTD,7750971,24/07/2017,69798,575,0,Shared ICT Support Officer,261500,HR Training & Conferences
South Lakeland District Council,http://opendatacommunities.org/id/district-council/south-lakeland,31/07/2017,Business Support Community Services,Housing Services,http://opendatacommunities.org/def/concept/finance/sercop/objective/108,JLA LTD,1094178,12/07/2017,69608,492.94,0,Repairs to tumble dryer,131100,Cleaning & Janitorial Laundry Equipment
South Lakeland District Council,http://opendatacommunities.org/id/district-council/south-lakeland,31/07/2017,Business Support Community Services,Internal Trading Accounts,,K S INTERNATIONAL LTD,2703321,12/07/2017,69574,130,0,Bearings,381500,Vehicle Mgt Parts
South Lakeland District Council,http://opendatacommunities.org/id/district-council/south-lakeland,31/07/2017,Business Support Community Services,Internal Trading Accounts,,K S INTERNATIONAL LTD,2703321,17/07/2017,69711,95,0,Bearings,381500,Vehicle Mgt Parts
South Lakeland District Council,http://opendatacommunities.org/id/district-council/south-lakeland,31/07/2017,Business Support Community Services,Internal Trading Accounts,,K S INTERNATIONAL LTD,2703321,24/07/2017,69857,265,0,Bearings,381500,Vehicle Mgt Parts
South Lakeland District Council,http://opendatacommunities.org/id/district-council/south-lakeland,31/07/2017,Revenues and Benefits,Non-Service Payments,,Kendal BID Ltd,8986243,17/07/2017,69696,14198.5,0,Collection figures for June 2017,201700,Financial Services Grants
South Lakeland District Council,http://opendatacommunities.org/id/district-council/south-lakeland,31/07/2017,Business Support Community Services,Cultural Environmental Regulatory & Planning Services,http://opendatacommunities.org/def/concept/finance/sercop/objective/104,KENDAL METAL WORKS LTD,1158514,03/07/2017,69406,72,0,Metal Drainage Lifting Keys x 4 pairs,391200,Construction Engineering
South Lakeland District Council,http://opendatacommunities.org/id/district-council/south-lakeland,31/07/2017,Business Support Community Services,Cultural Environmental Regulatory & Planning Services,http://opendatacommunities.org/def/concept/finance/sercop/objective/104,KENDAL SECURITY CENTRE LTD,3179893,24/07/2017,69855,60.44,0,Keys - Canal Head,192212,Facilities Security Equipment
South Lakeland District Council,http://opendatacommunities.org/id/district-council/south-lakeland,31/07/2017,Democratic and Member Services,Cultural Environmental Regulatory & Planning Services,http://opendatacommunities.org/def/concept/finance/sercop/objective/104,KENDAL TORCHLIGHT PROCESSION LTD,4583995,31/07/2017,70030,150,0,150 donation from Cllr towards,201700,Financial Services Grants
South Lakeland District Council,http://opendatacommunities.org/id/district-council/south-lakeland,31/07/2017,Democratic and Member Services,Cultural Environmental Regulatory & Planning Services,http://opendatacommunities.org/def/concept/finance/sercop/objective/104,KENDAL TORCHLIGHT PROCESSION LTD,4583995,31/07/2017,70031,740,0,740 donation towards Torchlight,201700,Financial Services Grants
South Lakeland District Council,http://opendatacommunities.org/id/district-council/south-lakeland,31/07/2017,Business Support Community Services,Housing Services,http://opendatacommunities.org/def/concept/finance/sercop/objective/108,Landlord,,05/07/2017,69446,950,0,Deposit,250010,Housing Letting Agents
South Lakeland District Council,http://opendatacommunities.org/id/district-council/south-lakeland,31/07/2017,Printing Section,Central Services,http://opendatacommunities.org/def/concept/finance/sercop/objective/102,Konica Minolta Bus Solutions (UK) Ltd,,17/07/2017,69181,2399.04,0,Open Embedded License,192000,Facilities Reprographics
South Lakeland District Council,http://opendatacommunities.org/id/district-council/south-lakeland,31/07/2017,Printing Section,Central Services,http://opendatacommunities.org/def/concept/finance/sercop/objective/102,Konica Minolta Bus Solutions (UK) Ltd,,17/07/2017,69181,1211.25,0,Open Embedded License,192000,Facilities Reprographics
South Lakeland District Council,http://opendatacommunities.org/id/district-council/south-lakeland,31/07/2017,Printing Section,Central Services,http://opendatacommunities.org/def/concept/finance/sercop/objective/102,Konica Minolta Bus Solutions (UK) Ltd,,10/07/2017,69258,2278.23,0,Quarterly Clicks for Office Printers,192000,Facilities Reprographics
South Lakeland District Council,http://opendatacommunities.org/id/district-council/south-lakeland,31/07/2017,Printing Section,Central Services,http://opendatacommunities.org/def/concept/finance/sercop/objective/102,Konica Minolta Bus Solutions (UK) Ltd,,31/07/2017,69539,3084.15,0,Open Embedded License,192000,Facilities Reprographics
South Lakeland District Council,http://opendatacommunities.org/id/district-council/south-lakeland,31/07/2017,Printing Section,Central Services,http://opendatacommunities.org/def/concept/finance/sercop/objective/102,Konica Minolta Bus Solutions (UK) Ltd,,31/07/2017,69539,1267.41,0,Open Embedded License,192000,Facilities Reprographics
South Lakeland District Council,http://opendatacommunities.org/id/district-council/south-lakeland,31/07/2017,Business Support Community Services,Central Services,http://opendatacommunities.org/def/concept/finance/sercop/objective/102,LAKE DISTRICT NATIONAL PARK AUTHORITY,,24/07/2017,69860,3872.5,0,LAND CHARGE SEARCH ENQUIRIES LDNPA,201700,Financial Services Grants
South Lakeland District Council,http://opendatacommunities.org/id/district-council/south-lakeland,31/07/2017,Business Support Community Services,Cultural Environmental Regulatory & Planning Services,http://opendatacommunities.org/def/concept/finance/sercop/objective/104,LAKELAND SUPPLIES,,10/07/2017,69513,317.44,0,Parts,101610,Building Hand Tools
South Lakeland District Council,http://opendatacommunities.org/id/district-council/south-lakeland,31/07/2017,Business Support Community Services,Cultural Environmental Regulatory & Planning Services,http://opendatacommunities.org/def/concept/finance/sercop/objective/104,LAKELAND SUPPLIES,,10/07/2017,69514,13.24,0,Parts,101610,Building Hand Tools
South Lakeland District Council,http://opendatacommunities.org/id/district-council/south-lakeland,31/07/2017,Business Support Community Services,Internal Trading Accounts,,LAKELAND TRUCKS LTD,2464423,03/07/2017,69390,475.8,0,Repair SL021,381400,Vehicle Mgt Maintenance
South Lakeland District Council,http://opendatacommunities.org/id/district-council/south-lakeland,31/07/2017,Business Support Community Services,Internal Trading Accounts,,LAKELAND TRUCKS LTD,2464423,03/07/2017,69391,188.09,0,Repair SL021,381400,Vehicle Mgt Maintenance
South Lakeland District Council,http://opendatacommunities.org/id/district-council/south-lakeland,31/07/2017,Business Support Community Services,Internal Trading Accounts,,LAKELAND TRUCKS LTD,2464423,10/07/2017,69470,125.8,0,Repair SL053,381400,Vehicle Mgt Maintenance
South Lakeland District Council,http://opendatacommunities.org/id/district-council/south-lakeland,31/07/2017,Business Support Community Services,Cultural Environmental Regulatory & Planning Services,http://opendatacommunities.org/def/concept/finance/sercop/objective/104,LAKES TRAINING SOLUTIONS LTD,7541345,10/07/2017,69474,525,0,Presentation Skills Course for Planning,261500,HR Training & Conferences
South Lakeland District Council,http://opendatacommunities.org/id/district-council/south-lakeland,31/07/2017,Human Resources,Central Services,http://opendatacommunities.org/def/concept/finance/sercop/objective/102,LAKES TRAINING SOLUTIONS LTD,7541345,17/07/2017,69614,525,0,Dealing with Aggression and Violence in,261500,HR Training & Conferences
South Lakeland District Council,http://opendatacommunities.org/id/district-council/south-lakeland,31/07/2017,Business Support Community Services,Cultural Environmental Regulatory & Planning Services,http://opendatacommunities.org/def/concept/finance/sercop/objective/104,LAKES TRAINING SOLUTIONS LTD,7541345,17/07/2017,69700,525,0,Presentation Skills Course for Planning,261500,HR Training & Conferences
South Lakeland District Council,http://opendatacommunities.org/id/district-council/south-lakeland,31/07/2017,Development Implementation,Central Services,http://opendatacommunities.org/def/concept/finance/sercop/objective/102,LAMBERT SMITH HAMPTON GROUP,2521225,03/07/2017,69282,2401.2,0,Lake Encroachment Surveys,999999,Unclassifiable
South Lakeland District Council,http://opendatacommunities.org/id/district-council/south-lakeland,31/07/2017,Development Implementation,Environment Regulatory,,LAMBERT SMITH HAMPTON GROUP,2521225,03/07/2017,69371,3750,0,Rothay Park Flood Impact Works,999999,Unclassifiable
South Lakeland District Council,http://opendatacommunities.org/id/district-council/south-lakeland,31/07/2017,Development Implementation,Transport,http://opendatacommunities.org/def/concept/finance/sercop/objective/107,LAMBERT SMITH HAMPTON GROUP,2521225,03/07/2017,69372,2000,0,Cash Collectors Office & Pedestrian,999999,Unclassifiable
South Lakeland District Council,http://opendatacommunities.org/id/district-council/south-lakeland,31/07/2017,Development Implementation,Central Services,http://opendatacommunities.org/def/concept/finance/sercop/objective/102,LAMBERT SMITH HAMPTON GROUP,2521225,03/07/2017,69373,280,0,Kendal Town Hall - Stonework Repairs,999999,Unclassifiable
South Lakeland District Council,http://opendatacommunities.org/id/district-council/south-lakeland,31/07/2017,Development Implementation,Central Services,http://opendatacommunities.org/def/concept/finance/sercop/objective/102,LAMBERT SMITH HAMPTON GROUP,2521225,03/07/2017,69374,337.35,0,Priory Road Public Conveniences - 50%,999999,Unclassifiable
South Lakeland District Council,http://opendatacommunities.org/id/district-council/south-lakeland,31/07/2017,Development Implementation,Central Services,http://opendatacommunities.org/def/concept/finance/sercop/objective/102,LAMBERT SMITH HAMPTON GROUP,2521225,03/07/2017,69375,200.1,0,Lake Encroachment Surveys - additional,999999,Unclassifiable
South Lakeland District Council,http://opendatacommunities.org/id/district-council/south-lakeland,31/07/2017,Development Management,Cultural Environmental Regulatory & Planning Services,http://opendatacommunities.org/def/concept/finance/sercop/objective/104,LAMBERT SMITH HAMPTON GROUP,2521225,10/07/2017,69515,775,0,"Viability appraisals, Copper Dog & Jack",999999,Unclassifiable
South Lakeland District Council,http://opendatacommunities.org/id/district-council/south-lakeland,31/07/2017,Development Implementation,Central Services,http://opendatacommunities.org/def/concept/finance/sercop/objective/102,LAMBERT SMITH HAMPTON GROUP,2521225,17/07/2017,69693,60140.17,0,Property Services Contract - April -,999999,Unclassifiable
South Lakeland District Council,http://opendatacommunities.org/id/district-council/south-lakeland,31/07/2017,Development Implementation,Central Services,http://opendatacommunities.org/def/concept/finance/sercop/objective/102,LAMBERT SMITH HAMPTON GROUP,2521225,17/07/2017,69694,1395.96,0,Monthly Additional Fee - ,999999,Unclassifiable
South Lakeland District Council,http://opendatacommunities.org/id/district-council/south-lakeland,31/07/2017,Development Implementation,Transport,http://opendatacommunities.org/def/concept/finance/sercop/objective/107,LAMBERT SMITH HAMPTON GROUP,2521225,17/07/2017,69695,1500,0,South Lakeland House Car Park -,999999,Unclassifiable
South Lakeland District Council,http://opendatacommunities.org/id/district-council/south-lakeland,31/07/2017,Technical Team,Cultural Environmental Regulatory & Planning Services,http://opendatacommunities.org/def/concept/finance/sercop/objective/104,LAMBERT SMITH HAMPTON GROUP,2521225,17/07/2017,69751,750,0,Viability Appraisal - Land to the east,999999,Unclassifiable
South Lakeland District Council,http://opendatacommunities.org/id/district-council/south-lakeland,31/07/2017,Development Strategy,Cultural Environmental Regulatory & Planning Services,http://opendatacommunities.org/def/concept/finance/sercop/objective/104,LAMBERT SMITH HAMPTON GROUP,2521225,24/07/2017,69904,1450,0,Up to 40 hours of professional support,999999,Unclassifiable
South Lakeland District Council,http://opendatacommunities.org/id/district-council/south-lakeland,31/07/2017,Financial Services,Central Services,http://opendatacommunities.org/def/concept/finance/sercop/objective/102,LANCASHIRE COUNTY COUNCIL,,10/07/2017,69525,699,0,17/18 VAT Helpline,908000,Public Bodies Council support services
South Lakeland District Council,http://opendatacommunities.org/id/district-council/south-lakeland,31/07/2017,Business Support Community Services,Internal Trading Accounts,,LANCASTER TRAINING SERVICES LTD,1447612,12/07/2017,69580,259.17,0,Training 2017/18 (SWK),261500,HR Training & Conferences
South Lakeland District Council,http://opendatacommunities.org/id/district-council/south-lakeland,31/07/2017,Business Support Community Services,Housing Services,http://opendatacommunities.org/def/concept/finance/sercop/objective/108,Landlord,7121028,12/07/2017,69634,400,0,Monthly rent ,202000,Financial Services Rents
South Lakeland District Council,http://opendatacommunities.org/id/district-council/south-lakeland,31/07/2017,Business Support Community Services,Housing Services,http://opendatacommunities.org/def/concept/finance/sercop/objective/108,Landlord,,12/07/2017,69635,520,0,Monthly rent ,202000,Financial Services Rents
South Lakeland District Council,http://opendatacommunities.org/id/district-council/south-lakeland,31/07/2017,Business Support Community Services,Housing Services,http://opendatacommunities.org/def/concept/finance/sercop/objective/108,Landlord,,12/07/2017,69636,520,0,Monthly rent ,202000,Financial Services Rents
South Lakeland District Council,http://opendatacommunities.org/id/district-council/south-lakeland,31/07/2017,Business Support Community Services,Housing Services,http://opendatacommunities.org/def/concept/finance/sercop/objective/108,Landlord,,12/07/2017,69637,600,0,Monthly rent ,250000,Housing
South Lakeland District Council,http://opendatacommunities.org/id/district-council/south-lakeland,31/07/2017,Business Support Community Services,Housing Services,http://opendatacommunities.org/def/concept/finance/sercop/objective/108,Landlord,,12/07/2017,69638,520,0,Monthly rent ,202000,Financial Services Rents
South Lakeland District Council,http://opendatacommunities.org/id/district-council/south-lakeland,31/07/2017,Business Support Community Services,Housing Services,http://opendatacommunities.org/def/concept/finance/sercop/objective/108,Landlord,,12/07/2017,69639,520,0,Monthly rent ,202000,Financial Services Rents
South Lakeland District Council,http://opendatacommunities.org/id/district-council/south-lakeland,31/07/2017,Business Support Community Services,Housing Services,http://opendatacommunities.org/def/concept/finance/sercop/objective/108,Landlord,,12/07/2017,69681,840,0,Rent payment,250010,Housing Letting Agents
South Lakeland District Council,http://opendatacommunities.org/id/district-council/south-lakeland,31/07/2017,Business Support Community Services,Housing Services,http://opendatacommunities.org/def/concept/finance/sercop/objective/108,Landlord,8672920,19/07/2017,69790,400,0,Monthly rent,202000,Financial Services Rents
South Lakeland District Council,http://opendatacommunities.org/id/district-council/south-lakeland,31/07/2017,Business Support Community Services,Housing Services,http://opendatacommunities.org/def/concept/finance/sercop/objective/108,Landlord,,24/07/2017,69939,625,0,Monthly rent ,250000,Housing
South Lakeland District Council,http://opendatacommunities.org/id/district-council/south-lakeland,31/07/2017,Business Support Community Services,Housing Services,http://opendatacommunities.org/def/concept/finance/sercop/objective/108,Landlord,7803122,24/07/2017,69940,500,0,Monthly rent,250000,Housing
South Lakeland District Council,http://opendatacommunities.org/id/district-council/south-lakeland,31/07/2017,Business Support Community Services,Housing Services,http://opendatacommunities.org/def/concept/finance/sercop/objective/108,Landlord,,26/07/2017,69999,520,0,Monthly rent ,250000,Housing
South Lakeland District Council,http://opendatacommunities.org/id/district-council/south-lakeland,31/07/2017,Business Support Community Services,Housing Services,http://opendatacommunities.org/def/concept/finance/sercop/objective/108,Landlord,,26/07/2017,70000,625,0,Monthly rents ,202000,Financial Services Rents
South Lakeland District Council,http://opendatacommunities.org/id/district-council/south-lakeland,31/07/2017,Business Support Community Services,Housing Services,http://opendatacommunities.org/def/concept/finance/sercop/objective/108,Landlord,,26/07/2017,70001,500,0,Monthly rent ,202000,Financial Services Rents
South Lakeland District Council,http://opendatacommunities.org/id/district-council/south-lakeland,31/07/2017,Business Support Community Services,Housing Services,http://opendatacommunities.org/def/concept/finance/sercop/objective/108,Landlord,,26/07/2017,70002,625,0,Monthly rent ,202000,Financial Services Rents
South Lakeland District Council,http://opendatacommunities.org/id/district-council/south-lakeland,31/07/2017,Business Support Community Services,Housing Services,http://opendatacommunities.org/def/concept/finance/sercop/objective/108,Landlord,,26/07/2017,70003,500,0,Monthly rent ,250000,Housing
South Lakeland District Council,http://opendatacommunities.org/id/district-council/south-lakeland,31/07/2017,Social Enterprise Admin,Cultural Environmental Regulatory & Planning Services,http://opendatacommunities.org/def/concept/finance/sercop/objective/104,LDA Cleaning Services Ltd,8917986,03/07/2017,69322,140,0,For the cleaning of the disabled toilet,131310,Cleaning & Janitorial Cleaning Service
South Lakeland District Council,http://opendatacommunities.org/id/district-council/south-lakeland,31/07/2017,Social Enterprise Admin,Cultural Environmental Regulatory & Planning Services,http://opendatacommunities.org/def/concept/finance/sercop/objective/104,LDA Cleaning Services Ltd,8917986,10/07/2017,69484,140,0,For the cleaning of the disabled toilet,131310,Cleaning & Janitorial Cleaning Service
South Lakeland District Council,http://opendatacommunities.org/id/district-council/south-lakeland,31/07/2017,Social Enterprise Admin,Cultural Environmental Regulatory & Planning Services,http://opendatacommunities.org/def/concept/finance/sercop/objective/104,LDA Cleaning Services Ltd,8917986,17/07/2017,69660,140,0,For the cleaning of the disabled toilet,131310,Cleaning & Janitorial Cleaning Service
South Lakeland District Council,http://opendatacommunities.org/id/district-council/south-lakeland,31/07/2017,Social Enterprise Admin,Cultural Environmental Regulatory & Planning Services,http://opendatacommunities.org/def/concept/finance/sercop/objective/104,LDA Cleaning Services Ltd,8917986,24/07/2017,69877,140,0,For the cleaning of the disabled toilet,131310,Cleaning & Janitorial Cleaning Service
South Lakeland District Council,http://opendatacommunities.org/id/district-council/south-lakeland,31/07/2017,Social Enterprise Admin,Cultural Environmental Regulatory & Planning Services,http://opendatacommunities.org/def/concept/finance/sercop/objective/104,LDA Cleaning Services Ltd,8917986,31/07/2017,70024,140,0,For the cleaning of the disabled toilet,131310,Cleaning & Janitorial Cleaning Service
South Lakeland District Council,http://opendatacommunities.org/id/district-council/south-lakeland,31/07/2017,Environment and Housing,Housing,http://opendatacommunities.org/def/concept/finance/sercop/objective/108,LEA Building Services Ltd,6285107,19/07/2017,69780,1040.21,0,"Yeats Close, Kendal",191700,Facilities Property Management
South Lakeland District Council,http://opendatacommunities.org/id/district-council/south-lakeland,31/07/2017,Business Support Community Services,Internal Trading Accounts,,Licence Bureau Ltd,4819897,03/07/2017,69392,136.4,0,Licence checks 2017/18,380000,Vehicle Management
South Lakeland District Council,http://opendatacommunities.org/id/district-council/south-lakeland,31/07/2017,Legal Services,Central Services,http://opendatacommunities.org/def/concept/finance/sercop/objective/102,LOCAL GOVERNMENT ASSOCIATION,,12/07/2017,69495,213.64,0,Fees in respect of Property Searches,202100,Financial Services Subscriptions
South Lakeland District Council,http://opendatacommunities.org/id/district-council/south-lakeland,31/07/2017,Legal Services,Central Services,http://opendatacommunities.org/def/concept/finance/sercop/objective/102,LOCAL GOVERNMENT ASSOCIATION,,26/07/2017,69989,16.05,0,Fees in respect of Property Searches,202100,Financial Services Subscriptions
South Lakeland District Council,http://opendatacommunities.org/id/district-council/south-lakeland,31/07/2017,Kendal Town Hall,Highways & Transport Services,http://opendatacommunities.org/def/concept/finance/sercop/objective/107,LOOMIS UK LTD,3200432,10/07/2017,68211,1099.04,0,Langstone House contracted service (6,192200,Facilities Security
South Lakeland District Council,http://opendatacommunities.org/id/district-council/south-lakeland,31/07/2017,Kendal Town Hall,Highways & Transport Services,http://opendatacommunities.org/def/concept/finance/sercop/objective/107,LOOMIS UK LTD,3200432,10/07/2017,69302,989.22,0,Langstone House contracted service (6,192200,Facilities Security
South Lakeland District Council,http://opendatacommunities.org/id/district-council/south-lakeland,31/07/2017,Kendal Town Hall,Highways & Transport Services,http://opendatacommunities.org/def/concept/finance/sercop/objective/107,LOOMIS UK LTD,3200432,31/07/2017,69867,989.22,0,Langstone House contracted service (6,192200,Facilities Security
South Lakeland District Council,http://opendatacommunities.org/id/district-council/south-lakeland,31/07/2017,Kendal Town Hall,Central Services,http://opendatacommunities.org/def/concept/finance/sercop/objective/102,LTT VENDING GROUP LTD,3021756,17/07/2017,69728,333.39,0,1 Smooth Roast for vending machines.,111400,Catering Vending Machines & Dispensers
South Lakeland District Council,http://opendatacommunities.org/id/district-council/south-lakeland,31/07/2017,Business Support Community Services,Cultural Environmental Regulatory & Planning Services,http://opendatacommunities.org/def/concept/finance/sercop/objective/104,Lunesdale Agricultural Society Ltd,7694105,24/07/2017,69901,88,0,Entry tickets,191000,Facilities Advertising
South Lakeland District Council,http://opendatacommunities.org/id/district-council/south-lakeland,31/07/2017,Social Enterprise Admin,Cultural Environmental Regulatory & Planning Services,http://opendatacommunities.org/def/concept/finance/sercop/objective/104,LUSCOMBE PLANT HIRE LTD,4242248,17/07/2017,69746,70,0,Delivery of  tables and benches from,381205,Vehicle Mgt Heavy Construction Equip
South Lakeland District Council,http://opendatacommunities.org/id/district-council/south-lakeland,31/07/2017,Social Enterprise Admin,Cultural Environmental Regulatory & Planning Services,http://opendatacommunities.org/def/concept/finance/sercop/objective/104,LUSCOMBE PLANT HIRE LTD,4242248,26/07/2017,69767,1100,0,To supply and lay soil approx 20 tonnes,381205,Vehicle Mgt Heavy Construction Equip
South Lakeland District Council,http://opendatacommunities.org/id/district-council/south-lakeland,31/07/2017,Business Support Community Services,Internal Trading Accounts,,M G D LTD,,03/07/2017,69358,35,0,MOTs 01/04/17 - 31/03/18,381400,Vehicle Mgt Maintenance
South Lakeland District Council,http://opendatacommunities.org/id/district-council/south-lakeland,31/07/2017,Business Support Community Services,Internal Trading Accounts,,M G D LTD,,12/07/2017,69621,35,0,MOTs 01/04/17 - 31/03/18,381400,Vehicle Mgt Maintenance
South Lakeland District Council,http://opendatacommunities.org/id/district-council/south-lakeland,31/07/2017,Business Support Community Services,Internal Trading Accounts,,M G D LTD,,12/07/2017,69622,35,0,MOTs 01/04/17 - 31/03/18,381400,Vehicle Mgt Maintenance
South Lakeland District Council,http://opendatacommunities.org/id/district-council/south-lakeland,31/07/2017,Business Support Community Services,Internal Trading Accounts,,M G D LTD,,17/07/2017,69710,35,0,MOTs 01/04/17 - 31/03/18,381400,Vehicle Mgt Maintenance
South Lakeland District Council,http://opendatacommunities.org/id/district-council/south-lakeland,31/07/2017,Business Support Community Services,Internal Trading Accounts,,M G D LTD,,26/07/2017,69979,35,0,MOTs 01/04/17 - 31/03/18,381400,Vehicle Mgt Maintenance
South Lakeland District Council,http://opendatacommunities.org/id/district-council/south-lakeland,31/07/2017,Development Management,Cultural Environmental Regulatory & Planning Services,http://opendatacommunities.org/def/concept/finance/sercop/objective/104,M T Wood & Sons Ltd,4950089,31/07/2017,70021,100,0,"To atternd  8 Cavenidh Street, Ulverston",102300,Building Roofing
South Lakeland District Council,http://opendatacommunities.org/id/district-council/south-lakeland,31/07/2017,Development Implementation,Central Services,http://opendatacommunities.org/def/concept/finance/sercop/objective/102,MARGARET BARROW INTERIORS LTD T/A MBI,,17/07/2017,69540,280,0,2 x task chairs (M207HA) @ 140 each as,211200,Furniture & Soft Furn Office Furniture
South Lakeland District Council,http://opendatacommunities.org/id/district-council/south-lakeland,31/07/2017,Development Implementation,Central Services,http://opendatacommunities.org/def/concept/finance/sercop/objective/102,Masterstaff Limited,2777593,10/07/2017,69367,174,0,SLDC Admin - - 12hrs,261300,HR Recruitment & Assessment
South Lakeland District Council,http://opendatacommunities.org/id/district-council/south-lakeland,31/07/2017,Business Support Community Services,Internal Trading Accounts,,Masterstaff Limited,2777593,05/07/2017,69418,3063.27,0,Agency staff 2017/18,261300,HR Recruitment & Assessment
South Lakeland District Council,http://opendatacommunities.org/id/district-council/south-lakeland,31/07/2017,Development Implementation,Central Services,http://opendatacommunities.org/def/concept/finance/sercop/objective/102,Masterstaff Limited,2777593,12/07/2017,69509,180,0,SLDC Admin - - 12hrs,261300,HR Recruitment & Assessment
South Lakeland District Council,http://opendatacommunities.org/id/district-council/south-lakeland,31/07/2017,Business Support Community Services,Internal Trading Accounts,,Masterstaff Limited,2777593,12/07/2017,69583,2046.44,0,Agency staff 2017/18,261300,HR Recruitment & Assessment
South Lakeland District Council,http://opendatacommunities.org/id/district-council/south-lakeland,31/07/2017,Development Implementation,Central Services,http://opendatacommunities.org/def/concept/finance/sercop/objective/102,Masterstaff Limited,2777593,19/07/2017,69727,177,0,SLDC Admin - - 12hrs,261300,HR Recruitment & Assessment
South Lakeland District Council,http://opendatacommunities.org/id/district-council/south-lakeland,31/07/2017,Business Support Community Services,Internal Trading Accounts,,Masterstaff Limited,2777593,17/07/2017,69736,2693.87,0,Agency staff 2017/18,261300,HR Recruitment & Assessment
South Lakeland District Council,http://opendatacommunities.org/id/district-council/south-lakeland,31/07/2017,Development Implementation,Central Services,http://opendatacommunities.org/def/concept/finance/sercop/objective/102,Maysand Ltd,2912226,12/07/2017,69606,19864.89,0,Kendal Town Hall,390000,Construction
South Lakeland District Council,http://opendatacommunities.org/id/district-council/south-lakeland,31/07/2017,Revenues and Benefits,Central Services,http://opendatacommunities.org/def/concept/finance/sercop/objective/102,MERITEC LTD,3224622,12/07/2017,69611,279,0,RAB Processing Contract and Agency Staff,391200,Construction Engineering
South Lakeland District Council,http://opendatacommunities.org/id/district-council/south-lakeland,31/07/2017,Social Enterprise Admin,Highways & Transport Services,http://opendatacommunities.org/def/concept/finance/sercop/objective/107,METRIC GROUP LIMITED,2560839,05/07/2017,69428,693,0,Web hosting and web tariff editor for 66,359999,Street & Traffic Not Elsewhere Classifie
South Lakeland District Council,http://opendatacommunities.org/id/district-council/south-lakeland,31/07/2017,Business Support Community Services,Cultural Environmental Regulatory & Planning Services,http://opendatacommunities.org/def/concept/finance/sercop/objective/104,MILNTHORPE KENNELS & CATTERY,8932302,03/07/2017,69256,2633.93,0,Kennelling fees 2017/18,181500,Environment Animal Services
South Lakeland District Council,http://opendatacommunities.org/id/district-council/south-lakeland,31/07/2017,ICT Group,Central Services,http://opendatacommunities.org/def/concept/finance/sercop/objective/102,MLL Telecom Ltd,2657917,31/07/2017,70036,26682,0,South Lakeland House - MPLS connection,271700,ICT Telecommunications Fixed
South Lakeland District Council,http://opendatacommunities.org/id/district-council/south-lakeland,31/07/2017,Business Support Community Services,Cultural Environmental Regulatory & Planning Services,http://opendatacommunities.org/def/concept/finance/sercop/objective/104,MOGO UK,3091301,19/07/2017,69766,154.9,0,4  labels per A4 Sheet  (100 x A4 Sheets,281400,Legal Services Specialist Support
South Lakeland District Council,http://opendatacommunities.org/id/district-council/south-lakeland,31/07/2017,Business Support Community Services,Housing Services,http://opendatacommunities.org/def/concept/finance/sercop/objective/108,Landlord,,17/07/2017,69719,1190,0,"Monthly rent for Flats A, B & C",202000,Financial Services Rents
South Lakeland District Council,http://opendatacommunities.org/id/district-council/south-lakeland,31/07/2017,Business Support Community Services,Housing Services,http://opendatacommunities.org/def/concept/finance/sercop/objective/108,My Dream Cleaners Ltd,9839482,10/07/2017,69122,525,0,Cleaning at TVF Hostel,131320,Cleaning & Janitorial Cleaning Service
South Lakeland District Council,http://opendatacommunities.org/id/district-council/south-lakeland,31/07/2017,Business Support Community Services,Housing Services,http://opendatacommunities.org/def/concept/finance/sercop/objective/108,My Dream Cleaners Ltd,9839482,10/07/2017,69518,637.5,0,Cleaning at TVF Hostel,131320,Cleaning & Janitorial Cleaning Service
South Lakeland District Council,http://opendatacommunities.org/id/district-council/south-lakeland,31/07/2017,Business Support Community Services,Housing Services,http://opendatacommunities.org/def/concept/finance/sercop/objective/108,My Dream Cleaners Ltd,9839482,10/07/2017,69519,375,0,Cleaning services,131320,Cleaning & Janitorial Cleaning Service
South Lakeland District Council,http://opendatacommunities.org/id/district-council/south-lakeland,31/07/2017,Legal Services,Central Services,http://opendatacommunities.org/def/concept/finance/sercop/objective/102,Napthens Solicitors,OC325775,05/07/2017,69429,756,0,Fees re:  Lease instruction 28C Finkle,280000,Legal Services
South Lakeland District Council,http://opendatacommunities.org/id/district-council/south-lakeland,31/07/2017,Financial Services,Cultural Environmental Regulatory & Planning Services,http://opendatacommunities.org/def/concept/finance/sercop/objective/104,Navigators & General,173444,19/07/2017,69836,6938.03,0,YI11319151 09.07.2017 Renewal 17/18,201800,Financial Services Insurance
South Lakeland District Council,http://opendatacommunities.org/id/district-council/south-lakeland,31/07/2017,Social Enterprise Admin,Highways & Transport Services,http://opendatacommunities.org/def/concept/finance/sercop/objective/107,Newlyn,,24/07/2017,69872,27,0,Motorist paid part of outstanding debt,201000,Financial Services Accountancy
South Lakeland District Council,http://opendatacommunities.org/id/district-council/south-lakeland,31/07/2017,Social Enterprise Admin,Cultural Environmental Regulatory & Planning Services,http://opendatacommunities.org/def/concept/finance/sercop/objective/104,NEWSQUEST MEDIA GROUP LTD,3102566,05/07/2017,67981,201.6,0,PUBLIC NOTICES FOR PLANNING 1 APRIL - 31,191000,Facilities Advertising
South Lakeland District Council,http://opendatacommunities.org/id/district-council/south-lakeland,31/07/2017,Social Enterprise Admin,Cultural Environmental Regulatory & Planning Services,http://opendatacommunities.org/def/concept/finance/sercop/objective/104,NEWSQUEST MEDIA GROUP LTD,3102566,10/07/2017,69325,282.24,0,PUBLIC NOTICES FOR PLANNING 1 APRIL - 31,191000,Facilities Advertising
South Lakeland District Council,http://opendatacommunities.org/id/district-council/south-lakeland,31/07/2017,Social Enterprise Admin,Cultural Environmental Regulatory & Planning Services,http://opendatacommunities.org/def/concept/finance/sercop/objective/104,NEWSQUEST MEDIA GROUP LTD,3102566,26/07/2017,69402,201.6,0,PUBLIC NOTICES FOR PLANNING 1 APRIL - 31,191000,Facilities Advertising
South Lakeland District Council,http://opendatacommunities.org/id/district-council/south-lakeland,31/07/2017,Social Enterprise Admin,Cultural Environmental Regulatory & Planning Services,http://opendatacommunities.org/def/concept/finance/sercop/objective/104,NEWSQUEST MEDIA GROUP LTD,3102566,12/07/2017,69403,161.28,0,PUBLIC NOTICES FOR PLANNING 1 APRIL - 31,191000,Facilities Advertising
South Lakeland District Council,http://opendatacommunities.org/id/district-council/south-lakeland,31/07/2017,Social Enterprise Admin,Cultural Environmental Regulatory & Planning Services,http://opendatacommunities.org/def/concept/finance/sercop/objective/104,NEWSQUEST MEDIA GROUP LTD,3102566,12/07/2017,69404,161.28,0,PUBLIC NOTICES FOR PLANNING 1 APRIL - 31,191000,Facilities Advertising
South Lakeland District Council,http://opendatacommunities.org/id/district-council/south-lakeland,31/07/2017,Legal Services,Central Services,http://opendatacommunities.org/def/concept/finance/sercop/objective/102,NEWSQUEST MEDIA GROUP LTD,3102566,17/07/2017,69697,161.28,0,Cost of advert to appear 29/06/17 re:,191000,Facilities Advertising
South Lakeland District Council,http://opendatacommunities.org/id/district-council/south-lakeland,31/07/2017,Social Enterprise Admin,Cultural Environmental Regulatory & Planning Services,http://opendatacommunities.org/def/concept/finance/sercop/objective/104,NEWSQUEST MEDIA GROUP LTD,3102566,17/07/2017,69698,120.96,0,PUBLIC NOTICES FOR PLANNING 1 APRIL - 31,191000,Facilities Advertising
South Lakeland District Council,http://opendatacommunities.org/id/district-council/south-lakeland,31/07/2017,Social Enterprise Admin,Cultural Environmental Regulatory & Planning Services,http://opendatacommunities.org/def/concept/finance/sercop/objective/104,NEWSQUEST MEDIA GROUP LTD,3102566,26/07/2017,69936,141.12,0,PUBLIC NOTICES FOR PLANNING 1 APRIL - 31,191000,Facilities Advertising
South Lakeland District Council,http://opendatacommunities.org/id/district-council/south-lakeland,31/07/2017,Human Resources,Central Services,http://opendatacommunities.org/def/concept/finance/sercop/objective/102,NORTH WEST EMPLOYERS,,10/07/2017,69449,130,0,NWE,261500,HR Training & Conferences
South Lakeland District Council,http://opendatacommunities.org/id/district-council/south-lakeland,31/07/2017,Electoral Services,Central Services,http://opendatacommunities.org/def/concept/finance/sercop/objective/102,NORTHGATE VEHICLE HIRE LTD,1434157,10/07/2017,68860,33.43,0,3 Vans for 8th June Parliamentary,381600,Vehicle Mgt Leasing
South Lakeland District Council,http://opendatacommunities.org/id/district-council/south-lakeland,31/07/2017,Electoral Services,Central Services,http://opendatacommunities.org/def/concept/finance/sercop/objective/102,NORTHGATE VEHICLE HIRE LTD,1434157,12/07/2017,68861,22.9,0,3 Vans for 8th June Parliamentary,381600,Vehicle Mgt Leasing
South Lakeland District Council,http://opendatacommunities.org/id/district-council/south-lakeland,31/07/2017,Kendal Town Hall,Cultural Environmental Regulatory & Planning Services,http://opendatacommunities.org/def/concept/finance/sercop/objective/104,NUMATIC INTERNATIONAL LIMITED,773331,10/07/2017,69524,26.2,0,1 replacement blade set for TTB 1840,131011,Cleaning & Janitorial Cleaning Materials
South Lakeland District Council,http://opendatacommunities.org/id/district-council/south-lakeland,31/07/2017,Kendal Town Hall,External Trading Accounts,,NUMATIC INTERNATIONAL LIMITED,773331,17/07/2017,69613,18.09,0,1 replacement blade set for TTB 1840,131011,Cleaning & Janitorial Cleaning Materials
South Lakeland District Council,http://opendatacommunities.org/id/district-council/south-lakeland,31/07/2017,Kendal Town Hall,Cultural Environmental Regulatory & Planning Services,http://opendatacommunities.org/def/concept/finance/sercop/objective/104,NUMATIC INTERNATIONAL LIMITED,773331,17/07/2017,69613,18.09,0,1 replacement blade set for TTB 1840,131011,Cleaning & Janitorial Cleaning Materials
South Lakeland District Council,http://opendatacommunities.org/id/district-council/south-lakeland,31/07/2017,Business Support Community Services,Cultural Environmental Regulatory & Planning Services,http://opendatacommunities.org/def/concept/finance/sercop/objective/104,OCS GROUP LTD T/A CANNON HYGIENE LTD,1298292,03/07/2017,69354,335.79,0,Clinical waste collections - 2017/18,131011,Cleaning & Janitorial Cleaning Materials
South Lakeland District Council,http://opendatacommunities.org/id/district-council/south-lakeland,31/07/2017,Business Support Community Services,Cultural Environmental Regulatory & Planning Services,http://opendatacommunities.org/def/concept/finance/sercop/objective/104,OCS GROUP LTD T/A CANNON HYGIENE LTD,1298292,05/07/2017,69424,2738.05,0,Clinical waste collections - 2017/18,131011,Cleaning & Janitorial Cleaning Materials
South Lakeland District Council,http://opendatacommunities.org/id/district-council/south-lakeland,31/07/2017,Business Support Community Services,Cultural Environmental Regulatory & Planning Services,http://opendatacommunities.org/def/concept/finance/sercop/objective/104,OCS GROUP LTD T/A CANNON HYGIENE LTD,1298292,24/07/2017,69853,106.4,0,Clinical waste collections - 2017/18,131011,Cleaning & Janitorial Cleaning Materials
South Lakeland District Council,http://opendatacommunities.org/id/district-council/south-lakeland,31/07/2017,Lake Wardens,Cultural Environmental Regulatory & Planning Services,http://opendatacommunities.org/def/concept/finance/sercop/objective/104,OFCOM,7753885,19/07/2017,69784,80,0,Coastal Station Radio (UK) Licence,202100,Financial Services Subscriptions
South Lakeland District Council,http://opendatacommunities.org/id/district-council/south-lakeland,31/07/2017,Business Support Community Services,Housing Services,http://opendatacommunities.org/def/concept/finance/sercop/objective/108,One Medical Group,,05/07/2017,69438,25,0,Medical report for ,311400,Healthcare Fees
South Lakeland District Council,http://opendatacommunities.org/id/district-council/south-lakeland,31/07/2017,ICT Group,Central Services,http://opendatacommunities.org/def/concept/finance/sercop/objective/102,OPTECH FIBRES LTD,5442069,17/07/2017,69188,855,0,Installation of cat5e data outlets in,271200,ICT Hardware
South Lakeland District Council,http://opendatacommunities.org/id/district-council/south-lakeland,31/07/2017,Social Enterprise Admin,SLDC as Agent,,PAY BY PHONE (PAYPOINT),,17/07/2017,69661,543.33,0,Pay-by-phone charges from 1 April 2017,351400,Street & Traffic Traffic Control
South Lakeland District Council,http://opendatacommunities.org/id/district-council/south-lakeland,31/07/2017,Business Support Community Services,Internal Trading Accounts,,PENNINGTONS (KENDAL) LIMITED,434649,12/07/2017,68483,2000,0,Annual Charge for use of Link Road at,182013,Environment Waste Mgt Waste Collection
South Lakeland District Council,http://opendatacommunities.org/id/district-council/south-lakeland,31/07/2017,Business Support Community Services,Internal Trading Accounts,,PENNINGTONS (KENDAL) LIMITED,434649,12/07/2017,69460,2500,0,Annual Charge for use of Link Road at,182013,Environment Waste Mgt Waste Collection
South Lakeland District Council,http://opendatacommunities.org/id/district-council/south-lakeland,31/07/2017,Lake Wardens,Cultural Environmental Regulatory & Planning Services,http://opendatacommunities.org/def/concept/finance/sercop/objective/104,PHS GROUP PLC,,05/07/2017,69430,76.3,0,Annual Contract Fee for Sanitary,131312,Cleaning & Janitorial Washroom Sanitat
South Lakeland District Council,http://opendatacommunities.org/id/district-council/south-lakeland,31/07/2017,Business Support Community Services,Transport Planning Policy,http://opendatacommunities.org/def/concept/finance/sercop/objective/107,PHS GROUP PLC,,10/07/2017,69455,12.84,0,Sanitary facilities at Canal Head,131312,Cleaning & Janitorial Washroom Sanitat
South Lakeland District Council,http://opendatacommunities.org/id/district-council/south-lakeland,31/07/2017,Development Implementation,Central Services,http://opendatacommunities.org/def/concept/finance/sercop/objective/102,PHS GROUP PLC,,10/07/2017,69487,77.04,0,Low Risk Waste Collection & Sanitary,131312,Cleaning & Janitorial Washroom Sanitat
South Lakeland District Council,http://opendatacommunities.org/id/district-council/south-lakeland,31/07/2017,Development Implementation,Central Services,http://opendatacommunities.org/def/concept/finance/sercop/objective/102,PHS GROUP PLC,,10/07/2017,69488,241.48,0,Low Risk Waste Collection & Sanitary,131312,Cleaning & Janitorial Washroom Sanitat
South Lakeland District Council,http://opendatacommunities.org/id/district-council/south-lakeland,31/07/2017,Development Implementation,Central Services,http://opendatacommunities.org/def/concept/finance/sercop/objective/102,PHS GROUP PLC,,10/07/2017,69489,210.52,0,Low Risk Waste Collection & Sanitary,131312,Cleaning & Janitorial Washroom Sanitat
South Lakeland District Council,http://opendatacommunities.org/id/district-council/south-lakeland,31/07/2017,Development Implementation,Central Services,http://opendatacommunities.org/def/concept/finance/sercop/objective/102,PHS GROUP PLC,,10/07/2017,69490,268.08,0,Low Risk Waste Collection & Sanitary,131312,Cleaning & Janitorial Washroom Sanitat
South Lakeland District Council,http://opendatacommunities.org/id/district-council/south-lakeland,31/07/2017,Development Implementation,Central Services,http://opendatacommunities.org/def/concept/finance/sercop/objective/102,PHS GROUP PLC,,10/07/2017,69491,17.12,0,Low Risk Waste Collection & Sanitary,131312,Cleaning & Janitorial Washroom Sanitat
South Lakeland District Council,http://opendatacommunities.org/id/district-council/south-lakeland,31/07/2017,Development Implementation,Central Services,http://opendatacommunities.org/def/concept/finance/sercop/objective/102,PHS GROUP PLC,,10/07/2017,69492,38.52,0,Low Risk Waste Collection & Sanitary,131312,Cleaning & Janitorial Washroom Sanitat
South Lakeland District Council,http://opendatacommunities.org/id/district-council/south-lakeland,31/07/2017,Development Implementation,Central Services,http://opendatacommunities.org/def/concept/finance/sercop/objective/102,PHS GROUP PLC,,10/07/2017,69493,12.84,0,Low Risk Waste Collection & Sanitary,131312,Cleaning & Janitorial Washroom Sanitat
South Lakeland District Council,http://opendatacommunities.org/id/district-council/south-lakeland,31/07/2017,Business Support Community Services,Housing Services,http://opendatacommunities.org/def/concept/finance/sercop/objective/108,PHS GROUP PLC,,31/07/2017,69843,276.82,0,Sanitary Bin and Sharps Annual Fee,131312,Cleaning & Janitorial Washroom Sanitat
South Lakeland District Council,http://opendatacommunities.org/id/district-council/south-lakeland,31/07/2017,Business Support Community Services,Internal Trading Accounts,,PIER 1 METALWORKS LTD,4291520,17/07/2017,69716,50,0,Repair SL021,391200,Construction Engineering
South Lakeland District Council,http://opendatacommunities.org/id/district-council/south-lakeland,31/07/2017,Human Resources,Central Services,http://opendatacommunities.org/def/concept/finance/sercop/objective/102,PILAT EUROPE LTD,4207292,19/07/2017,69261,3611.53,0,Job Evaluation Upgrade,271600,ICT Software Customised & Bespoke
South Lakeland District Council,http://opendatacommunities.org/id/district-council/south-lakeland,31/07/2017,Business Support Community Services,Central Services,http://opendatacommunities.org/def/concept/finance/sercop/objective/102,PLASTIC CARD SOLUTIONS LTD,4849000,03/07/2017,69339,50,0,Hackney Carriage Driver Badges,192200,Facilities Security
South Lakeland District Council,http://opendatacommunities.org/id/district-council/south-lakeland,31/07/2017,Business Support Community Services,Central Services,http://opendatacommunities.org/def/concept/finance/sercop/objective/102,PLASTIC CARD SOLUTIONS LTD,4849000,03/07/2017,69339,9.5,0,Hackney Carriage Driver Badges,192200,Facilities Security
South Lakeland District Council,http://opendatacommunities.org/id/district-council/south-lakeland,31/07/2017,Business Support Community Services,Internal Trading Accounts,,Preston Trade Parts Specialists,,12/07/2017,69573,5.94,0,TUrnsignal,381400,Vehicle Mgt Maintenance
South Lakeland District Council,http://opendatacommunities.org/id/district-council/south-lakeland,31/07/2017,Business Support Community Services,Internal Trading Accounts,,Preston Trade Parts Specialists,,12/07/2017,69595,7.93,0,TUrnsignal,381400,Vehicle Mgt Maintenance
South Lakeland District Council,http://opendatacommunities.org/id/district-council/south-lakeland,31/07/2017,Business Support Community Services,Internal Trading Accounts,,Preston Trade Parts Specialists,,12/07/2017,69596,13.41,0,TUrnsignal,381400,Vehicle Mgt Maintenance
South Lakeland District Council,http://opendatacommunities.org/id/district-council/south-lakeland,31/07/2017,Business Support Community Services,Internal Trading Accounts,,Preston Trade Parts Specialists,,17/07/2017,69654,149.73,0,TUrnsignal,381400,Vehicle Mgt Maintenance
South Lakeland District Council,http://opendatacommunities.org/id/district-council/south-lakeland,31/07/2017,Business Support Community Services,Internal Trading Accounts,,Preston Trade Parts Specialists,,17/07/2017,69655,17.73,0,TUrnsignal,381400,Vehicle Mgt Maintenance
South Lakeland District Council,http://opendatacommunities.org/id/district-council/south-lakeland,31/07/2017,Business Support Community Services,Internal Trading Accounts,,Preston Trade Parts Specialists,,17/07/2017,69735,67.54,0,TUrnsignal,381400,Vehicle Mgt Maintenance
South Lakeland District Council,http://opendatacommunities.org/id/district-council/south-lakeland,31/07/2017,Business Support Community Services,Internal Trading Accounts,,Preston Trade Parts Specialists,,26/07/2017,69975,94.42,0,TUrnsignal,381400,Vehicle Mgt Maintenance
South Lakeland District Council,http://opendatacommunities.org/id/district-council/south-lakeland,31/07/2017,ICT Group,Central Services,http://opendatacommunities.org/def/concept/finance/sercop/objective/102,PROBRAND LTD,2653446,03/07/2017,69290,76.3,0,monitor,271600,ICT Software Customised & Bespoke
South Lakeland District Council,http://opendatacommunities.org/id/district-council/south-lakeland,31/07/2017,ICT Group,Central Services,http://opendatacommunities.org/def/concept/finance/sercop/objective/102,PROBRAND LTD,2653446,05/07/2017,69413,2.41,0,3M vga cable,271600,ICT Software Customised & Bespoke
South Lakeland District Council,http://opendatacommunities.org/id/district-council/south-lakeland,31/07/2017,ICT Group,Central Services,http://opendatacommunities.org/def/concept/finance/sercop/objective/102,PROBRAND LTD,2653446,12/07/2017,69632,9.2,0,10x 10 metre ethernet cables,271600,ICT Software Customised & Bespoke
South Lakeland District Council,http://opendatacommunities.org/id/district-council/south-lakeland,31/07/2017,ICT Group,Central Services,http://opendatacommunities.org/def/concept/finance/sercop/objective/102,PROBRAND LTD,2653446,19/07/2017,69737,203.9,0,Belkin Suit Line Collection Back pack -,271600,ICT Software Customised & Bespoke
South Lakeland District Council,http://opendatacommunities.org/id/district-council/south-lakeland,31/07/2017,ICT Group,Central Services,http://opendatacommunities.org/def/concept/finance/sercop/objective/102,PROBRAND LTD,2653446,24/07/2017,69942,20.56,0,8x hdmi to dvi cables,271600,ICT Software Customised & Bespoke
South Lakeland District Council,http://opendatacommunities.org/id/district-council/south-lakeland,31/07/2017,Leisure and Wellbeing,Environment Regulatory,,Proludic Ltd,4455803,19/07/2017,69504,26569,0,Rothay Park Picnic Area as quote number,331200,Sports & Playground- Maintenance- Servic
South Lakeland District Council,http://opendatacommunities.org/id/district-council/south-lakeland,31/07/2017,Development Implementation,Cultural Environmental Regulatory & Planning Services,http://opendatacommunities.org/def/concept/finance/sercop/objective/104,PS BUSINESS MATTERS,8147185,12/07/2017,69541,2000,0,Kendal Futures Programme Support,151900,Consultancy Management
South Lakeland District Council,http://opendatacommunities.org/id/district-council/south-lakeland,31/07/2017,Development Implementation,Cultural Environmental Regulatory & Planning Services,http://opendatacommunities.org/def/concept/finance/sercop/objective/104,PS BUSINESS MATTERS,8147185,17/07/2017,69692,300,0,Social Media Training - One day.,151900,Consultancy Management
South Lakeland District Council,http://opendatacommunities.org/id/district-council/south-lakeland,31/07/2017,Development Implementation,Central Services,http://opendatacommunities.org/def/concept/finance/sercop/objective/102,R G PARKINS & PARTNERS LTD,4107150,17/07/2017,69725,220,0,Castle Dairy - Ground Floor Repairs -,152200,Consultancy Technical & Feasibility
South Lakeland District Council,http://opendatacommunities.org/id/district-council/south-lakeland,31/07/2017,Development Implementation,Cultural Environmental Regulatory & Planning Services,http://opendatacommunities.org/def/concept/finance/sercop/objective/104,R G PARKINS & PARTNERS LTD,4107150,31/07/2017,70009,7900,0,Grange Lido - (APA concrete testing &,152200,Consultancy Technical & Feasibility
South Lakeland District Council,http://opendatacommunities.org/id/district-council/south-lakeland,31/07/2017,Business Support Community Services,Housing Services,http://opendatacommunities.org/def/concept/finance/sercop/objective/108,Landlord,,10/07/2017,69565,400,0,"Monthly rent for 7 Yard, 89",250000,Housing
South Lakeland District Council,http://opendatacommunities.org/id/district-council/south-lakeland,31/07/2017,Business Support Community Services,Internal Trading Accounts,,RIBBLE FUEL OILS,,12/07/2017,69585,1495.32,0,Gas oil 2017/18,381100,Vehicle Mgt Fuel
South Lakeland District Council,http://opendatacommunities.org/id/district-council/south-lakeland,31/07/2017,Business Support Community Services,Internal Trading Accounts,,RIBBLE FUEL OILS,,24/07/2017,69896,1216.56,0,Gas oil 2017/18,381100,Vehicle Mgt Fuel
South Lakeland District Council,http://opendatacommunities.org/id/district-council/south-lakeland,31/07/2017,Business Support Community Services,Internal Trading Accounts,,RIBBLESDALE AUTO ELECTRICS 1992 LTD,2732686,17/07/2017,69722,37.76,0,Parts,381500,Vehicle Mgt Parts
South Lakeland District Council,http://opendatacommunities.org/id/district-council/south-lakeland,31/07/2017,Business Support Community Services,Internal Trading Accounts,,RIBBLESDALE AUTO ELECTRICS 1992 LTD,2732686,17/07/2017,69723,220,0,Parts,381500,Vehicle Mgt Parts
South Lakeland District Council,http://opendatacommunities.org/id/district-council/south-lakeland,31/07/2017,Business Support Community Services,Housing Services,http://opendatacommunities.org/def/concept/finance/sercop/objective/108,Richard Bell Electrical Ltd,7598748,12/07/2017,69439,35.25,0,Repair Bathroom Lighting Union Coach,101100,Building Electrical
South Lakeland District Council,http://opendatacommunities.org/id/district-council/south-lakeland,31/07/2017,Policy & Partnerships,Central Services,http://opendatacommunities.org/def/concept/finance/sercop/objective/102,RIVERBANK HOSPITALITY CATERING,,05/07/2017,69425,34.65,0,Catering for Aston/Meritec GIS,111000,Catering Banquet & Catering
South Lakeland District Council,http://opendatacommunities.org/id/district-council/south-lakeland,31/07/2017,Human Resources,Central Services,http://opendatacommunities.org/def/concept/finance/sercop/objective/102,RIVERBANK HOSPITALITY CATERING,,19/07/2017,69704,39.6,0,Cumbria HR managers meeting,111000,Catering Banquet & Catering
South Lakeland District Council,http://opendatacommunities.org/id/district-council/south-lakeland,31/07/2017,Democratic and Member Services,Central Services,http://opendatacommunities.org/def/concept/finance/sercop/objective/102,RIVERBANK HOSPITALITY CATERING,,24/07/2017,69956,59.4,0,buffet for x12 O & S training on 14,111000,Catering Banquet & Catering
South Lakeland District Council,http://opendatacommunities.org/id/district-council/south-lakeland,31/07/2017,Development Implementation,SLDC as Agent,,RIVERBANK HOSPITALITY CATERING,,26/07/2017,69991,68.5,0,"Sandwich lunch, tea and coffee for  10",111000,Catering Banquet & Catering
South Lakeland District Council,http://opendatacommunities.org/id/district-council/south-lakeland,31/07/2017,Development Implementation,Transport,http://opendatacommunities.org/def/concept/finance/sercop/objective/107,Roland Hill (Parsonby) Ltd,1018220,24/07/2017,69873,14445.13,0,Westmorland Shopping Centre Car Park -,391200,Construction Engineering
South Lakeland District Council,http://opendatacommunities.org/id/district-council/south-lakeland,31/07/2017,Business Support Community Services,Internal Trading Accounts,,Romaquip UK,,05/07/2017,69420,150,0,Guide wheels,381000,Vehicle Mgt Commercial
South Lakeland District Council,http://opendatacommunities.org/id/district-council/south-lakeland,31/07/2017,Business Support Community Services,Internal Trading Accounts,,Romaquip UK,,17/07/2017,69672,341.45,0,Repair SL061,381000,Vehicle Mgt Commercial
South Lakeland District Council,http://opendatacommunities.org/id/district-council/south-lakeland,31/07/2017,Printing Section,Central Services,http://opendatacommunities.org/def/concept/finance/sercop/objective/102,ROSEFOX PAPER LIMITED,1655083,12/07/2017,69599,24.04,0,A4 160gsm Dark Blue,341000,Stationery Paper
South Lakeland District Council,http://opendatacommunities.org/id/district-council/south-lakeland,31/07/2017,Revenues and Benefits,Central Services,http://opendatacommunities.org/def/concept/finance/sercop/objective/102,ROYAL MAIL GROUP PLC,,03/07/2017,69369,74.75,0,Postal Charges a/c 0055114000  (2017/18),301200,Mail Services� Postage
South Lakeland District Council,http://opendatacommunities.org/id/district-council/south-lakeland,31/07/2017,Revenues and Benefits,SLDC as Agent,,ROYAL MAIL GROUP PLC,,03/07/2017,69370,1824.45,0,Postal Charges a/c 0198123013 (2017-18),301200,Mail Services� Postage
South Lakeland District Council,http://opendatacommunities.org/id/district-council/south-lakeland,31/07/2017,Revenues and Benefits,SLDC as Agent,,ROYAL MAIL GROUP PLC,,12/07/2017,69609,1741.92,0,Postal Charges a/c 0198123013 (2017-18),301200,Mail Services� Postage
South Lakeland District Council,http://opendatacommunities.org/id/district-council/south-lakeland,31/07/2017,Revenues and Benefits,SLDC as Agent,,ROYAL MAIL GROUP PLC,,12/07/2017,69656,28.81,0,Response Services Licence  A/C,301200,Mail Services� Postage
South Lakeland District Council,http://opendatacommunities.org/id/district-council/south-lakeland,31/07/2017,Revenues and Benefits,SLDC as Agent,,ROYAL MAIL GROUP PLC,,19/07/2017,69773,1290.67,0,Postal Charges a/c 0198123013 (2017-18),301200,Mail Services� Postage
South Lakeland District Council,http://opendatacommunities.org/id/district-council/south-lakeland,31/07/2017,Revenues and Benefits,SLDC as Agent,,ROYAL MAIL GROUP PLC,,24/07/2017,69879,1533.18,0,Postal Charges a/c 0198123013 (2017-18),301200,Mail Services� Postage
South Lakeland District Council,http://opendatacommunities.org/id/district-council/south-lakeland,31/07/2017,Business Support Community Services,Internal Trading Accounts,,S J Bargh,532272,03/07/2017,69355,126,0,MOTs 2017/18,381400,Vehicle Mgt Maintenance
South Lakeland District Council,http://opendatacommunities.org/id/district-council/south-lakeland,31/07/2017,Business Support Community Services,Internal Trading Accounts,,S J Bargh,532272,12/07/2017,69575,217,0,MOTs 2017/18,381400,Vehicle Mgt Maintenance
South Lakeland District Council,http://opendatacommunities.org/id/district-council/south-lakeland,31/07/2017,Business Support Community Services,Internal Trading Accounts,,S J Bargh,532272,12/07/2017,69576,126,0,MOTs 2017/18,381400,Vehicle Mgt Maintenance
South Lakeland District Council,http://opendatacommunities.org/id/district-council/south-lakeland,31/07/2017,Business Support Community Services,Internal Trading Accounts,,S J Bargh,532272,12/07/2017,69577,208.5,0,MOTs 2017/18,381400,Vehicle Mgt Maintenance
South Lakeland District Council,http://opendatacommunities.org/id/district-council/south-lakeland,31/07/2017,Business Support Community Services,Internal Trading Accounts,,S J Bargh,532272,12/07/2017,69584,143,0,MOTs 2017/18,381400,Vehicle Mgt Maintenance
South Lakeland District Council,http://opendatacommunities.org/id/district-council/south-lakeland,31/07/2017,Business Support Community Services,Internal Trading Accounts,,S J Bargh,532272,24/07/2017,69800,126,0,MOTs 2017/18,381400,Vehicle Mgt Maintenance
South Lakeland District Council,http://opendatacommunities.org/id/district-council/south-lakeland,31/07/2017,Development Management,Cultural Environmental Regulatory & Planning Services,http://opendatacommunities.org/def/concept/finance/sercop/objective/104,SALFORD CITY COUNCIL,,10/07/2017,69286,171,0,Checking of Structural Information in,908000,Public Bodies Council support services
South Lakeland District Council,http://opendatacommunities.org/id/district-council/south-lakeland,31/07/2017,Legal Services,Central Services,http://opendatacommunities.org/def/concept/finance/sercop/objective/102,SEFTON COUNCIL,2832920,03/07/2017,69324,500,0,North West Legal Consortium subs for,202100,Financial Services Subscriptions
South Lakeland District Council,http://opendatacommunities.org/id/district-council/south-lakeland,31/07/2017,Social Enterprise Admin,Cultural Environmental Regulatory & Planning Services,http://opendatacommunities.org/def/concept/finance/sercop/objective/104,SHORROCK TRICHEM,4179799,19/07/2017,69783,181.81,0,1 x 5lt Hi-Foam Detergent Order,131312,Cleaning & Janitorial Washroom Sanitat
South Lakeland District Council,http://opendatacommunities.org/id/district-council/south-lakeland,31/07/2017,Customer Services,Central Services,http://opendatacommunities.org/def/concept/finance/sercop/objective/102,SHRED-IT,4047194,10/07/2017,69499,149.58,0,shred it removal,279999,ICT Not Elsewhere Classified
South Lakeland District Council,http://opendatacommunities.org/id/district-council/south-lakeland,31/07/2017,Customer Services,Central Services,http://opendatacommunities.org/def/concept/finance/sercop/objective/102,SHRED-IT,4047194,19/07/2017,69505,150.29,0,shred it supplies,279999,ICT Not Elsewhere Classified
South Lakeland District Council,http://opendatacommunities.org/id/district-council/south-lakeland,31/07/2017,Customer Services,Central Services,http://opendatacommunities.org/def/concept/finance/sercop/objective/102,SHRED-IT,4047194,19/07/2017,69506,206.7,0,shred it supplies,279999,ICT Not Elsewhere Classified
South Lakeland District Council,http://opendatacommunities.org/id/district-council/south-lakeland,31/07/2017,Customer Services,Central Services,http://opendatacommunities.org/def/concept/finance/sercop/objective/102,SHRED-IT,4047194,12/07/2017,69658,147.08,0,shred it supplies,279999,ICT Not Elsewhere Classified
South Lakeland District Council,http://opendatacommunities.org/id/district-council/south-lakeland,31/07/2017,Kendal Town Hall,Cultural Environmental Regulatory & Planning Services,http://opendatacommunities.org/def/concept/finance/sercop/objective/104,SICO EUROPE LIMITED,902613,24/07/2017,69815,769,0,Annual maintenance of stage units at,219999,Furniture Not Elsewhere Classified
South Lakeland District Council,http://opendatacommunities.org/id/district-council/south-lakeland,31/07/2017,Business Support Community Services,Internal Trading Accounts,,SOLWAY DAF,1393710,03/07/2017,69340,90.27,0,Cap,381000,Vehicle Mgt Commercial
South Lakeland District Council,http://opendatacommunities.org/id/district-council/south-lakeland,31/07/2017,Business Support Community Services,Internal Trading Accounts,,SOLWAY DAF,1393710,03/07/2017,69341,83.04,0,Cap,381000,Vehicle Mgt Commercial
South Lakeland District Council,http://opendatacommunities.org/id/district-council/south-lakeland,31/07/2017,Business Support Community Services,Internal Trading Accounts,,SOLWAY DAF,1393710,03/07/2017,69347,92.02,0,Cap,381000,Vehicle Mgt Commercial
South Lakeland District Council,http://opendatacommunities.org/id/district-council/south-lakeland,31/07/2017,Business Support Community Services,Internal Trading Accounts,,SOLWAY DAF,1393710,03/07/2017,69348,186.29,0,Cap,381000,Vehicle Mgt Commercial
South Lakeland District Council,http://opendatacommunities.org/id/district-council/south-lakeland,31/07/2017,Business Support Community Services,Internal Trading Accounts,,SOLWAY DAF,1393710,03/07/2017,69387,37.81,0,Cap,381000,Vehicle Mgt Commercial
South Lakeland District Council,http://opendatacommunities.org/id/district-council/south-lakeland,31/07/2017,Business Support Community Services,Internal Trading Accounts,,SOLWAY DAF,1393710,12/07/2017,69581,201.15,0,Spring,381000,Vehicle Mgt Commercial
South Lakeland District Council,http://opendatacommunities.org/id/district-council/south-lakeland,31/07/2017,Business Support Community Services,Internal Trading Accounts,,SOLWAY DAF,1393710,12/07/2017,69582,156.72,0,Spring,381000,Vehicle Mgt Commercial
South Lakeland District Council,http://opendatacommunities.org/id/district-council/south-lakeland,31/07/2017,Business Support Community Services,Internal Trading Accounts,,SOLWAY DAF,1393710,12/07/2017,69588,190.83,0,Spring,381000,Vehicle Mgt Commercial
South Lakeland District Council,http://opendatacommunities.org/id/district-council/south-lakeland,31/07/2017,Business Support Community Services,Internal Trading Accounts,,SOLWAY DAF,1393710,12/07/2017,69589,201.15,0,Spring,381000,Vehicle Mgt Commercial
South Lakeland District Council,http://opendatacommunities.org/id/district-council/south-lakeland,31/07/2017,Business Support Community Services,Internal Trading Accounts,,SOLWAY DAF,1393710,12/07/2017,69590,61.37,0,Spring,381000,Vehicle Mgt Commercial
South Lakeland District Council,http://opendatacommunities.org/id/district-council/south-lakeland,31/07/2017,Business Support Community Services,Internal Trading Accounts,,SOLWAY DAF,1393710,12/07/2017,69590,202.1,0,Spring,381000,Vehicle Mgt Commercial
South Lakeland District Council,http://opendatacommunities.org/id/district-council/south-lakeland,31/07/2017,Business Support Community Services,Internal Trading Accounts,,SOLWAY DAF,1393710,12/07/2017,69594,27.28,0,Spring,381000,Vehicle Mgt Commercial
South Lakeland District Council,http://opendatacommunities.org/id/district-council/south-lakeland,31/07/2017,Business Support Community Services,Internal Trading Accounts,,SOLWAY DAF,1393710,17/07/2017,69712,45.18,0,Spring,381000,Vehicle Mgt Commercial
South Lakeland District Council,http://opendatacommunities.org/id/district-council/south-lakeland,31/07/2017,Business Support Community Services,Internal Trading Accounts,,SOLWAY DAF,1393710,17/07/2017,69714,60.78,0,Spring,381000,Vehicle Mgt Commercial
South Lakeland District Council,http://opendatacommunities.org/id/district-council/south-lakeland,31/07/2017,Business Support Community Services,Internal Trading Accounts,,SOLWAY DAF,1393710,26/07/2017,69960,300.01,0,Spring,381000,Vehicle Mgt Commercial
South Lakeland District Council,http://opendatacommunities.org/id/district-council/south-lakeland,31/07/2017,Business Support Community Services,Internal Trading Accounts,,SOLWAY DAF,1393710,26/07/2017,69963,10.08,0,Spring,381000,Vehicle Mgt Commercial
South Lakeland District Council,http://opendatacommunities.org/id/district-council/south-lakeland,31/07/2017,Electoral Services,Central Services,http://opendatacommunities.org/def/concept/finance/sercop/objective/102,SOUTH LAKES HOUSING,IP031419,03/07/2017,69294,44,0,Cleaning of Polling Station CCC election,191700,Facilities Property Management
South Lakeland District Council,http://opendatacommunities.org/id/district-council/south-lakeland,31/07/2017,Electoral Services,Central Services,http://opendatacommunities.org/def/concept/finance/sercop/objective/102,SOUTH LAKES HOUSING,IP031419,03/07/2017,69295,44,0,Cleaning Of Polling Station after,191700,Facilities Property Management
South Lakeland District Council,http://opendatacommunities.org/id/district-council/south-lakeland,31/07/2017,Leisure and Wellbeing,Cultural Environmental Regulatory & Planning Services,http://opendatacommunities.org/def/concept/finance/sercop/objective/104,SOUTH LAKES TREE SURGEONS & LANDSCAPES,5342745,24/07/2017,69288,1920,0,"Beresford Road, Windermere",241210,Horticultural Tree Trimming
South Lakeland District Council,http://opendatacommunities.org/id/district-council/south-lakeland,31/07/2017,Leisure and Wellbeing,Cultural Environmental Regulatory & Planning Services,http://opendatacommunities.org/def/concept/finance/sercop/objective/104,SOUTH LAKES TREE SURGEONS & LANDSCAPES,5342745,12/07/2017,69436,180,0,Removal of broken branches from oak tree,241210,Horticultural Tree Trimming
South Lakeland District Council,http://opendatacommunities.org/id/district-council/south-lakeland,31/07/2017,Leisure and Wellbeing,Cultural Environmental Regulatory & Planning Services,http://opendatacommunities.org/def/concept/finance/sercop/objective/104,SOUTH LAKES TREE SURGEONS & LANDSCAPES,5342745,17/07/2017,69699,120,0,"Removal of hawthorn at Stockbridge Lane,",241210,Horticultural Tree Trimming
South Lakeland District Council,http://opendatacommunities.org/id/district-council/south-lakeland,31/07/2017,Business Support Community Services,Internal Trading Accounts,,SPECSAVERS,2604077,10/07/2017,69457,20.83,0,Hearing tests,311400,Healthcare Fees
South Lakeland District Council,http://opendatacommunities.org/id/district-council/south-lakeland,31/07/2017,Business Support Community Services,Internal Trading Accounts,,SPECSAVERS,2604077,10/07/2017,69458,20.83,0,Hearing tests,311400,Healthcare Fees
South Lakeland District Council,http://opendatacommunities.org/id/district-council/south-lakeland,31/07/2017,Business Support Community Services,Internal Trading Accounts,,SPECSAVERS,2604077,10/07/2017,69459,20.83,0,Hearing tests,311400,Healthcare Fees
South Lakeland District Council,http://opendatacommunities.org/id/district-council/south-lakeland,31/07/2017,Business Support Community Services,Internal Trading Accounts,,STANHOPE WORKSHOP SERVICES,,26/07/2017,69972,585,0,Service compressor,380000,Vehicle Management
South Lakeland District Council,http://opendatacommunities.org/id/district-council/south-lakeland,31/07/2017,Democratic and Member Services,Central Services,http://opendatacommunities.org/def/concept/finance/sercop/objective/102,STEVEN BARBER PHOTOGRAPHY LTD,6058535,12/07/2017,69601,200,0,Chairman's portrait for Cllr ,191100,Facilities Design & Photography
South Lakeland District Council,http://opendatacommunities.org/id/district-council/south-lakeland,31/07/2017,Customer Services,Central Services,http://opendatacommunities.org/def/concept/finance/sercop/objective/102,STEVEN BARBER PHOTOGRAPHY LTD,6058535,12/07/2017,69659,300,0,steve barber photoraphy for south,191100,Facilities Design & Photography
South Lakeland District Council,http://opendatacommunities.org/id/district-council/south-lakeland,31/07/2017,Business Support Community Services,Internal Trading Accounts,,TAYLOR ENGINEERING & FABRICATIONS LTD,4989359,03/07/2017,69351,26.53,0,Bushes,391200,Construction Engineering
South Lakeland District Council,http://opendatacommunities.org/id/district-council/south-lakeland,31/07/2017,Business Support Community Services,Internal Trading Accounts,,TAYLOR ENGINEERING & FABRICATIONS LTD,4989359,03/07/2017,69383,1192.66,0,Bushes,391200,Construction Engineering
South Lakeland District Council,http://opendatacommunities.org/id/district-council/south-lakeland,31/07/2017,Business Support Community Services,Internal Trading Accounts,,TAYLOR ENGINEERING & FABRICATIONS LTD,4989359,03/07/2017,69384,43.35,0,Bushes,391200,Construction Engineering
South Lakeland District Council,http://opendatacommunities.org/id/district-council/south-lakeland,31/07/2017,Business Support Community Services,Internal Trading Accounts,,TAYLOR ENGINEERING & FABRICATIONS LTD,4989359,10/07/2017,69467,38.45,0,Bushes,391200,Construction Engineering
South Lakeland District Council,http://opendatacommunities.org/id/district-council/south-lakeland,31/07/2017,Business Support Community Services,Internal Trading Accounts,,TECHNIJET LTD,2776601,10/07/2017,69500,268.81,0,Service & repair pressure washers,139999,Cleaning & Janitorial Not Elsewhere Clas
South Lakeland District Council,http://opendatacommunities.org/id/district-council/south-lakeland,31/07/2017,Business Support Community Services,Housing Services,http://opendatacommunities.org/def/concept/finance/sercop/objective/108,The County Hotel,1815672,24/07/2017,69935,950,0,Accommodation for,250000,Housing
South Lakeland District Council,http://opendatacommunities.org/id/district-council/south-lakeland,31/07/2017,Business Support Community Services,Housing Services,http://opendatacommunities.org/def/concept/finance/sercop/objective/108,THE JAMES COCHRANE PRACTICE,,03/07/2017,69277,25,0,Medical report,311600,Healthcare Services
South Lakeland District Council,http://opendatacommunities.org/id/district-council/south-lakeland,31/07/2017,Business Support Community Services,Housing Services,http://opendatacommunities.org/def/concept/finance/sercop/objective/108,THE JAMES COCHRANE PRACTICE,,31/07/2017,70005,25,0,Medical report,311600,Healthcare Services
South Lakeland District Council,http://opendatacommunities.org/id/district-council/south-lakeland,31/07/2017,Kendal Town Hall,Cultural Environmental Regulatory & Planning Services,http://opendatacommunities.org/def/concept/finance/sercop/objective/104,THE LAUNDRY SHOP LTD,5421366,24/07/2017,69903,121.45,0,"To washing, drying and ironing cloths",131311,Cleaning & Janitorial Laundry Service
South Lakeland District Council,http://opendatacommunities.org/id/district-council/south-lakeland,31/07/2017,Business Support Community Services,Cultural Environmental Regulatory & Planning Services,http://opendatacommunities.org/def/concept/finance/sercop/objective/104,THE NATIONAL TRUST,,03/07/2017,69409,2650,0,Rent Millerground Sailing Base,202100,Financial Services Subscriptions
South Lakeland District Council,http://opendatacommunities.org/id/district-council/south-lakeland,31/07/2017,Financial Services,Central Services,http://opendatacommunities.org/def/concept/finance/sercop/objective/102,The Salary Exchange Limited,6784632,03/07/2017,69323,41.63,0,Service charge for Computershare,260000,HR
South Lakeland District Council,http://opendatacommunities.org/id/district-council/south-lakeland,31/07/2017,Financial Services,Central Services,http://opendatacommunities.org/def/concept/finance/sercop/objective/102,The Salary Exchange Limited,6784632,24/07/2017,69925,41.63,0,Service charge for Computershare,260000,HR
South Lakeland District Council,http://opendatacommunities.org/id/district-council/south-lakeland,31/07/2017,Cemeteries Office,Cultural Environmental Regulatory & Planning Services,http://opendatacommunities.org/def/concept/finance/sercop/objective/104,THE SIGN MAN,5748839,17/07/2017,69741,45,0,1 off post mountable A4 landscape alum.,102400,Building Signage
South Lakeland District Council,http://opendatacommunities.org/id/district-council/south-lakeland,31/07/2017,Development Strategy,Central Services,http://opendatacommunities.org/def/concept/finance/sercop/objective/102,The White Paper Conference Company Ltd,3714517,19/07/2017,69781,189,0,Planning System,261500,HR Training & Conferences
South Lakeland District Council,http://opendatacommunities.org/id/district-council/south-lakeland,31/07/2017,Human Resources,Central Services,http://opendatacommunities.org/def/concept/finance/sercop/objective/102,The Word Centre,3195753,19/07/2017,69814,1244.7,0,2 courses 27/04/2017 and 12/07/2017,261500,HR Training & Conferences
South Lakeland District Council,http://opendatacommunities.org/id/district-council/south-lakeland,31/07/2017,Development Implementation,Central Services,http://opendatacommunities.org/def/concept/finance/sercop/objective/102,THOMAS GRAHAM & SONS LTD,656879,17/07/2017,68514,265.22,0,Lemon Floor Gel - 1 Box,101400,Building General Materials
South Lakeland District Council,http://opendatacommunities.org/id/district-council/south-lakeland,31/07/2017,Development Implementation,Central Services,http://opendatacommunities.org/def/concept/finance/sercop/objective/102,THOMAS GRAHAM & SONS LTD,656879,12/07/2017,69478,14.4,0,C-Fold Paper Hand Towels Blue 1 Ply - 3,101400,Building General Materials
South Lakeland District Council,http://opendatacommunities.org/id/district-council/south-lakeland,31/07/2017,Lake Wardens,Cultural Environmental Regulatory & Planning Services,http://opendatacommunities.org/def/concept/finance/sercop/objective/104,THOMAS GRAHAM & SONS LTD,656879,10/07/2017,69479,43.5,0,2 x Packs of JP32 Coreless Toilet Rolls,101400,Building General Materials
South Lakeland District Council,http://opendatacommunities.org/id/district-council/south-lakeland,31/07/2017,Development Implementation,Central Services,http://opendatacommunities.org/def/concept/finance/sercop/objective/102,THOMAS GRAHAM & SONS LTD,656879,19/07/2017,69480,360.67,0,Lemon Floor Gel - 1 box of 2,101400,Building General Materials
South Lakeland District Council,http://opendatacommunities.org/id/district-council/south-lakeland,31/07/2017,Kendal Town Hall,External Trading Accounts,,THOMAS GRAHAM & SONS LTD,656879,10/07/2017,69481,42.9,0,Jangro AE115 Or Similar - Paper Hand,101400,Building General Materials
South Lakeland District Council,http://opendatacommunities.org/id/district-council/south-lakeland,31/07/2017,Kendal Town Hall,Cultural Environmental Regulatory & Planning Services,http://opendatacommunities.org/def/concept/finance/sercop/objective/104,THOMAS GRAHAM & SONS LTD,656879,10/07/2017,69482,80.26,0,Red Cloths - Bio-Wipes - Packs Of 25,101400,Building General Materials
South Lakeland District Council,http://opendatacommunities.org/id/district-council/south-lakeland,31/07/2017,Business Support Community Services,Internal Trading Accounts,,THOMAS GRAHAM & SONS LTD,656879,12/07/2017,69578,58.4,0,Tool bag,101400,Building General Materials
South Lakeland District Council,http://opendatacommunities.org/id/district-council/south-lakeland,31/07/2017,Business Support Community Services,Internal Trading Accounts,,THOMAS GRAHAM & SONS LTD,656879,12/07/2017,69578,20.21,0,Tool bag,101400,Building General Materials
South Lakeland District Council,http://opendatacommunities.org/id/district-council/south-lakeland,31/07/2017,Business Support Community Services,Internal Trading Accounts,,THOMAS GRAHAM & SONS LTD,656879,12/07/2017,69579,125,0,Drill,101400,Building General Materials
South Lakeland District Council,http://opendatacommunities.org/id/district-council/south-lakeland,31/07/2017,Environment and Housing,Housing,http://opendatacommunities.org/def/concept/finance/sercop/objective/108,THYSSENKRUPP ENCASA,1166449,05/07/2017,69456,1810,0," Swarthmoor,",321311,Social Care Supplies Equipment
South Lakeland District Council,http://opendatacommunities.org/id/district-council/south-lakeland,31/07/2017,Financial Services,Central Services,http://opendatacommunities.org/def/concept/finance/sercop/objective/102,TIAA Ltd,4546319,17/07/2017,69566,3283.3,0,17/18 Internal Audit,201100,Financial Services Audit
South Lakeland District Council,http://opendatacommunities.org/id/district-council/south-lakeland,31/07/2017,Legal Services,Cultural Environmental Regulatory & Planning Services,http://opendatacommunities.org/def/concept/finance/sercop/objective/104,Timothy Leader,,31/07/2017,70006,850,0,Fees in  respect of Underbarrrow Road,281200,Legal Services General Support
South Lakeland District Council,http://opendatacommunities.org/id/district-council/south-lakeland,31/07/2017,Business Support Community Services,Internal Trading Accounts,,TTS (GARSTANG) LTD,4990573,17/07/2017,69671,409.02,0,Repair SL001,381500,Vehicle Mgt Parts
South Lakeland District Council,http://opendatacommunities.org/id/district-council/south-lakeland,31/07/2017,Business Support Community Services,Housing Services,http://opendatacommunities.org/def/concept/finance/sercop/objective/108,ULTRACARE PROPERTY MANAGEMENT LTD,5020554,10/07/2017,69516,335,0,Clear property,191700,Facilities Property Management
South Lakeland District Council,http://opendatacommunities.org/id/district-council/south-lakeland,31/07/2017,Business Support Community Services,Housing Services,http://opendatacommunities.org/def/concept/finance/sercop/objective/108,ULTRACARE PROPERTY MANAGEMENT LTD,5020554,10/07/2017,69517,130,0,"Plastering and Painting works, 20",191700,Facilities Property Management
South Lakeland District Council,http://opendatacommunities.org/id/district-council/south-lakeland,31/07/2017,Business Support Community Services,Housing Services,http://opendatacommunities.org/def/concept/finance/sercop/objective/108,ULTRACARE PROPERTY MANAGEMENT LTD,5020554,19/07/2017,69791,90,0,"Rubbish removal at 6 Garden Mews, Kendal",191700,Facilities Property Management
South Lakeland District Council,http://opendatacommunities.org/id/district-council/south-lakeland,31/07/2017,Revenues and Benefits,Non-Service Payments,,Ulverston BID Company Ltd,9761005,12/07/2017,69536,2313.37,0,Collection figures for June 2017,201700,Financial Services Grants
South Lakeland District Council,http://opendatacommunities.org/id/district-council/south-lakeland,31/07/2017,Social Enterprise Admin,Culture and Related Serv,http://opendatacommunities.org/def/concept/finance/sercop/objective/104,ULVERSTON TOWN COUNCIL,,17/07/2017,69724,4318.28,0,Lightburn Park MUGA Wren contribution,908000,Public Bodies Council support services
South Lakeland District Council,http://opendatacommunities.org/id/district-council/south-lakeland,31/07/2017,Business Support Community Services,Cultural Environmental Regulatory & Planning Services,http://opendatacommunities.org/def/concept/finance/sercop/objective/104,UNITED UTILITIES WATER PLC,2366678,17/07/2017,68375,1406.51,0,Private Water Analysis - April 2017,371300,Utilities Water
South Lakeland District Council,http://opendatacommunities.org/id/district-council/south-lakeland,31/07/2017,Business Support Community Services,Cultural Environmental Regulatory & Planning Services,http://opendatacommunities.org/def/concept/finance/sercop/objective/104,UNITED UTILITIES WATER PLC,2366678,12/07/2017,69407,1311.39,0,Private Water Analysis - May 2017,371300,Utilities Water
South Lakeland District Council,http://opendatacommunities.org/id/district-council/south-lakeland,31/07/2017,Business Support Community Services,Housing Services,http://opendatacommunities.org/def/concept/finance/sercop/objective/108,Vigilant Security Services UK Ltd,5914271,12/07/2017,69603,2376,0,Secruity guard at TVF Hostel,192213,Facilities Security Manned Guarding
South Lakeland District Council,http://opendatacommunities.org/id/district-council/south-lakeland,31/07/2017,Lake Wardens,Cultural Environmental Regulatory & Planning Services,http://opendatacommunities.org/def/concept/finance/sercop/objective/104,VODAFONE LIMITED,1471587,03/07/2017,68478,103.8,0,4 x Rental for Lake Wardens Emergency,271800,ICT Telecommunications Mobile
South Lakeland District Council,http://opendatacommunities.org/id/district-council/south-lakeland,31/07/2017,ICT Group,Central Services,http://opendatacommunities.org/def/concept/finance/sercop/objective/102,VODAFONE LIMITED,1471587,31/07/2017,70018,36,0,Vodafone data charge for Electoral,271800,ICT Telecommunications Mobile
South Lakeland District Council,http://opendatacommunities.org/id/district-council/south-lakeland,31/07/2017,Lake Wardens,Cultural Environmental Regulatory & Planning Services,http://opendatacommunities.org/def/concept/finance/sercop/objective/104,VODAFONE LTD (PAGING),,19/07/2017,69782,146.61,0,4 x Annual Rental of Lake Wardens,271800,ICT Telecommunications Mobile
South Lakeland District Council,http://opendatacommunities.org/id/district-council/south-lakeland,31/07/2017,Business Support Community Services,Internal Trading Accounts,,VOLVO GROUP UK LTD,2190944,12/07/2017,69591,338.48,0,Tank,381000,Vehicle Mgt Commercial
South Lakeland District Council,http://opendatacommunities.org/id/district-council/south-lakeland,31/07/2017,Business Support Community Services,Internal Trading Accounts,,VOLVO GROUP UK LTD,2190944,12/07/2017,69617,122.62,0,Wire,381000,Vehicle Mgt Commercial
South Lakeland District Council,http://opendatacommunities.org/id/district-council/south-lakeland,31/07/2017,Business Support Community Services,Internal Trading Accounts,,VOLVO GROUP UK LTD,2190944,12/07/2017,69649,-133.42,0,Hose,381000,Vehicle Mgt Commercial
South Lakeland District Council,http://opendatacommunities.org/id/district-council/south-lakeland,31/07/2017,Business Support Community Services,Internal Trading Accounts,,VOLVO GROUP UK LTD,2190944,17/07/2017,69715,290,0,Hose,381000,Vehicle Mgt Commercial
South Lakeland District Council,http://opendatacommunities.org/id/district-council/south-lakeland,31/07/2017,Business Support Community Services,Internal Trading Accounts,,VOLVO GROUP UK LTD,2190944,24/07/2017,69880,218.3,0,Wipers,381000,Vehicle Mgt Commercial
South Lakeland District Council,http://opendatacommunities.org/id/district-council/south-lakeland,31/07/2017,Kendal Town Hall,Cultural Environmental Regulatory & Planning Services,http://opendatacommunities.org/def/concept/finance/sercop/objective/104,W MCCLURE LTD,685360,03/07/2017,69283,93.25,0,10 boxes of UHT semi skimmed milk,111200,Catering Food & Beverages
South Lakeland District Council,http://opendatacommunities.org/id/district-council/south-lakeland,31/07/2017,Kendal Town Hall,Cultural Environmental Regulatory & Planning Services,http://opendatacommunities.org/def/concept/finance/sercop/objective/104,W MCCLURE LTD,685360,24/07/2017,69938,105.8,0,2 boxes of white sugar sticks for KTH,111200,Catering Food & Beverages
South Lakeland District Council,http://opendatacommunities.org/id/district-council/south-lakeland,31/07/2017,Business Support Community Services,Internal Trading Accounts,,WasteParts UK Ltd,,03/07/2017,69363,133.24,0,Curtain,381500,Vehicle Mgt Parts
South Lakeland District Council,http://opendatacommunities.org/id/district-council/south-lakeland,31/07/2017,Social Enterprise Admin,Highways & Transport Services,http://opendatacommunities.org/def/concept/finance/sercop/objective/107,We Love Logos,,03/07/2017,69380,38.7,0,1 UC604 Size XL colour navy fleecewith,141100,Clothing Protective
South Lakeland District Council,http://opendatacommunities.org/id/district-council/south-lakeland,31/07/2017,Social Enterprise Admin,Highways & Transport Services,http://opendatacommunities.org/def/concept/finance/sercop/objective/107,We Love Logos,,03/07/2017,69380,14.99,0,1 UC604 Size XL colour navy fleecewith,141100,Clothing Protective
South Lakeland District Council,http://opendatacommunities.org/id/district-council/south-lakeland,31/07/2017,Legal Services,Central Services,http://opendatacommunities.org/def/concept/finance/sercop/objective/102,WEIGHTMANS LLP,OC326117,19/07/2017,69818,314,0,Fees for (final invoice),281300,Legal Services Legal Opinion
South Lakeland District Council,http://opendatacommunities.org/id/district-council/south-lakeland,31/07/2017,Policy & Partnerships,Central Services,http://opendatacommunities.org/def/concept/finance/sercop/objective/102,WESTMORLAND COUNTY AGRICULTURAL SOCIETY,3146325,12/07/2017,69652,353.9,0,Room booking and catering for Policy,261500,HR Training & Conferences
South Lakeland District Council,http://opendatacommunities.org/id/district-council/south-lakeland,31/07/2017,Business Support Community Services,Cultural Environmental Regulatory & Planning Services,http://opendatacommunities.org/def/concept/finance/sercop/objective/104,WESTMORLAND COUNTY AGRICULTURAL SOCIETY,3146325,24/07/2017,69884,326,0,Extra Bays,261500,HR Training & Conferences
South Lakeland District Council,http://opendatacommunities.org/id/district-council/south-lakeland,31/07/2017,Social Enterprise Admin,Central Services,http://opendatacommunities.org/def/concept/finance/sercop/objective/102,WOOF'S OF SEDBERGH,,10/07/2017,69523,190,0,MINI BUS SITE VISITS FOR MEMBERS RE,361300,Public Transport Passenger Transport
South Lakeland District Council,http://opendatacommunities.org/id/district-council/south-lakeland,31/07/2017,Business Support Community Services,Central Services,http://opendatacommunities.org/def/concept/finance/sercop/objective/102,YORKSHIRE DALES NATIONAL PARK AUTHY,,17/07/2017,69535,608.6,0,LAND CHARGE SEARCH ENQUIRIES YDNPA,202100,Financial Services Subscriptions
South Lakeland District Council,http://opendatacommunities.org/id/district-council/south-lakeland,31/07/2017,Democratic and Member Services,Central Services,http://opendatacommunities.org/def/concept/finance/sercop/objective/102,YOUDELLS,,17/07/2017,69730,116,0,Chairman's portrait framing,171110,Education Arts & Crafts
